,Directorate,Supplier Name,Supplier Invoice No,Payment Date,Gross Invoice Value,Vat Amount,Vendor Id,Purpose of Expenditure,Description,Redact flag,Year,Period
1,Community and Housing,SOUTHPARK RESIDENTIAL HOME,1155824,08-May-24,3400,0,19,Older People Placements - East,321017              Nursing & Residential Care Homes,A,2024,2
2,Community and Housing,SOUTHPARK RESIDENTIAL HOME,1156045,08-May-24,3400,0,19,Older People Placements - East,321017              Nursing & Residential Care Homes,A,2024,2
3,"Children, Schools and Family",MORE HOUSE SCHOOL,32455,28-May-24,5000,0,345,Non-Delegated Statements,170000              Education,A,2024,2
4,Community and Housing,ST TERESA`S HOME FOR THE ELDERLY,1155761,08-May-24,3828.92,0,362,Older People Placements - East,321017              Nursing & Residential Care Homes,A,2024,2
5,Community and Housing,ST TERESA`S HOME FOR THE ELDERLY,1156104,08-May-24,5888,0,362,Older People Placements - East,321017              Nursing & Residential Care Homes,A,2024,2
6,Community and Housing,ST TERESA`S HOME FOR THE ELDERLY,1156144,08-May-24,4080,0,362,Older People Placements - East,321017              Nursing & Residential Care Homes,A,2024,2
7,Corporate Services,Quadient,840499113,29-May-24,12166.09,24,793,Post services,300000              Mail Services,A,2024,2
8,Community and Housing,The Wimbledon Guild of Social Welfare,LBM,28-May-24,3640,0,802,PH- Borough of Sport,190000              Facilities & Management Services,A,2024,2
9,Community and Housing,The Wimbledon Guild of Social Welfare,COST OF LIV W&W,27-May-24,52252.5,0,802,Public Health Main,190000              Facilities & Management Services,A,2024,2
10,Unassigned,PERSEID SCHOOL,SCHOOLS 2425/2 A,07-May-24,418922.87,0,983,Schools,170000              Education,A,2024,2
11,"Children, Schools and Family",PERSEID SCHOOL,2236,20-May-24,6000,0,983,School Improvement DSG HNB,170000              Education,A,2024,2
12,Community and Housing,MOUNT CARMEL HOSTEL,1156114,08-May-24,3840,0,1053,Substance Misuse Alcoholl,321017              Nursing & Residential Care Homes,A,2024,2
13,Community and Housing,SUTTON NURSING HOMES LTD,1156131,08-May-24,3445.84,0,1208,Older People Placements - East,321017              Nursing & Residential Care Homes,A,2024,2
14,Environment and Regeneration,LONDON BOROUGH OF CROYDON,3026677,21-May-24,415420.91,69236.82,1258,PARK OPERATIONS,OLA,A,2024,2
15,Environment and Regeneration,LONDON BOROUGH OF CROYDON,3026776,30-May-24,68197.77,0,1258,Greenspaces Team (General),OLA,A,2024,2
16,Unassigned,L.B OF RICHMOND UPON THAMES,22/2070/FUL,09-May-24,890.5,0,1353,Corporate Services,OLA,A,2024,2
17,Corporate Services,L.B OF RICHMOND UPON THAMES,RC376792128M12E,21-May-24,9400,0,1353,SLLP Client Income,OLA,A,2024,2
18,Corporate Services,L.B OF RICHMOND UPON THAMES,RC376792128M01F,21-May-24,6600,0,1353,SLLP Client Income,OLA,A,2024,2
19,Unassigned,MELROSE SPECIAL SCHOOL,SCHOOLS 2425/2 A,07-May-24,472132.28,0,1393,Schools,170000              Education,A,2024,2
20,Unassigned,WILLIAM MORRIS PRIMARY SCHOOL,SCHOOLS 2425/2 A,07-May-24,138722.08,0,1416,Schools,170000              Education,A,2024,2
21,Unassigned,ST THOMAS OF CANTERBURY PRIMARY,SCHOOLS 2425/2 A,07-May-24,171595.13,0,1418,Schools,170000              Education,A,2024,2
22,Unassigned,PRIORY C OF E MIDDLE SCHOOL,SCHOOLS 2425/2 A,07-May-24,89970.88,0,1420,Schools,170000              Education,A,2024,2
23,Unassigned,LIBERTY PRIMARY SCHOOL,SCHOOLS 2425/2 A,07-May-24,176772.72,0,1424,Schools,170000              Education,A,2024,2
24,Unassigned,HILLCROSS PRIMARY SCHOOL,SCHOOLS 2425/2 A,07-May-24,158230.05,0,1425,Schools,170000              Education,A,2024,2
25,Unassigned,CRANMER PRIMARY SCHOOL,SCHOOLS 2425/2 A,07-May-24,259529.51,0,1426,Schools,170000              Education,A,2024,2
26,Unassigned,WIMBLEDON COLLEGE SCHOOL,SCHOOLS 2425/2 A,07-May-24,670197.78,0,1428,Schools,170000              Education,A,2024,2
27,Unassigned,URSULINE HIGH SCHOOL,SCHOOLS 2425/2 A,07-May-24,648332.85,0,1429,Schools,170000              Education,A,2024,2
28,"Children, Schools and Family",URSULINE HIGH SCHOOL,HAFMAY24UPFRONT,10-May-24,750,0,1429,Holiday Act Food Prog grntfnd,170000              Education,A,2024,2
29,"Children, Schools and Family",URSULINE HIGH SCHOOL,HAFEASTER24PAYME,10-May-24,5875,0,1429,Holiday Act Food Prog grntfnd,170000              Education,A,2024,2
30,Unassigned,RUTLISH SCHOOL,SCHOOLS 2425/2 A,07-May-24,703325.87,0,1431,Schools,170000              Education,A,2024,2
31,Unassigned,RICARDS LODGE SECONDARY SCHOOL,SCHOOLS 2425/2 A,07-May-24,737610.38,0,1433,Schools,170000              Education,A,2024,2
32,Unassigned,WIMBLEDON PARK PRIMARY SCHOOL,SCHOOLS 2425/2 A,07-May-24,219863.75,0,1436,Schools,170000              Education,A,2024,2
33,Unassigned,ST TERESA'S R C PRIMARY SCHOOL,SCHOOLS 2425/2 A,07-May-24,190122.5,0,1438,Schools,170000              Education,A,2024,2
34,Unassigned,ST MARYS CATHOLIC PRIMARY SCHOOL,SCHOOLS 2425/2 A,07-May-24,174369.49,0,1439,Schools,170000              Education,A,2024,2
35,Unassigned,ST MARKS PRIMARY SCHOOL,SCHOOLS 2425/2 A,07-May-24,120229.53,0,1440,Schools,170000              Education,A,2024,2
36,Unassigned,ST JOHN FISHER RC PRIMARY SCH.,SCHOOLS 2425/2 A,07-May-24,161810.52,0,1441,Schools,170000              Education,A,2024,2
37,Unassigned,SINGLEGATE PRIMARY SCHOOL,SCHOOLS 2425/2 A,07-May-24,248560.49,0,1442,Schools,170000              Education,A,2024,2
38,Unassigned,SHERWOOD PRIMARY SCHOOL,SCHOOLS 2425/2 A,07-May-24,154947.12,0,1443,Schools,170000              Education,A,2024,2
39,Unassigned,POPLAR PRIMARY SCHOOL,SCHOOLS 2425/2 A,07-May-24,307069.82,0,1444,Schools,170000              Education,A,2024,2
40,Unassigned,PELHAM PRIMARY SCHOOL,SCHOOLS 2425/2 A,07-May-24,171068.88,0,1445,Schools,170000              Education,A,2024,2
41,Unassigned,MORDEN PRIMARY SCHOOL,SCHOOLS 2425/2 A,07-May-24,113383.51,0,1446,Schools,170000              Education,A,2024,2
42,Unassigned,MERTON PARK PRIMARY SCHOOL,SCHOOLS 2425/2 A,07-May-24,93642.7,0,1447,Schools,170000              Education,A,2024,2
43,Unassigned,MERTON ABBEY PRIMARY SCHOOL,SCHOOLS 2425/2 A,07-May-24,108150.36,0,1448,Schools,170000              Education,A,2024,2
44,Unassigned,LONESOME PRIMARY SCHOOL,SCHOOLS 2425/2 A,07-May-24,156496.29,0,1450,Schools,170000              Education,A,2024,2
45,Unassigned,LINKS PRIMARY SCHOOL,SCHOOLS 2425/2 A,07-May-24,169511.93,0,1451,Schools,170000              Education,A,2024,2
46,"Children, Schools and Family",LINKS PRIMARY SCHOOL,HAFMAY24UPFRONT,10-May-24,1632.5,0,1451,Holiday Act Food Prog grntfnd,170000              Education,A,2024,2
47,"Children, Schools and Family",LINKS PRIMARY SCHOOL,HAFEASTER24PAYME,10-May-24,1380,0,1451,Holiday Act Food Prog grntfnd,170000              Education,A,2024,2
48,Unassigned,JOSEPH HOOD PRIMARY SCHOOL,SCHOOLS 2425/2 A,07-May-24,149676.88,0,1452,Schools,170000              Education,A,2024,2
49,Unassigned,HOLY TRINITY C OF E PRIMARY SCHOOL,SCHOOLS 2425/2 A,07-May-24,155244.13,0,1453,Schools,170000              Education,A,2024,2
50,Unassigned,HOLLYMOUNT PRIMARY SCHOOL,SCHOOLS 2425/2 A,07-May-24,173316.47,0,1454,Schools,170000              Education,A,2024,2
51,Unassigned,HATFEILD PRIMARY SCHOOL,SCHOOLS 2425/2 A,07-May-24,196441.13,0,1455,Schools,170000              Education,A,2024,2
52,Unassigned,HATFEILD PRIMARY SCHOOL,23LMPE000014,10-May-24,750,0,1455,Corporate Services,170000              Education,A,2024,2
53,Unassigned,HASLEMERE PRIMARY SCHOOL,SCHOOLS 2425/2 A,07-May-24,173029,0,1456,Schools,170000              Education,A,2024,2
54,Unassigned,GARFIELD PRIMARY SCHOOL,SCHOOLS 2425/2 A,07-May-24,136904.96,0,1460,Schools,170000              Education,A,2024,2
55,Unassigned,BOND PRIMARY SCHOOL,SCHOOLS 2425/2 A,07-May-24,143223.25,0,1462,Schools,170000              Education,A,2024,2
56,Unassigned,BISHOP GILPIN C OF E PRIMARY,SCHOOLS 2425/2 A,07-May-24,168742.1,0,1463,Schools,170000              Education,A,2024,2
57,"Children, Schools and Family",BISHOP GILPIN C OF E PRIMARY,2340,27-May-24,550,0,1463,SW London School Effectiveness,170000              Education,A,2024,2
58,Unassigned,ABBOTSBURY PRIMARY SCHOOL,SCHOOLS 2425/2 A,07-May-24,172864,0,1467,Schools,170000              Education,A,2024,2
59,Unassigned,WIMBLEDON CHASE PRIMARY SCHOOL,SCHOOLS 2425/2 A,07-May-24,256969.07,0,1469,Schools,170000              Education,A,2024,2
60,Unassigned,GORRINGE PARK PRIMARY SCHOOL,SCHOOLS 2425/2 A,07-May-24,172177.37,0,1470,Schools,170000              Education,A,2024,2
61,Unassigned,RAYNES PARK SECONDARY SCHOOL,SCHOOLS 2425/2 A,07-May-24,669096.02,0,1471,Schools,170000              Education,A,2024,2
62,Unassigned,SS PETER AND PAUL RC PRIMARY SCH,SCHOOLS 2425/2 A,07-May-24,114578.13,0,1472,Schools,170000              Education,A,2024,2
63,Unassigned,DUNDONALD PRIMARY SCHOOL,SCHOOLS 2425/2 A,07-May-24,172523.62,0,1473,Schools,170000              Education,A,2024,2
64,Community and Housing,MERTON MENCAP,4747,10-May-24,640,0,1519,Learning Disabilities Placemnt,200000              Financial Services,A,2024,2
65,Community and Housing,MERTON MENCAP,4741,10-May-24,640,0,1519,Learning Disabilities Placemnt,200000              Financial Services,A,2024,2
66,Community and Housing,MERTON MENCAP,4740,10-May-24,640,0,1519,Learning Disabilities Placemnt,200000              Financial Services,A,2024,2
67,Community and Housing,MERTON MENCAP,4743,10-May-24,640,0,1519,Learning Disabilities Placemnt,200000              Financial Services,A,2024,2
68,Community and Housing,MERTON MENCAP,4748,10-May-24,640,0,1519,Learning Disabilities Placemnt,200000              Financial Services,A,2024,2
69,Community and Housing,MERTON MENCAP,4753,10-May-24,640,0,1519,Learning Disabilities Placemnt,200000              Financial Services,A,2024,2
70,Community and Housing,MERTON MENCAP,4752,10-May-24,640,0,1519,Learning Disabilities Placemnt,200000              Financial Services,A,2024,2
71,Community and Housing,MERTON MENCAP,4751,10-May-24,640,0,1519,Learning Disabilities Placemnt,200000              Financial Services,A,2024,2
72,Community and Housing,MERTON MENCAP,COMMUNITY FACILI,16-May-24,20548.8,0,1519,Public Health Main,200000              Financial Services,A,2024,2
73,Unassigned,ALL SAINTS C OF E PRIMARY SCH,SCHOOLS 2425/2 A,07-May-24,142217.25,0,1680,Schools,170000              Education,A,2024,2
74,"Children, Schools and Family",REDACTED PERSONAL DATA,1153875,02-May-24,548.09,0,1801,Placements Under 18,321100              Social Community Care Supplies & Services - Children,R,2024,2
75,"Children, Schools and Family",REDACTED PERSONAL DATA,1157958,10-May-24,548.09,0,1801,Placements Under 18,321100              Social Community Care Supplies & Services - Children,R,2024,2
76,"Children, Schools and Family",REDACTED PERSONAL DATA,1161440,17-May-24,548.09,0,1801,Placements Under 18,321100              Social Community Care Supplies & Services - Children,R,2024,2
77,"Children, Schools and Family",REDACTED PERSONAL DATA,1167070,23-May-24,548.09,0,1801,Placements Under 18,321100              Social Community Care Supplies & Services - Children,R,2024,2
78,"Children, Schools and Family",REDACTED PERSONAL DATA,1169266,31-May-24,548.09,0,1801,Placements Under 18,321100              Social Community Care Supplies & Services - Children,R,2024,2
79,"Children, Schools and Family",THE CHILDRENS TRUST,7845,02-May-24,2654,0,1980,Child Disabilities - Placement,170000              Education,A,2024,2
80,"Children, Schools and Family",THE CHILDRENS TRUST,8083,20-May-24,10091.43,0,1980,Non-Delegated Statements,170000              Education,A,2024,2
81,"Children, Schools and Family",THE CHILDRENS TRUST,8087,20-May-24,9570.32,0,1980,Non-Delegated Statements,170000              Education,A,2024,2
82,Community and Housing,THE FRANCES TAYLOR FOUNDATION,1155850,08-May-24,4136.08,0,2011,Learning Disabilities Placemnt,321017              Nursing & Residential Care Homes,A,2024,2
83,Community and Housing,THE FRANCES TAYLOR FOUNDATION,1156152,08-May-24,8113.92,0,2011,Learning Disabilities Placemnt,321017              Nursing & Residential Care Homes,A,2024,2
84,Unassigned,SACRED HEART R C PRIMARY SCH.,SCHOOLS 2425/2 A,07-May-24,141952.37,0,2076,Schools,170000              Education,A,2024,2
85,Corporate Services,CANON UK LIMITED,2.4088E+12,29-May-24,1911.6,318.6,2181,Business Systems,340000              Stationery,A,2024,2
86,Corporate Services,LONDON BOROUGH OF SUTTON,3190904841,06-May-24,592.17,0,2313,Chief Executive,OLA,A,2024,2
87,Corporate Services,LONDON BOROUGH OF SUTTON,SLLPINCOMEM0124,09-May-24,950,0,2313,SLLP Client Income,OLA,A,2024,2
88,"Children, Schools and Family",THE LINK SECONDARY SCHOOL,DI118106334,17-May-24,159946,0,2324,Non-Delegated Statements,170000              Education,A,2024,2
89,"Children, Schools and Family",The Link Primary School,DI118106279,23-May-24,825,0,2329,Non-Delegated Statements,200000              Financial Services,A,2024,2
90,Corporate Services,PJ HARVEY AND CO LTD,SI-72023,17-May-24,1374,229,2439,Buildings Maintenance,190000              Facilities & Management Services,A,2024,2
91,Community and Housing,FREEWAYS TRUST LTD,1155756,08-May-24,2838.6,0,2474,Learning Disabilities Placemnt,321017              Nursing & Residential Care Homes,A,2024,2
92,Environment and Regeneration,DEEN CITY FARM,2366,17-May-24,67920,0,2529,Deen City Farm,290000              Arts & Leisure Services,A,2024,2
93,Community and Housing,THAMES WATER UTILITIES LTD,9.00047E+15,06-May-24,559.43,0,10691,Meadowsweet Res Home,370000              Utilities,A,2024,2
94,Community and Housing,CLOYDA LTD,1156021,08-May-24,4000,0,10762,Older People Placements - East,321017              Nursing & Residential Care Homes,A,2024,2
95,Community and Housing,CHEGWORTH N.H. (BAYSWIFT LTD),1155983,08-May-24,3121.08,0,11057,Learning Disabilities Placemnt,321000              Social Community Care Supplies & Services - Adult,A,2024,2
96,"Children, Schools and Family",REDACTED PERSONAL DATA,1153837,02-May-24,692.46,0,11130,Placements Under 18,321100              Social Community Care Supplies & Services - Children,R,2024,2
97,"Children, Schools and Family",REDACTED PERSONAL DATA,1157916,10-May-24,692.46,0,11130,Placements Under 18,321100              Social Community Care Supplies & Services - Children,R,2024,2
98,"Children, Schools and Family",REDACTED PERSONAL DATA,1161399,17-May-24,692.46,0,11130,Placements Under 18,321100              Social Community Care Supplies & Services - Children,R,2024,2
99,"Children, Schools and Family",REDACTED PERSONAL DATA,1167029,23-May-24,692.46,0,11130,Placements Under 18,321100              Social Community Care Supplies & Services - Children,R,2024,2
100,"Children, Schools and Family",REDACTED PERSONAL DATA,1169227,31-May-24,692.46,0,11130,Placements Under 18,321100              Social Community Care Supplies & Services - Children,R,2024,2
101,Community and Housing,ETHNIC MINORITY CENTRE,3,21-May-24,2340,0,11472,PH- Borough of Sport,200000              Financial Services,A,2024,2
102,Community and Housing,Queens Court,1156015,08-May-24,3445,0,12747,Older People Placements - East,321017              Nursing & Residential Care Homes,A,2024,2
103,Community and Housing,Queens Court,1156051,08-May-24,8185.84,0,12747,Older People Placements - East,321017              Nursing & Residential Care Homes,A,2024,2
104,Community and Housing,Queens Court,1156057,08-May-24,5600,0,12747,Older People Placements - East,321017              Nursing & Residential Care Homes,A,2024,2
105,Community and Housing,Queens Court,1156111,08-May-24,4325.28,0,12747,Older People Placements - East,321017              Nursing & Residential Care Homes,A,2024,2
106,Community and Housing,ASHCROFT CARE SERVICES,1155982,08-May-24,6084.56,0,13287,Learning Disabilities Placemnt,321017              Nursing & Residential Care Homes,A,2024,2
107,Community and Housing,SHARE COMMUNITY LTD,250142,06-May-24,624,0,13487,Learning Disabilities Placemnt,321017              Nursing & Residential Care Homes,A,2024,2
108,Community and Housing,SHARE COMMUNITY LTD,250337,28-May-24,600,0,13487,Learning Disabilities Placemnt,321017              Nursing & Residential Care Homes,A,2024,2
109,Community and Housing,SHARE COMMUNITY LTD,250307,29-May-24,900,0,13487,Learning Disabilities Placemnt,321017              Nursing & Residential Care Homes,A,2024,2
110,Community and Housing,SHARE COMMUNITY LTD,250313,29-May-24,624,0,13487,Learning Disabilities Placemnt,321017              Nursing & Residential Care Homes,A,2024,2
111,Community and Housing,SHARE COMMUNITY LTD,250333,29-May-24,624,0,13487,Learning Disabilities Placemnt,321017              Nursing & Residential Care Homes,A,2024,2
112,Community and Housing,SHARE COMMUNITY LTD,250334,29-May-24,900,0,13487,Learning Disabilities Placemnt,321017              Nursing & Residential Care Homes,A,2024,2
113,Community and Housing,SHARE COMMUNITY LTD,250316,29-May-24,1200,0,13487,Learning Disabilities Placemnt,321017              Nursing & Residential Care Homes,A,2024,2
114,Community and Housing,SHARE COMMUNITY LTD,250319,29-May-24,900,0,13487,Learning Disabilities Placemnt,321017              Nursing & Residential Care Homes,A,2024,2
115,Community and Housing,SHARE COMMUNITY LTD,250305,31-May-24,624,0,13487,Learning Disabilities Placemnt,321017              Nursing & Residential Care Homes,A,2024,2
116,Community and Housing,SHARE COMMUNITY LTD,250327,31-May-24,900,0,13487,Learning Disabilities Placemnt,321017              Nursing & Residential Care Homes,A,2024,2
117,Community and Housing,FITZROY SUPPORT,1156084,08-May-24,9010.16,0,13535,Learning Disabilities Placemnt,321017              Nursing & Residential Care Homes,A,2024,2
118,Community and Housing,CANTERBURY OAST TRUST LTD,1155769,08-May-24,5484.56,0,13566,Learning Disabilities Placemnt,321017              Nursing & Residential Care Homes,A,2024,2
119,Community and Housing,MACINTYRE,1155776,08-May-24,6227.56,0,13585,Learning Disabilities Placemnt,321017              Nursing & Residential Care Homes,A,2024,2
120,Community and Housing,MACINTYRE,1156049,08-May-24,6120.88,0,13585,Older People Placements - East,321017              Nursing & Residential Care Homes,A,2024,2
121,Community and Housing,MACINTYRE,1156082,08-May-24,5235.4,0,13585,Learning Disabilities Placemnt,321017              Nursing & Residential Care Homes,A,2024,2
122,Community and Housing,KENT AUTISTIC TRUST,1156058,08-May-24,8548,0,13670,Learning Disabilities Placemnt,321017              Nursing & Residential Care Homes,A,2024,2
123,Community and Housing,UNITED RESPONSE,VSMR895703-RH,06-May-24,4486.08,747.68,14616,Learning Disabilities Placemnt,321000              Social Community Care Supplies & Services - Adult,A,2024,2
124,Community and Housing,UNITED RESPONSE,VSMR895703-DHH,06-May-24,4169.52,694.92,14616,Learning Disabilities Placemnt,321000              Social Community Care Supplies & Services - Adult,A,2024,2
125,Community and Housing,UNITED RESPONSE,VSMR895703-HM,06-May-24,4960.9,826.82,14616,Learning Disabilities Placemnt,321000              Social Community Care Supplies & Services - Adult,A,2024,2
126,Community and Housing,UNITED RESPONSE,VSMR895703-BS,06-May-24,4433.38,738.9,14616,Learning Disabilities Placemnt,321000              Social Community Care Supplies & Services - Adult,A,2024,2
127,Community and Housing,UNITED RESPONSE,VSMR895703-CFW,06-May-24,5171.9,861.98,14616,Learning Disabilities Placemnt,321000              Social Community Care Supplies & Services - Adult,A,2024,2
128,Community and Housing,UNITED RESPONSE,VSMR902707BA,15-May-24,5248.99,874.83,14616,Learning Disabilities Placemnt,321000              Social Community Care Supplies & Services - Adult,A,2024,2
129,Community and Housing,UNITED RESPONSE,VSMR902707BO,15-May-24,5248.99,874.83,14616,Learning Disabilities Placemnt,321000              Social Community Care Supplies & Services - Adult,A,2024,2
130,Community and Housing,UNITED RESPONSE,VSMR902707ST,15-May-24,5248.99,874.83,14616,Learning Disabilities Placemnt,321000              Social Community Care Supplies & Services - Adult,A,2024,2
131,Community and Housing,UNITED RESPONSE,VSMR902707SV,15-May-24,5248.99,874.83,14616,Learning Disabilities Placemnt,321000              Social Community Care Supplies & Services - Adult,A,2024,2
132,Community and Housing,UNITED RESPONSE,VSMR902707RW,15-May-24,5248.99,874.83,14616,Learning Disabilities Placemnt,321000              Social Community Care Supplies & Services - Adult,A,2024,2
133,Community and Housing,UNITED RESPONSE,VSMR901422-RH,22-May-24,4486.08,747.68,14616,Learning Disabilities Placemnt,321000              Social Community Care Supplies & Services - Adult,A,2024,2
134,Community and Housing,UNITED RESPONSE,VSMR901422-DHH,22-May-24,4169.52,694.92,14616,Learning Disabilities Placemnt,321000              Social Community Care Supplies & Services - Adult,A,2024,2
135,Community and Housing,UNITED RESPONSE,VSMR901422-HM,22-May-24,4960.9,826.82,14616,Learning Disabilities Placemnt,321000              Social Community Care Supplies & Services - Adult,A,2024,2
136,Community and Housing,UNITED RESPONSE,VSMR901422-BS,22-May-24,4433.38,738.9,14616,Learning Disabilities Placemnt,321000              Social Community Care Supplies & Services - Adult,A,2024,2
137,Community and Housing,UNITED RESPONSE,VSMR901422-CFW,22-May-24,5171.9,861.98,14616,Learning Disabilities Placemnt,321000              Social Community Care Supplies & Services - Adult,A,2024,2
138,Community and Housing,Spectrum Innovations,INV-57754,22-May-24,1610.4,268.4,15550,Libraries Service-Civic Centre,170000              Education,A,2024,2
139,"Children, Schools and Family",CONNEVANS LTD,IN561156,27-May-24,744,124,18972,Sensory Team,270000              Information Communication Technology,A,2024,2
140,Environment and Regeneration,KINGSTON CORPORATION,37728840,14-May-24,254502.25,0,21573,Waste Disposal,180000              Environmental Services,A,2024,2
141,Corporate Services,KINGSTON CORPORATION,M01LEGAL24/25,09-May-24,8950,0,21573,SLLP Client Income,180000              Environmental Services,A,2024,2
142,Environment and Regeneration,KINGSTON CORPORATION,37732562,14-May-24,15891.38,0,21573,Recycling Activities,180000              Environmental Services,A,2024,2
143,Environment and Regeneration,KINGSTON CORPORATION,37747543,04-Jun-24,9552.1,0,21573,Food Waste Service,180000              Environmental Services,A,2024,2
144,Community and Housing,NORTH EAST MITCHAM COMM ASSOC,OP ACTIVITIES,16-May-24,5707.59,0,27999,Public Health Main,321100              Social Community Care Supplies & Services - Children,A,2024,2
145,Environment and Regeneration,MITCHAM COMMON CONSERVATORS,A/CONT2024/2025,09-May-24,24104,0,28571,Parks & Recreation Grounds,190000              Facilities & Management Services,A,2024,2
146,Community and Housing,MERTON AND MORDEN GUILD,OP ACTIVITIES,16-May-24,20350.41,0,29632,Public Health Main,290000              Arts & Leisure Services,A,2024,2
147,Community and Housing,TRINITY COURT NURSING HOME,1155820,08-May-24,3304.04,0,30306,Older People Placements - East,321017              Nursing & Residential Care Homes,A,2024,2
148,Community and Housing,TRINITY COURT NURSING HOME,1155953,08-May-24,3304.04,0,30306,Older People Placements - East,321017              Nursing & Residential Care Homes,A,2024,2
149,Community and Housing,TRINITY COURT NURSING HOME,1155986,08-May-24,3304.04,0,30306,Older People Placements - East,321017              Nursing & Residential Care Homes,A,2024,2
150,Community and Housing,TRINITY COURT NURSING HOME,1156002,08-May-24,4182.88,0,30306,Phys/Sens Placements - East,321017              Nursing & Residential Care Homes,A,2024,2
151,Community and Housing,TRINITY COURT NURSING HOME,1156180,08-May-24,3304.04,0,30306,Older People Placements - East,321017              Nursing & Residential Care Homes,A,2024,2
152,Community and Housing,TRINITY COURT NURSING HOME,1156182,08-May-24,3304.04,0,30306,Older People Placements - East,321017              Nursing & Residential Care Homes,A,2024,2
153,Community and Housing,TRINITY COURT NURSING HOME,1156184,08-May-24,3304.04,0,30306,Older People Placements - East,321017              Nursing & Residential Care Homes,A,2024,2
154,Community and Housing,HAYDON PARK LODGE,1155908,08-May-24,3485,0,31434,Learning Disabilities Placemnt,321017              Nursing & Residential Care Homes,A,2024,2
155,Community and Housing,HAYDON PARK LODGE,1155932,08-May-24,4591.44,0,31434,Learning Disabilities Placemnt,321017              Nursing & Residential Care Homes,A,2024,2
156,Community and Housing,HAYDON PARK LODGE,1156047,08-May-24,4420.08,0,31434,Learning Disabilities Placemnt,321017              Nursing & Residential Care Homes,A,2024,2
157,Community and Housing,HAYDON PARK LODGE,1156089,08-May-24,7000,0,31434,Learning Disabilities Placemnt,321017              Nursing & Residential Care Homes,A,2024,2
158,Community and Housing,HAYDON PARK LODGE,1166396,22-May-24,2159.44,0,31434,Learning Disabilities Placemnt,321017              Nursing & Residential Care Homes,A,2024,2
159,Community and Housing,HAYDON PARK LODGE,1166567,22-May-24,2216.59,0,31434,Learning Disabilities Placemnt,321017              Nursing & Residential Care Homes,A,2024,2
160,Community and Housing,Barchester Healthcare Wimbledon Beaumont,1155856,08-May-24,4056,0,33384,Older People Placements - East,321017              Nursing & Residential Care Homes,A,2024,2
161,Community and Housing,COMFORT CARE SERVICES (UK) LTD,SU0133/1724,30-May-24,6260.7,0,34932,Mental Health Placements,321000              Social Community Care Supplies & Services - Adult,A,2024,2
162,Community and Housing,COMFORT CARE SERVICES (UK) LTD,SU0146/1745,28-May-24,625.12,0,34932,Mental Health Placements,321000              Social Community Care Supplies & Services - Adult,A,2024,2
163,Community and Housing,COMFORT CARE SERVICES (UK) LTD,SU0146/1708/1752,28-May-24,3005.12,0,34932,Mental Health Placements,321000              Social Community Care Supplies & Services - Adult,A,2024,2
164,Community and Housing,COMFORT CARE SERVICES (UK) LTD,SU0146/1748,28-May-24,625.12,0,34932,Mental Health Placements,321000              Social Community Care Supplies & Services - Adult,A,2024,2
165,Community and Housing,COMFORT CARE SERVICES (UK) LTD,SU0146/1746,28-May-24,625.12,0,34932,Mental Health Placements,321000              Social Community Care Supplies & Services - Adult,A,2024,2
166,Community and Housing,COMFORT CARE SERVICES (UK) LTD,SU0146/1749,28-May-24,625.12,0,34932,Mental Health Placements,321000              Social Community Care Supplies & Services - Adult,A,2024,2
167,Community and Housing,COMFORT CARE SERVICES (UK) LTD,SU0146/1750,28-May-24,625.12,0,34932,Mental Health Placements,321000              Social Community Care Supplies & Services - Adult,A,2024,2
168,Community and Housing,COMFORT CARE SERVICES (UK) LTD,SU0146/1751,28-May-24,625.12,0,34932,Mental Health Placements,321000              Social Community Care Supplies & Services - Adult,A,2024,2
169,Community and Housing,COMFORT CARE SERVICES (UK) LTD,SU0201/1761,29-May-24,625.12,0,34932,Mental Health Placements,321000              Social Community Care Supplies & Services - Adult,A,2024,2
170,Community and Housing,COMFORT CARE SERVICES (UK) LTD,SU0201/1575/1762,29-May-24,3005.12,0,34932,Mental Health Placements,321000              Social Community Care Supplies & Services - Adult,A,2024,2
171,Community and Housing,COMFORT CARE SERVICES (UK) LTD,SU0201/1760,29-May-24,625.12,0,34932,Mental Health Placements,321000              Social Community Care Supplies & Services - Adult,A,2024,2
172,Community and Housing,COMFORT CARE SERVICES (UK) LTD,SU0201/1709/1766,29-May-24,3005.12,0,34932,Mental Health Placements,321000              Social Community Care Supplies & Services - Adult,A,2024,2
173,Community and Housing,COMFORT CARE SERVICES (UK) LTD,SU0201/1765,29-May-24,625.12,0,34932,Mental Health Placements,321000              Social Community Care Supplies & Services - Adult,A,2024,2
174,Community and Housing,COMFORT CARE SERVICES (UK) LTD,SU0201/1763,29-May-24,625.12,0,34932,Mental Health Placements,321000              Social Community Care Supplies & Services - Adult,A,2024,2
175,Community and Housing,COMFORT CARE SERVICES (UK) LTD,SU0201/1764,29-May-24,625.12,0,34932,Mental Health Placements,321000              Social Community Care Supplies & Services - Adult,A,2024,2
176,Community and Housing,COMFORT CARE SERVICES (UK) LTD,SU0184/1281,28-May-24,2380,0,34932,Mental Health Placements,321000              Social Community Care Supplies & Services - Adult,A,2024,2
177,Community and Housing,COMFORT CARE SERVICES (UK) LTD,SU0208/1904,29-May-24,625.12,0,34932,Mental Health Placements,321000              Social Community Care Supplies & Services - Adult,A,2024,2
178,Community and Housing,COMFORT CARE SERVICES (UK) LTD,SU0208/1905,29-May-24,625.12,0,34932,Mental Health Placements,321000              Social Community Care Supplies & Services - Adult,A,2024,2
179,Community and Housing,COMFORT CARE SERVICES (UK) LTD,SU0208/1906,29-May-24,625.12,0,34932,Mental Health Placements,321000              Social Community Care Supplies & Services - Adult,A,2024,2
180,Community and Housing,COMFORT CARE SERVICES (UK) LTD,SU0208/1907,29-May-24,625.12,0,34932,Mental Health Placements,321000              Social Community Care Supplies & Services - Adult,A,2024,2
181,Community and Housing,COMFORT CARE SERVICES (UK) LTD,SU0208/1908,29-May-24,625.12,0,34932,Mental Health Placements,321000              Social Community Care Supplies & Services - Adult,A,2024,2
182,Community and Housing,COMFORT CARE SERVICES (UK) LTD,SU0208/1909,29-May-24,625.12,0,34932,Mental Health Placements,321000              Social Community Care Supplies & Services - Adult,A,2024,2
183,Community and Housing,COMFORT CARE SERVICES (UK) LTD,SU0266/1876,29-May-24,625.12,0,34932,Mental Health Placements,321000              Social Community Care Supplies & Services - Adult,A,2024,2
184,Community and Housing,COMFORT CARE SERVICES (UK) LTD,SU0266/1875,29-May-24,625.12,0,34932,Mental Health Placements,321000              Social Community Care Supplies & Services - Adult,A,2024,2
185,Community and Housing,COMFORT CARE SERVICES (UK) LTD,SU0266/1874,29-May-24,625.12,0,34932,Mental Health Placements,321000              Social Community Care Supplies & Services - Adult,A,2024,2
186,Community and Housing,ROYAL MASONIC BENEVOLENT INST.,1155892,08-May-24,3200,0,35867,Older People Placements - East,321017              Nursing & Residential Care Homes,A,2024,2
187,Unassigned,ST MATTHEW'S C OF E PRIMARY,SCHOOLS 2425/2 A,07-May-24,87419.44,0,36050,Schools,170000              Education,A,2024,2
188,Community and Housing,AGE UK MERTON,COST OF LIV W&W,17-May-24,172241.2,0,37401,Grants to Voluntary Orgs,190000              Facilities & Management Services,A,2024,2
189,Corporate Services,SIGHT AND SOUND TECHNOLOGY LTD,SINV-196778,29-May-24,1512,252,43124,IT Service Delivery,270000              Information Communication Technology,A,2024,2
190,Community and Housing,ROYAL HOSP FOR NEURO-DISAB,1155967,27-May-24,8053.08,0,46286,Older People Placements - East,321000              Social Community Care Supplies & Services - Adult,A,2024,2
191,"Children, Schools and Family",SURREY COUNTY COUNCIL,20403935,14-May-24,11291,0,46682,Non-Delegated Statements,OLA,A,2024,2
192,Community and Housing,JESMUND CARE LTD,1156132,08-May-24,3664.68,0,46751,Older People Placements - East,321017              Nursing & Residential Care Homes,A,2024,2
193,Community and Housing,REDACTED PERSONAL DATA,1163875,21-May-24,6021.4,0,50448,Older People Placements - East,DIRECT PAYMENTS,R,2024,2
194,Community and Housing,LINKAGE COMMUNITY TR.LONG-STAY,1156041,08-May-24,3624,0,52552,Learning Disabilities Placemnt,321017              Nursing & Residential Care Homes,A,2024,2
195,Community and Housing,PARK LODGE,1155895,08-May-24,2863.4,0,56878,Learning Disabilities Placemnt,321017              Nursing & Residential Care Homes,A,2024,2
196,Community and Housing,PARK LODGE,1155985,08-May-24,3026.8,0,56878,Learning Disabilities Placemnt,321017              Nursing & Residential Care Homes,A,2024,2
197,Unassigned,CRICKET GREEN SCHOOL,SCHOOLS 2425/2 A,07-May-24,392018.98,0,57057,Schools,170000              Education,A,2024,2
198,Community and Housing,KENWARD TRUST,1155896,08-May-24,4500,0,57058,ASC - Substance Misuse - Drugs,321100              Social Community Care Supplies & Services - Children,A,2024,2
199,Corporate Services,GREENWORKS,465633,22-May-24,743.59,123.93,57234,Corporate Contracts - FM,"390000              Works - Construction, Repair & Maintenance",A,2024,2
200,Community and Housing,MERTON VOLUNTARY SERV COUNCIL,CP SMALL GRANTS,30-May-24,15000,0,57560,Grants to Voluntary Orgs,190000              Facilities & Management Services,A,2024,2
201,Corporate Services,MERTON VOLUNTARY SERV COUNCIL,MERTONGIVINGFUND,30-May-24,20000,0,57560,VOLUNTARY SECTOR COORDINATION,190000              Facilities & Management Services,A,2024,2
202,Corporate Services,JADE SECURITY SERVICE LTD,7179,08-May-24,1958.83,326.47,57563,Cash Collections,200000              Financial Services,A,2024,2
203,Corporate Services,JADE SECURITY SERVICE LTD,7477,22-May-24,2055.46,342.58,57563,Cash Collections,200000              Financial Services,A,2024,2
204,"Children, Schools and Family",CANBURY SCHOOL LIMITED,5143 PART PYMT,10-May-24,7680.67,0,57830,Non-Delegated Statements,170000              Education,A,2024,2
205,"Children, Schools and Family",CANBURY SCHOOL LIMITED,5145 PART PYMT,10-May-24,12968,0,57830,Non-Delegated Statements,170000              Education,A,2024,2
206,"Children, Schools and Family",CANBURY SCHOOL LIMITED,5146 PART PYMT,10-May-24,6328.67,0,57830,Non-Delegated Statements,170000              Education,A,2024,2
207,"Children, Schools and Family",CANBURY SCHOOL LIMITED,5147 PART PYMT,10-May-24,9028,0,57830,Non-Delegated Statements,170000              Education,A,2024,2
208,"Children, Schools and Family",CANBURY SCHOOL LIMITED,5148 PART PYMT,10-May-24,12401.33,0,57830,Non-Delegated Statements,170000              Education,A,2024,2
209,"Children, Schools and Family",CANBURY SCHOOL LIMITED,5149 PART PYMT,10-May-24,12401.33,0,57830,Non-Delegated Statements,170000              Education,A,2024,2
210,"Children, Schools and Family",CANBURY SCHOOL LIMITED,5150 PART PYMT,10-May-24,9761.33,0,57830,Non-Delegated Statements,170000              Education,A,2024,2
211,"Children, Schools and Family",CANBURY SCHOOL LIMITED,5151 PART PYMT,10-May-24,5225.67,0,57830,Non-Delegated Statements,170000              Education,A,2024,2
212,"Children, Schools and Family",CANBURY SCHOOL LIMITED,5144 PART PYMT,10-May-24,12132.17,0,57830,Non-Delegated Statements,170000              Education,A,2024,2
213,Community and Housing,WALSINGHAM,1155866,08-May-24,5890.6,0,58466,Learning Disabilities Placemnt,321017              Nursing & Residential Care Homes,A,2024,2
214,Community and Housing,WALSINGHAM,1155922,08-May-24,7221.64,0,58466,Learning Disabilities Placemnt,321017              Nursing & Residential Care Homes,A,2024,2
215,Community and Housing,WALSINGHAM,1155965,08-May-24,3025.4,0,58466,Learning Disabilities Placemnt,321017              Nursing & Residential Care Homes,A,2024,2
216,Community and Housing,WALSINGHAM,1155990,08-May-24,7292.52,0,58466,Learning Disabilities Placemnt,321017              Nursing & Residential Care Homes,A,2024,2
217,Community and Housing,WALSINGHAM,1156039,08-May-24,5754.68,0,58466,Learning Disabilities Placemnt,321017              Nursing & Residential Care Homes,A,2024,2
218,Community and Housing,WALSINGHAM,1156094,08-May-24,7991.72,0,58466,Learning Disabilities Placemnt,321017              Nursing & Residential Care Homes,A,2024,2
219,Community and Housing,HATS GROUP LTD,227867,08-May-24,1661.52,276.92,58532,Learning Disabilities Placemnt,360000              Passenger Transport,A,2024,2
220,Community and Housing,CARE UK,1155750,08-May-24,3568.72,0,58851,Older People Placements - East,321017              Nursing & Residential Care Homes,A,2024,2
221,Community and Housing,CARE UK,1155753,08-May-24,4385.84,0,58851,Older People Placements - East,321017              Nursing & Residential Care Homes,A,2024,2
222,Community and Housing,CARE UK,1155798,08-May-24,4385.84,0,58851,Older People Placements - East,321017              Nursing & Residential Care Homes,A,2024,2
223,Community and Housing,CARE UK,1155823,08-May-24,4104.4,0,58851,Older People Placements - East,321017              Nursing & Residential Care Homes,A,2024,2
224,Community and Housing,CARE UK,1155845,08-May-24,4104.4,0,58851,Older People Placements - East,321017              Nursing & Residential Care Homes,A,2024,2
225,Community and Housing,CARE UK,1155903,08-May-24,4385.84,0,58851,Older People Placements - East,321017              Nursing & Residential Care Homes,A,2024,2
226,Community and Housing,CARE UK,1155989,08-May-24,4560,0,58851,Older People Placements - East,321017              Nursing & Residential Care Homes,A,2024,2
227,Community and Housing,CARE UK,1156032,08-May-24,4385.84,0,58851,Older People Placements - East,321017              Nursing & Residential Care Homes,A,2024,2
228,Community and Housing,CARE UK,1156037,08-May-24,4385.84,0,58851,Older People Placements - East,321017              Nursing & Residential Care Homes,A,2024,2
229,Community and Housing,CARE UK,1156061,08-May-24,4385.84,0,58851,Older People Placements - East,321017              Nursing & Residential Care Homes,A,2024,2
230,Community and Housing,CARE UK,1156066,08-May-24,4364.8,0,58851,Older People Placements - East,321017              Nursing & Residential Care Homes,A,2024,2
231,Community and Housing,CARE UK,1156079,08-May-24,4104.4,0,58851,Older People Placements - East,321017              Nursing & Residential Care Homes,A,2024,2
232,Community and Housing,CARE UK,1156126,08-May-24,4340,0,58851,Older People Placements - East,321017              Nursing & Residential Care Homes,A,2024,2
233,Community and Housing,CARE UK,1156129,08-May-24,3568.72,0,58851,Older People Placements - East,321017              Nursing & Residential Care Homes,A,2024,2
234,Community and Housing,FRIENDS IN ST HELIER,OP ACTIVITIES,16-May-24,25068.33,0,61126,Public Health Main,200000              Financial Services,A,2024,2
235,Environment and Regeneration,BRITISH TELECOMMUNICATIONS PLC,A251351,21-May-24,1034.88,172.48,62082,Footpath Crossings,270000              Information Communication Technology,A,2024,2
236,Corporate Services,BRITISH TELECOMMUNICATIONS PLC,Q091IT,03-Jun-24,14138.6,2356.43,62082,IT-Telecomms,270000              Information Communication Technology,A,2024,2
237,Community and Housing,RUSHTON WORKWEAR LTD,57396,15-May-24,729.54,121.59,62131,Com Care Placement Contingency,140000              Clothing,A,2024,2
238,Corporate Services,EDE'S (U.K.) LTD,100387,28-May-24,834.13,139.02,62345,Non-Local Election Expenses?,190000              Facilities & Management Services,A,2024,2
239,Community and Housing,BARONS LODGE NURSING HOME,1155828,08-May-24,4800,0,62371,Older People Placements - East,321017              Nursing & Residential Care Homes,A,2024,2
240,Community and Housing,BARONS LODGE NURSING HOME,1155906,08-May-24,4795.28,0,62371,Older People Placements - East,321017              Nursing & Residential Care Homes,A,2024,2
241,Community and Housing,BARONS LODGE NURSING HOME,1155920,08-May-24,3668.12,0,62371,Older People Placements - East,321017              Nursing & Residential Care Homes,A,2024,2
242,Community and Housing,BARONS LODGE NURSING HOME,1155996,08-May-24,4730.6,0,62371,Older People Placements - East,321017              Nursing & Residential Care Homes,A,2024,2
243,Community and Housing,BARONS LODGE NURSING HOME,1156003,08-May-24,3799.68,0,62371,Mental Health Placements,321017              Nursing & Residential Care Homes,A,2024,2
244,Community and Housing,BARONS LODGE NURSING HOME,1156011,08-May-24,4557,0,62371,Mental Health Placements,321017              Nursing & Residential Care Homes,A,2024,2
245,Community and Housing,BARONS LODGE NURSING HOME,1156012,08-May-24,4730.6,0,62371,Older People Placements - East,321017              Nursing & Residential Care Homes,A,2024,2
246,Community and Housing,BARONS LODGE NURSING HOME,1156026,08-May-24,4864.68,0,62371,Older People Placements - East,321017              Nursing & Residential Care Homes,A,2024,2
247,Community and Housing,BARONS LODGE NURSING HOME,1156070,08-May-24,4360,0,62371,Mental Health Placements,321017              Nursing & Residential Care Homes,A,2024,2
248,Community and Housing,BARONS LODGE NURSING HOME,1156074,08-May-24,4795.28,0,62371,Older People Placements - East,321017              Nursing & Residential Care Homes,A,2024,2
249,Community and Housing,BARONS LODGE NURSING HOME,1156075,08-May-24,4130.8,0,62371,Learning Disabilities Placemnt,321017              Nursing & Residential Care Homes,A,2024,2
250,Community and Housing,BARONS LODGE NURSING HOME,1156086,08-May-24,4864.68,0,62371,Mental Health Placements,321017              Nursing & Residential Care Homes,A,2024,2
251,Community and Housing,BARONS LODGE NURSING HOME,1156095,08-May-24,5272.68,0,62371,Older People Placements - East,321017              Nursing & Residential Care Homes,A,2024,2
252,Community and Housing,BARONS LODGE NURSING HOME,1156121,08-May-24,3864.36,0,62371,Older People Placements - East,321017              Nursing & Residential Care Homes,A,2024,2
253,Community and Housing,BARONS LODGE NURSING HOME,1166475,22-May-24,2400,0,62371,Older People Placements - East,321017              Nursing & Residential Care Homes,A,2024,2
254,Community and Housing,BARONS LODGE NURSING HOME,1166538,22-May-24,5559,0,62371,Mental Health Placements,321017              Nursing & Residential Care Homes,A,2024,2
255,Community and Housing,ATTIC THEATRE COMPANY,SINGING AND DANC,16-May-24,6419,0,62620,Public Health Main,190000              Facilities & Management Services,A,2024,2
256,Community and Housing,ATTIC THEATRE COMPANY,INV-0166,17-May-24,2340,0,62620,PH- Borough of Sport,190000              Facilities & Management Services,A,2024,2
257,Community and Housing,SANCTUARY CARE LTD,1155778,08-May-24,3117.52,0,63458,Learning Disabilities Placemnt,321017              Nursing & Residential Care Homes,A,2024,2
258,Community and Housing,THE REGARD PARTNERSHIP LTD,1155768,08-May-24,7156,0,63796,Learning Disabilities Placemnt,321017              Nursing & Residential Care Homes,A,2024,2
259,Community and Housing,THE REGARD PARTNERSHIP LTD,1155864,08-May-24,6568.64,0,63796,Learning Disabilities Placemnt,321017              Nursing & Residential Care Homes,A,2024,2
260,Community and Housing,THE REGARD PARTNERSHIP LTD,1155878,08-May-24,10504.92,0,63796,Learning Disabilities Placemnt,321017              Nursing & Residential Care Homes,A,2024,2
261,Community and Housing,THE REGARD PARTNERSHIP LTD,1155893,08-May-24,6255.04,0,63796,Learning Disabilities Placemnt,321017              Nursing & Residential Care Homes,A,2024,2
262,Community and Housing,THE REGARD PARTNERSHIP LTD,1155993,08-May-24,6647.28,0,63796,Learning Disabilities Placemnt,321017              Nursing & Residential Care Homes,A,2024,2
263,Community and Housing,THE REGARD PARTNERSHIP LTD,1156096,08-May-24,5317.84,0,63796,Learning Disabilities Placemnt,321017              Nursing & Residential Care Homes,A,2024,2
264,"Children, Schools and Family",MERTON MUSIC FOUNDATION,INV-00681,03-Jun-24,28612.92,0,71535,PupilPremium- Virtual School,290000              Arts & Leisure Services,A,2024,2
265,"Children, Schools and Family",INTEGRATED SERVICES PROGRAMME,11102,16-May-24,6630,0,72728,Placements Under 18,321100              Social Community Care Supplies & Services - Children,A,2024,2
266,"Children, Schools and Family",ETHELBERT SPECIALIST HOMES LTD,BANSELL-MCC20524,21-May-24,840,0,72942,PupilPremium- Virtual School,321100              Social Community Care Supplies & Services - Children,A,2024,2
267,Community and Housing,BRANDON TRUST,1155774,08-May-24,4398.6,0,76126,Learning Disabilities Placemnt,321017              Nursing & Residential Care Homes,A,2024,2
268,"Children, Schools and Family",NESCOT,337115,22-May-24,4883.86,0,76517,Non-Maintained Post 16 SEN,170000              Education,A,2024,2
269,Unassigned,LONDON BOROUGH OF SUTTON,BAILIFF APR-2024,10-May-24,76994.74,0,76615,Corporate Services,OLA,A,2024,2
270,Unassigned,POST OFFICE LTD,CFA065MERTONPO4,08-May-24,15686.22,0,77066,Adults Social Care,200000              Financial Services,A,2024,2
271,Unassigned,POST OFFICE LTD,CFA065MERTON2425,21-May-24,14362.5,0,77066,Adults Social Care,200000              Financial Services,A,2024,2
272,Unassigned,POST OFFICE LTD,CFA06524/25PO6,31-May-24,15379.62,0,77066,Adults Social Care,200000              Financial Services,A,2024,2
273,Community and Housing,ABBEY HOUSE RESIDENTIAL HOMES,1155775,08-May-24,4774,0,78937,Older People Placements - East,321017              Nursing & Residential Care Homes,A,2024,2
274,Community and Housing,ABBEY HOUSE RESIDENTIAL HOMES,1155794,08-May-24,4774,0,78937,Older People Placements - East,321017              Nursing & Residential Care Homes,A,2024,2
275,Corporate Services,ANTALIS,6700506450,29-May-24,549.72,91.62,81623,PrintUnit-HighVolPhtcopying,190000              Facilities & Management Services,A,2024,2
276,Community and Housing,REDACTED PERSONAL DATA,1163645,21-May-24,6362.9,0,81639,Older People Placements - East,DIRECT PAYMENTS,R,2024,2
277,Corporate Services,IRON MOUNTAIN (UK) LTD,35000078,20-May-24,1992.58,332.1,82409,IT-Telecomms,270000              Information Communication Technology,A,2024,2
278,Environment and Regeneration,S.GRUNDON (WASTE) LTD.,W159060,20-May-24,822.02,137,82593,Waste Disposal,180000              Environmental Services,A,2024,2
279,Corporate Services,REDACTED PERSONAL DATA,INVJD227,13-May-24,1050,175,83383,SLLP - Disbursements,280000              Legal Services,R,2024,2
280,Unassigned,MALMESBURY PRIMARY SCHOOL,SCHOOLS 2425/2 A,07-May-24,179387.63,0,83593,Schools,170000              Education,A,2024,2
281,Environment and Regeneration,NEWSQUEST MEDIA GROUP LTD,45054726,27-May-24,2820.64,470.11,85566,Tr Man & Accid Sch,190000              Facilities & Management Services,A,2024,2
282,Environment and Regeneration,NEWSQUEST MEDIA GROUP LTD,45054955,27-May-24,2475.25,412.54,85566,Operational Running Costs,190000              Facilities & Management Services,A,2024,2
283,Environment and Regeneration,NEWSQUEST MEDIA GROUP LTD,44992943,21-May-24,921.02,153.5,85566,Development Control,190000              Facilities & Management Services,A,2024,2
284,Environment and Regeneration,NEWSQUEST MEDIA GROUP LTD,45038990,21-May-24,978.59,163.1,85566,Development Control,190000              Facilities & Management Services,A,2024,2
285,Environment and Regeneration,NEWSQUEST MEDIA GROUP LTD,45087161,21-May-24,1151.28,191.88,85566,Development Control,190000              Facilities & Management Services,A,2024,2
286,Environment and Regeneration,NEWSQUEST MEDIA GROUP LTD,45127304,21-May-24,1151.28,191.88,85566,Development Control,190000              Facilities & Management Services,A,2024,2
287,"Children, Schools and Family",LONDON GRID FOR LEARNING TRUST,2020019441,10-May-24,9567.6,1594.6,90449,Schools Admin & Pupil Benefits,270000              Information Communication Technology,A,2024,2
288,Community and Housing,Libraries Connected,3559,30-May-24,567.6,94.6,92250,Media Fund,200000              Financial Services,A,2024,2
289,Community and Housing,THE GARWOOD FOUNDATION,MW-DFMAY24,21-May-24,1180,0,92268,Older People Placements - East,321000              Social Community Care Supplies & Services - Adult,A,2024,2
290,Community and Housing,Allied Healthcare,2401/38,02-May-24,1213.82,0,92896,Phys/Sens Placements - East,321000              Social Community Care Supplies & Services - Adult,A,2024,2
291,Community and Housing,Allied Healthcare,2401/55,02-May-24,2408.32,0,92896,Older People Placements - East,321000              Social Community Care Supplies & Services - Adult,A,2024,2
292,Community and Housing,Allied Healthcare,2401/70,02-May-24,2385,0,92896,Older People Placements - East,321000              Social Community Care Supplies & Services - Adult,A,2024,2
293,Community and Housing,Allied Healthcare,2401/12,02-May-24,1431.86,0,92896,Older People Placements - East,321000              Social Community Care Supplies & Services - Adult,A,2024,2
294,Community and Housing,Allied Healthcare,2401/68,02-May-24,2346.46,0,92896,Older People Placements - East,321000              Social Community Care Supplies & Services - Adult,A,2024,2
295,Community and Housing,Allied Healthcare,2401/10,02-May-24,935.45,0,92896,Older People Placements - East,321000              Social Community Care Supplies & Services - Adult,A,2024,2
296,Community and Housing,Allied Healthcare,2401/24,02-May-24,881.19,0,92896,Older People Placements - East,321000              Social Community Care Supplies & Services - Adult,A,2024,2
297,Community and Housing,Allied Healthcare,2401/62,02-May-24,3112.6,0,92896,Older People Placements - East,321000              Social Community Care Supplies & Services - Adult,A,2024,2
298,Community and Housing,Allied Healthcare,2401/42,02-May-24,878.58,0,92896,Older People Placements - East,321000              Social Community Care Supplies & Services - Adult,A,2024,2
299,Community and Housing,Allied Healthcare,2401/78,02-May-24,850.64,0,92896,Older People Placements - East,321000              Social Community Care Supplies & Services - Adult,A,2024,2
300,Community and Housing,Allied Healthcare,2401/14,02-May-24,2417.02,0,92896,Older People Placements - East,321000              Social Community Care Supplies & Services - Adult,A,2024,2
301,Community and Housing,Allied Healthcare,2401/84,02-May-24,860.89,0,92896,Older People Placements - East,321000              Social Community Care Supplies & Services - Adult,A,2024,2
302,Community and Housing,Allied Healthcare,2401/5,02-May-24,870.99,0,92896,Older People Placements - East,321000              Social Community Care Supplies & Services - Adult,A,2024,2
303,Community and Housing,Allied Healthcare,2401/25,02-May-24,1195.5,0,92896,Older People Placements - East,321000              Social Community Care Supplies & Services - Adult,A,2024,2
304,Community and Housing,Allied Healthcare,2401/1,02-May-24,618.21,0,92896,Older People Placements - East,321000              Social Community Care Supplies & Services - Adult,A,2024,2
305,Community and Housing,Allied Healthcare,2401/36,02-May-24,691.24,0,92896,Older People Placements - East,321000              Social Community Care Supplies & Services - Adult,A,2024,2
306,Community and Housing,Allied Healthcare,2401/3,02-May-24,862.32,0,92896,Older People Placements - East,321000              Social Community Care Supplies & Services - Adult,A,2024,2
307,Community and Housing,Allied Healthcare,2401/80,02-May-24,561.11,0,92896,Older People Placements - East,321000              Social Community Care Supplies & Services - Adult,A,2024,2
308,Community and Housing,Allied Healthcare,2401/58,02-May-24,885.04,0,92896,Older People Placements - East,321000              Social Community Care Supplies & Services - Adult,A,2024,2
309,Community and Housing,Allied Healthcare,2401/47,02-May-24,859.34,0,92896,Older People Placements - East,321000              Social Community Care Supplies & Services - Adult,A,2024,2
310,Community and Housing,Allied Healthcare,2401/53,02-May-24,2408.15,0,92896,Older People Placements - East,321000              Social Community Care Supplies & Services - Adult,A,2024,2
311,Community and Housing,Allied Healthcare,2401/57,02-May-24,857.83,0,92896,Older People Placements - East,321000              Social Community Care Supplies & Services - Adult,A,2024,2
312,Community and Housing,Allied Healthcare,2401/63,02-May-24,1222.68,0,92896,Older People Placements - East,321000              Social Community Care Supplies & Services - Adult,A,2024,2
313,Community and Housing,Allied Healthcare,2401/77,02-May-24,1127.28,0,92896,Older People Placements - East,321000              Social Community Care Supplies & Services - Adult,A,2024,2
314,Community and Housing,Allied Healthcare,2401/50,02-May-24,2423.14,0,92896,Older People Placements - East,321000              Social Community Care Supplies & Services - Adult,A,2024,2
315,Community and Housing,Allied Healthcare,2401/6,02-May-24,1510.92,0,92896,Older People Placements - East,321000              Social Community Care Supplies & Services - Adult,A,2024,2
316,Community and Housing,Allied Healthcare,2401/31,02-May-24,4350.88,0,92896,Older People Placements - East,321000              Social Community Care Supplies & Services - Adult,A,2024,2
317,Community and Housing,Allied Healthcare,2401/13,02-May-24,971.18,0,92896,Older People Placements - East,321000              Social Community Care Supplies & Services - Adult,A,2024,2
318,Community and Housing,Allied Healthcare,2401/30,02-May-24,1030,0,92896,Older People Placements - East,321000              Social Community Care Supplies & Services - Adult,A,2024,2
319,Community and Housing,Allied Healthcare,2401/34,02-May-24,1183.93,0,92896,Phys/Sens Placements - East,321000              Social Community Care Supplies & Services - Adult,A,2024,2
320,Community and Housing,Allied Healthcare,2401/9,02-May-24,859.57,0,92896,Older People Placements - East,321000              Social Community Care Supplies & Services - Adult,A,2024,2
321,Community and Housing,Allied Healthcare,2401/22,02-May-24,796.94,0,92896,Phys/Sens Placements - East,321000              Social Community Care Supplies & Services - Adult,A,2024,2
322,Community and Housing,Allied Healthcare,2401/46,02-May-24,519.6,0,92896,Older People Placements - East,321000              Social Community Care Supplies & Services - Adult,A,2024,2
323,Community and Housing,Allied Healthcare,2401/83,02-May-24,837.87,0,92896,Older People Placements - East,321000              Social Community Care Supplies & Services - Adult,A,2024,2
324,Community and Housing,Allied Healthcare,2401/81,02-May-24,529.02,0,92896,Older People Placements - East,321000              Social Community Care Supplies & Services - Adult,A,2024,2
325,Community and Housing,Allied Healthcare,2401/67,02-May-24,2473.18,0,92896,Older People Placements - East,321000              Social Community Care Supplies & Services - Adult,A,2024,2
326,Community and Housing,Allied Healthcare,2401/60,02-May-24,911.94,0,92896,Older People Placements - East,321000              Social Community Care Supplies & Services - Adult,A,2024,2
327,Community and Housing,Allied Healthcare,2401/15,02-May-24,1713.69,0,92896,Older People Placements - East,321000              Social Community Care Supplies & Services - Adult,A,2024,2
328,Community and Housing,Allied Healthcare,2401/61,02-May-24,970.53,0,92896,Older People Placements - East,321000              Social Community Care Supplies & Services - Adult,A,2024,2
329,Community and Housing,Allied Healthcare,2401/49,02-May-24,2340.48,0,92896,Older People Placements - East,321000              Social Community Care Supplies & Services - Adult,A,2024,2
330,Community and Housing,Allied Healthcare,2401/4,02-May-24,1406.35,0,92896,Older People Placements - East,321000              Social Community Care Supplies & Services - Adult,A,2024,2
331,Community and Housing,Allied Healthcare,2401/52,02-May-24,504.41,0,92896,Older People Placements - East,321000              Social Community Care Supplies & Services - Adult,A,2024,2
332,Community and Housing,Allied Healthcare,2401/66,02-May-24,787.73,0,92896,Older People Placements - East,321000              Social Community Care Supplies & Services - Adult,A,2024,2
333,Community and Housing,Allied Healthcare,2401/32,02-May-24,652.56,0,92896,Older People Placements - East,321000              Social Community Care Supplies & Services - Adult,A,2024,2
334,Community and Housing,Allied Healthcare,2401/44,02-May-24,876.94,0,92896,Older People Placements - East,321000              Social Community Care Supplies & Services - Adult,A,2024,2
335,Community and Housing,Allied Healthcare,2401/74,02-May-24,3117.52,0,92896,Older People Placements - East,321000              Social Community Care Supplies & Services - Adult,A,2024,2
336,Community and Housing,Allied Healthcare,2401/35,02-May-24,605.04,0,92896,Learning Disabilities Placemnt,321000              Social Community Care Supplies & Services - Adult,A,2024,2
337,Community and Housing,Allied Healthcare,2401/23,02-May-24,885.31,0,92896,Older People Placements - East,321000              Social Community Care Supplies & Services - Adult,A,2024,2
338,Community and Housing,Allied Healthcare,2401/56,02-May-24,617.97,0,92896,Older People Placements - East,321000              Social Community Care Supplies & Services - Adult,A,2024,2
339,Community and Housing,Allied Healthcare,2401/19,02-May-24,1562.38,0,92896,Older People Placements - East,321000              Social Community Care Supplies & Services - Adult,A,2024,2
340,Community and Housing,Allied Healthcare,2401/17,02-May-24,922.47,0,92896,Older People Placements - East,321000              Social Community Care Supplies & Services - Adult,A,2024,2
341,Community and Housing,Allied Healthcare,2401/20,02-May-24,1183.02,0,92896,Older People Placements - East,321000              Social Community Care Supplies & Services - Adult,A,2024,2
342,Community and Housing,Allied Healthcare,2401/26,02-May-24,1018.24,0,92896,Phys/Sens Placements - East,321000              Social Community Care Supplies & Services - Adult,A,2024,2
343,Community and Housing,Allied Healthcare,2401/29,02-May-24,670.55,0,92896,Phys/Sens Placements - East,321000              Social Community Care Supplies & Services - Adult,A,2024,2
344,Community and Housing,Allied Healthcare,2401/48,02-May-24,1544.15,0,92896,Older People Placements - East,321000              Social Community Care Supplies & Services - Adult,A,2024,2
345,Community and Housing,Allied Healthcare,4871077798A/33,27-May-24,1251.93,0,92896,Phys/Sens Placements - East,321000              Social Community Care Supplies & Services - Adult,A,2024,2
346,Community and Housing,Allied Healthcare,4871077798A/48,27-May-24,2533.07,0,92896,Older People Placements - East,321000              Social Community Care Supplies & Services - Adult,A,2024,2
347,Community and Housing,Allied Healthcare,4871077798A/61,27-May-24,2453.28,0,92896,Older People Placements - East,321000              Social Community Care Supplies & Services - Adult,A,2024,2
348,Community and Housing,Allied Healthcare,4871077798A/10,27-May-24,1443.33,0,92896,Older People Placements - East,321000              Social Community Care Supplies & Services - Adult,A,2024,2
349,Community and Housing,Allied Healthcare,4871077798A/59,27-May-24,2392.36,0,92896,Older People Placements - East,321000              Social Community Care Supplies & Services - Adult,A,2024,2
350,Community and Housing,Allied Healthcare,4871077798A/8,27-May-24,811.15,0,92896,Older People Placements - East,321000              Social Community Care Supplies & Services - Adult,A,2024,2
351,Community and Housing,Allied Healthcare,4871077798A/24,27-May-24,1271.58,0,92896,Older People Placements - East,321000              Social Community Care Supplies & Services - Adult,A,2024,2
352,Community and Housing,Allied Healthcare,4871077798A/21,27-May-24,529.93,0,92896,Older People Placements - East,321000              Social Community Care Supplies & Services - Adult,A,2024,2
353,Community and Housing,Allied Healthcare,4871077798A/54,27-May-24,3266.65,0,92896,Older People Placements - East,321000              Social Community Care Supplies & Services - Adult,A,2024,2
354,Community and Housing,Allied Healthcare,4871077798A/36,27-May-24,884.37,0,92896,Older People Placements - East,321000              Social Community Care Supplies & Services - Adult,A,2024,2
355,Community and Housing,Allied Healthcare,4871077798A/68,27-May-24,894.19,0,92896,Older People Placements - East,321000              Social Community Care Supplies & Services - Adult,A,2024,2
356,Community and Housing,Allied Healthcare,4871077798A/12,27-May-24,2500.65,0,92896,Older People Placements - East,321000              Social Community Care Supplies & Services - Adult,A,2024,2
357,Community and Housing,Allied Healthcare,4871077798A/74,27-May-24,908.68,0,92896,Older People Placements - East,321000              Social Community Care Supplies & Services - Adult,A,2024,2
358,Community and Housing,Allied Healthcare,4871077798A/22,27-May-24,1265.22,0,92896,Older People Placements - East,321000              Social Community Care Supplies & Services - Adult,A,2024,2
359,Community and Housing,Allied Healthcare,4871077798A/1,27-May-24,717.41,0,92896,Older People Placements - East,321000              Social Community Care Supplies & Services - Adult,A,2024,2
360,Community and Housing,Allied Healthcare,4871077798A/32,27-May-24,711,0,92896,Older People Placements - East,321000              Social Community Care Supplies & Services - Adult,A,2024,2
361,Community and Housing,Allied Healthcare,4871077798A/3,27-May-24,903.98,0,92896,Older People Placements - East,321000              Social Community Care Supplies & Services - Adult,A,2024,2
362,Community and Housing,Allied Healthcare,4871077798A/70,27-May-24,548.71,0,92896,Older People Placements - East,321000              Social Community Care Supplies & Services - Adult,A,2024,2
363,Community and Housing,Allied Healthcare,4871077798A/51,27-May-24,898.88,0,92896,Older People Placements - East,321000              Social Community Care Supplies & Services - Adult,A,2024,2
364,Community and Housing,Allied Healthcare,4871077798A/40,27-May-24,872.43,0,92896,Older People Placements - East,321000              Social Community Care Supplies & Services - Adult,A,2024,2
365,Community and Housing,Allied Healthcare,4871077798A/46,27-May-24,2499.35,0,92896,Older People Placements - East,321000              Social Community Care Supplies & Services - Adult,A,2024,2
366,Community and Housing,Allied Healthcare,4871077798A/50,27-May-24,911.24,0,92896,Older People Placements - East,321000              Social Community Care Supplies & Services - Adult,A,2024,2
367,Community and Housing,Allied Healthcare,4871077798A/55,27-May-24,1269.51,0,92896,Older People Placements - East,321000              Social Community Care Supplies & Services - Adult,A,2024,2
368,Community and Housing,Allied Healthcare,4871077798A/67,27-May-24,1235.37,0,92896,Older People Placements - East,321000              Social Community Care Supplies & Services - Adult,A,2024,2
369,Community and Housing,Allied Healthcare,4871077798A/42,27-May-24,2593.42,0,92896,Older People Placements - East,321000              Social Community Care Supplies & Services - Adult,A,2024,2
370,Community and Housing,Allied Healthcare,4871077798A/6,27-May-24,1594.53,0,92896,Older People Placements - East,321000              Social Community Care Supplies & Services - Adult,A,2024,2
371,Community and Housing,Allied Healthcare,4871077798A/28,27-May-24,4476.82,0,92896,Older People Placements - East,321000              Social Community Care Supplies & Services - Adult,A,2024,2
372,Community and Housing,Allied Healthcare,4871077798A/11,27-May-24,961.49,0,92896,Older People Placements - East,321000              Social Community Care Supplies & Services - Adult,A,2024,2
373,Community and Housing,Allied Healthcare,4871077798A/27,27-May-24,1074.78,0,92896,Older People Placements - East,321000              Social Community Care Supplies & Services - Adult,A,2024,2
374,Community and Housing,Allied Healthcare,4871077798A/30,27-May-24,554.22,0,92896,Phys/Sens Placements - East,321000              Social Community Care Supplies & Services - Adult,A,2024,2
375,Community and Housing,Allied Healthcare,4871077798A/7,27-May-24,870.73,0,92896,Older People Placements - East,321000              Social Community Care Supplies & Services - Adult,A,2024,2
376,Community and Housing,Allied Healthcare,4871077798A/19,27-May-24,769.35,0,92896,Phys/Sens Placements - East,321000              Social Community Care Supplies & Services - Adult,A,2024,2
377,Community and Housing,Allied Healthcare,4871077798A/71,27-May-24,555.95,0,92896,Older People Placements - East,321000              Social Community Care Supplies & Services - Adult,A,2024,2
378,Community and Housing,Allied Healthcare,4871077798A/60,27-May-24,730.6,0,92896,Older People Placements - East,321000              Social Community Care Supplies & Services - Adult,A,2024,2
379,Community and Housing,Allied Healthcare,4871077798A/58,27-May-24,2611.76,0,92896,Older People Placements - East,321000              Social Community Care Supplies & Services - Adult,A,2024,2
380,Community and Housing,Allied Healthcare,4871077798A/53,27-May-24,894.61,0,92896,Older People Placements - East,321000              Social Community Care Supplies & Services - Adult,A,2024,2
381,Community and Housing,Allied Healthcare,4871077798A/13,27-May-24,1783.23,0,92896,Older People Placements - East,321000              Social Community Care Supplies & Services - Adult,A,2024,2
382,Community and Housing,Allied Healthcare,4871077798A/41,27-May-24,2529.58,0,92896,Older People Placements - East,321000              Social Community Care Supplies & Services - Adult,A,2024,2
383,Community and Housing,Allied Healthcare,4871077798A/23,27-May-24,1059.05,0,92896,Phys/Sens Placements - East,321000              Social Community Care Supplies & Services - Adult,A,2024,2
384,Community and Housing,Allied Healthcare,4871077798A/4,27-May-24,1579.65,0,92896,Older People Placements - East,321000              Social Community Care Supplies & Services - Adult,A,2024,2
385,Community and Housing,Allied Healthcare,4871077798A/45,27-May-24,1266.93,0,92896,Older People Placements - East,321000              Social Community Care Supplies & Services - Adult,A,2024,2
386,Community and Housing,Allied Healthcare,4871077798A/29,27-May-24,900.6,0,92896,Older People Placements - East,321000              Social Community Care Supplies & Services - Adult,A,2024,2
387,Community and Housing,Allied Healthcare,4871077798A/38,27-May-24,910.42,0,92896,Older People Placements - East,321000              Social Community Care Supplies & Services - Adult,A,2024,2
388,Community and Housing,Allied Healthcare,4871077798A/15,27-May-24,1009.19,0,92896,Older People Placements - East,321000              Social Community Care Supplies & Services - Adult,A,2024,2
389,Community and Housing,Allied Healthcare,4871077798A/65,27-May-24,3261.05,0,92896,Older People Placements - East,321000              Social Community Care Supplies & Services - Adult,A,2024,2
390,Community and Housing,Allied Healthcare,4871077798A/31,27-May-24,827.31,0,92896,Learning Disabilities Placemnt,321000              Social Community Care Supplies & Services - Adult,A,2024,2
391,Community and Housing,Allied Healthcare,4871077798A/20,27-May-24,1215.37,0,92896,Older People Placements - East,321000              Social Community Care Supplies & Services - Adult,A,2024,2
392,Community and Housing,Allied Healthcare,4871077798A/16,27-May-24,2361.17,0,92896,Older People Placements - East,321000              Social Community Care Supplies & Services - Adult,A,2024,2
393,Community and Housing,Allied Healthcare,4871077798A/26,27-May-24,778.75,0,92896,Phys/Sens Placements - East,321000              Social Community Care Supplies & Services - Adult,A,2024,2
394,Community and Housing,Allied Healthcare,4871077798A/49,27-May-24,657.73,0,92896,Older People Placements - East,321000              Social Community Care Supplies & Services - Adult,A,2024,2
395,Community and Housing,Allied Healthcare,4871077798A/73,27-May-24,863.07,0,92896,Phys/Sens Placements - East,321000              Social Community Care Supplies & Services - Adult,A,2024,2
396,Community and Housing,CARE MANAGEMENT GROUP,1155759,08-May-24,4593.88,0,93533,Mental Health Placements,321017              Nursing & Residential Care Homes,A,2024,2
397,Community and Housing,CARE MANAGEMENT GROUP,1155826,08-May-24,6812.92,0,93533,Learning Disabilities Placemnt,321017              Nursing & Residential Care Homes,A,2024,2
398,Community and Housing,CARE MANAGEMENT GROUP,1155930,08-May-24,6441.2,0,93533,Learning Disabilities Placemnt,321017              Nursing & Residential Care Homes,A,2024,2
399,Community and Housing,CARE MANAGEMENT GROUP,1155972,08-May-24,9476,0,93533,Phys/Sens Placements - East,321017              Nursing & Residential Care Homes,A,2024,2
400,Community and Housing,CARE MANAGEMENT GROUP,1156005,08-May-24,8367.64,0,93533,Learning Disabilities Placemnt,321017              Nursing & Residential Care Homes,A,2024,2
401,Community and Housing,A AND R CARE LTD,1155758,08-May-24,4185.84,0,94357,Older People Placements - East,321017              Nursing & Residential Care Homes,A,2024,2
402,Community and Housing,A AND R CARE LTD,1155818,08-May-24,3364.68,0,94357,Older People Placements - East,321017              Nursing & Residential Care Homes,A,2024,2
403,Community and Housing,A AND R CARE LTD,1155939,08-May-24,3827.92,0,94357,Older People Placements - East,321017              Nursing & Residential Care Homes,A,2024,2
404,Community and Housing,A AND R CARE LTD,1156059,08-May-24,3464.68,0,94357,Older People Placements - East,321017              Nursing & Residential Care Homes,A,2024,2
405,Community and Housing,A AND R CARE LTD,1156064,08-May-24,4325.28,0,94357,Older People Placements - East,321017              Nursing & Residential Care Homes,A,2024,2
406,Community and Housing,A AND R CARE LTD,1156100,08-May-24,4864.68,0,94357,Older People Placements - East,321017              Nursing & Residential Care Homes,A,2024,2
407,Community and Housing,A AND R CARE LTD,1156171,08-May-24,3889,0,94357,Phys/Sens Placements - East,321017              Nursing & Residential Care Homes,A,2024,2
408,Community and Housing,A AND R CARE LTD,1156175,08-May-24,4264.68,0,94357,Older People Placements - East,321017              Nursing & Residential Care Homes,A,2024,2
409,Community and Housing,COMMONSIDE COMMUNITY DEV TRUST,COMMUNITY CAF,16-May-24,23762.34,0,95839,Public Health Main,321000              Social Community Care Supplies & Services - Adult,A,2024,2
410,Community and Housing,Aspens Charities Ltd,1155952,08-May-24,9676,0,96019,Learning Disabilities Placemnt,321017              Nursing & Residential Care Homes,A,2024,2
411,Community and Housing,Aspens Charities Ltd,42465,22-May-24,19865.48,0,96019,Learning Disabilities Placemnt,321017              Nursing & Residential Care Homes,A,2024,2
412,Community and Housing,REDACTED PERSONAL DATA,1163491,21-May-24,5192,0,96859,Learning Disabilities Placemnt,DIRECT PAYMENTS,R,2024,2
413,Community and Housing,THE ABBEYFIELD SOCIETY,1156019,08-May-24,5386.6,0,97539,Older People Placements - East,321000              Social Community Care Supplies & Services - Adult,A,2024,2
414,Community and Housing,THE ABBEYFIELD SOCIETY,1156076,08-May-24,4000,0,97539,Older People Placements - East,321000              Social Community Care Supplies & Services - Adult,A,2024,2
415,Community and Housing,EL-SHADDAI,1167332,27-May-24,1141.52,0,97709,MH Housing Support Placements,321000              Social Community Care Supplies & Services - Adult,A,2024,2
416,Community and Housing,EL-SHADDAI,1167351,27-May-24,1426.8,0,97709,Learning Disabilities Placemnt,321000              Social Community Care Supplies & Services - Adult,A,2024,2
417,Community and Housing,EL-SHADDAI,1167356,27-May-24,1141.52,0,97709,Learning Disabilities Placemnt,321000              Social Community Care Supplies & Services - Adult,A,2024,2
418,Community and Housing,EL-SHADDAI,1167364,27-May-24,1652.52,0,97709,Mental Health Placements,321000              Social Community Care Supplies & Services - Adult,A,2024,2
419,Community and Housing,Rosenmanor Ltd,1155949,08-May-24,2924.24,0,97808,Mental Health Placements,321017              Nursing & Residential Care Homes,A,2024,2
420,Environment and Regeneration,MERTON COMMUNITY TRANSPORT,17771,13-May-24,2256,0,98164,Passenger Transport,360000              Passenger Transport,A,2024,2
421,Community and Housing,MERTON COMMUNITY TRANSPORT,17754,10-May-24,1008,168,98164,Learning Disabilities Placemnt,360000              Passenger Transport,A,2024,2
422,Community and Housing,MERTON COMMUNITY TRANSPORT,17742,10-May-24,1598.4,266.4,98164,Learning Disabilities Placemnt,360000              Passenger Transport,A,2024,2
423,Community and Housing,MERTON COMMUNITY TRANSPORT,GENERAL SUPPORT,17-May-24,24827.71,0,98164,Public Health Main,360000              Passenger Transport,A,2024,2
424,Unassigned,BEECHOLME PRIMARY ACADEMY,SCHOOLS 2425/2 A,07-May-24,7200,0,98168,Schools,170000              Education,A,2024,2
425,Community and Housing,Evolve Housing + Support,3534,14-May-24,23187.41,0,98536,Supporting People (HRS),321000              Social Community Care Supplies & Services - Adult,A,2024,2
426,Community and Housing,Evolve Housing + Support,3535,14-May-24,25484.96,0,98536,Supporting People (HRS),321000              Social Community Care Supplies & Services - Adult,A,2024,2
427,Capital,AQUANEED LIMITED,SI24032,27-May-24,13948.3,0,100408,Disabled Facilities Grant,200000              Financial Services,A,2024,2
428,Unassigned,WEST WIMBLEDON PRIMARY SCHOOL,SCHOOLS 2425/2 A,07-May-24,216106.6,0,101674,Schools,170000              Education,A,2024,2
429,Community and Housing,HILLDALE AND NORTHVIEW,1155912,08-May-24,2072.52,0,103592,Older People Placements - East,321000              Social Community Care Supplies & Services - Adult,A,2024,2
430,Community and Housing,BUPA CARE HOMES,1155692,08-May-24,753.29,0,105027,Older People Placements - East,321017              Nursing & Residential Care Homes,A,2024,2
431,Community and Housing,BUPA CARE HOMES,1155733,08-May-24,1180.46,0,105027,Older People Placements - East,321017              Nursing & Residential Care Homes,A,2024,2
432,Community and Housing,BUPA CARE HOMES,1155784,08-May-24,3631.36,0,105027,Older People Placements - East,321017              Nursing & Residential Care Homes,A,2024,2
433,Community and Housing,BUPA CARE HOMES,1155799,08-May-24,3631.36,0,105027,Older People Placements - East,321017              Nursing & Residential Care Homes,A,2024,2
434,Community and Housing,BUPA CARE HOMES,1155816,08-May-24,3422.24,0,105027,Older People Placements - East,321017              Nursing & Residential Care Homes,A,2024,2
435,Community and Housing,BUPA CARE HOMES,1155883,08-May-24,3422.24,0,105027,Older People Placements - East,321017              Nursing & Residential Care Homes,A,2024,2
436,Community and Housing,BUPA CARE HOMES,1155910,08-May-24,2933.35,0,105027,Older People Placements - East,321017              Nursing & Residential Care Homes,A,2024,2
437,Community and Housing,BUPA CARE HOMES,1155916,08-May-24,3631.36,0,105027,Older People Placements - East,321017              Nursing & Residential Care Homes,A,2024,2
438,Community and Housing,BUPA CARE HOMES,1155968,08-May-24,3631.36,0,105027,Older People Placements - East,321017              Nursing & Residential Care Homes,A,2024,2
439,Community and Housing,BUPA CARE HOMES,1155980,08-May-24,3631.36,0,105027,Older People Placements - East,321017              Nursing & Residential Care Homes,A,2024,2
440,Community and Housing,BUPA CARE HOMES,1155994,08-May-24,3631.36,0,105027,Older People Placements - East,321017              Nursing & Residential Care Homes,A,2024,2
441,Community and Housing,BUPA CARE HOMES,1155997,08-May-24,3422.24,0,105027,Older People Placements - East,321017              Nursing & Residential Care Homes,A,2024,2
442,Community and Housing,BUPA CARE HOMES,1156004,08-May-24,3631.36,0,105027,Older People Placements - East,321017              Nursing & Residential Care Homes,A,2024,2
443,Community and Housing,BUPA CARE HOMES,1156010,08-May-24,3631.36,0,105027,Older People Placements - East,321017              Nursing & Residential Care Homes,A,2024,2
444,Community and Housing,BUPA CARE HOMES,1156036,08-May-24,3631.36,0,105027,Older People Placements - East,321017              Nursing & Residential Care Homes,A,2024,2
445,Community and Housing,BUPA CARE HOMES,1156071,08-May-24,3631.36,0,105027,Mental Health Placements,321017              Nursing & Residential Care Homes,A,2024,2
446,Community and Housing,BUPA CARE HOMES,1156090,08-May-24,3422.24,0,105027,Older People Placements - East,321017              Nursing & Residential Care Homes,A,2024,2
447,Community and Housing,BUPA CARE HOMES,1156120,08-May-24,3631.36,0,105027,Older People Placements - East,321017              Nursing & Residential Care Homes,A,2024,2
448,Community and Housing,BUPA CARE HOMES,1156130,08-May-24,3631.36,0,105027,Older People Placements - East,321017              Nursing & Residential Care Homes,A,2024,2
449,Community and Housing,BUPA CARE HOMES,1156170,08-May-24,3631.36,0,105027,Older People Placements - East,321017              Nursing & Residential Care Homes,A,2024,2
450,Community and Housing,BUPA CARE HOMES,1156192,08-May-24,3422.24,0,105027,Older People Placements - East,321017              Nursing & Residential Care Homes,A,2024,2
451,Community and Housing,BUPA CARE HOMES,1166397,22-May-24,764.29,0,105027,Older People Placements - East,321017              Nursing & Residential Care Homes,A,2024,2
452,Environment and Regeneration,APSE,2425/368,28-May-24,1437.6,239.6,105284,Energy Projects,260000              Human Resources,A,2024,2
453,Environment and Regeneration,APSE,2425/208,27-May-24,4441.2,740.2,105284,Waste Management,260000              Human Resources,A,2024,2
454,Community and Housing,REDACTED PERSONAL DATA,1163859,21-May-24,3286.2,0,105300,Learning Disabilities Placemnt,DIRECT PAYMENTS,R,2024,2
455,"Children, Schools and Family",NEWSCHOOLS (MERTON) LIMITED,INV000039,13-May-24,5299.2,883.2,106428, PFI Unitary Charges,200000              Financial Services,A,2024,2
456,"Children, Schools and Family",NEWSCHOOLS (MERTON) LIMITED,NSM01072,16-May-24,2786.99,464.5,106428, PFI Unitary Charges,200000              Financial Services,A,2024,2
457,Community and Housing,ASCENDIT LIFTS LTD,41738,02-May-24,757.2,126.2,107196,Occupational Therapy,"390000              Works - Construction, Repair & Maintenance",A,2024,2
458,Capital,ASCENDIT LIFTS LTD,41705,22-May-24,5800,0,107196,Disabled Facilities Grant,"390000              Works - Construction, Repair & Maintenance",A,2024,2
459,Unassigned,THE ALL ENG.LAWN TENNIS AND CROQ,T-000001670,01-May-24,8140,1356.67,108017,Corporate Services,290000              Arts & Leisure Services,A,2024,2
460,Community and Housing,REDACTED PERSONAL DATA,1167320,27-May-24,856.12,0,110403,MH Housing Support Placements,321000              Social Community Care Supplies & Services - Adult,R,2024,2
461,Community and Housing,REDACTED PERSONAL DATA,1167324,27-May-24,1141.48,0,110403,Learning Disabilities Placemnt,321000              Social Community Care Supplies & Services - Adult,R,2024,2
462,Community and Housing,REDACTED PERSONAL DATA,1167325,27-May-24,847.04,0,110403,MH Housing Support Placements,321000              Social Community Care Supplies & Services - Adult,R,2024,2
463,Community and Housing,REDACTED PERSONAL DATA,1167328,27-May-24,1141.52,0,110403,Mental Health Placements,321000              Social Community Care Supplies & Services - Adult,R,2024,2
464,Community and Housing,REDACTED PERSONAL DATA,1167333,27-May-24,847.04,0,110403,MH Housing Support Placements,321000              Social Community Care Supplies & Services - Adult,R,2024,2
465,Community and Housing,REDACTED PERSONAL DATA,1167334,27-May-24,1423.36,0,110403,Mental Health Placements,321000              Social Community Care Supplies & Services - Adult,R,2024,2
466,Community and Housing,REDACTED PERSONAL DATA,1167342,27-May-24,1652.52,0,110403,Mental Health Placements,321000              Social Community Care Supplies & Services - Adult,R,2024,2
467,Community and Housing,REDACTED PERSONAL DATA,1167345,27-May-24,847.04,0,110403,MH Housing Support Placements,321000              Social Community Care Supplies & Services - Adult,R,2024,2
468,Community and Housing,REDACTED PERSONAL DATA,1167347,27-May-24,1129.4,0,110403,Mental Health Placements,321000              Social Community Care Supplies & Services - Adult,R,2024,2
469,Community and Housing,REDACTED PERSONAL DATA,1167352,27-May-24,847.04,0,110403,MH Housing Support Placements,321000              Social Community Care Supplies & Services - Adult,R,2024,2
470,Community and Housing,REDACTED PERSONAL DATA,1167355,27-May-24,564.72,0,110403,MH Housing Support Placements,321000              Social Community Care Supplies & Services - Adult,R,2024,2
471,Community and Housing,REDACTED PERSONAL DATA,1167363,27-May-24,847.04,0,110403,Mental Health Placements,321000              Social Community Care Supplies & Services - Adult,R,2024,2
472,Community and Housing,REDACTED PERSONAL DATA,1167354,27-May-24,847.04,0,110406,Learning Disabilities Placemnt,321000              Social Community Care Supplies & Services - Adult,R,2024,2
473,"Children, Schools and Family",REDACTED PERSONAL DATA,1153821,02-May-24,514.26,0,111277,Placements Under 18,321100              Social Community Care Supplies & Services - Children,R,2024,2
474,"Children, Schools and Family",REDACTED PERSONAL DATA,1157901,10-May-24,514.26,0,111277,Placements Under 18,321100              Social Community Care Supplies & Services - Children,R,2024,2
475,"Children, Schools and Family",REDACTED PERSONAL DATA,1161384,17-May-24,514.26,0,111277,Placements Under 18,321100              Social Community Care Supplies & Services - Children,R,2024,2
476,"Children, Schools and Family",REDACTED PERSONAL DATA,1167014,23-May-24,514.26,0,111277,Placements Under 18,321100              Social Community Care Supplies & Services - Children,R,2024,2
477,"Children, Schools and Family",REDACTED PERSONAL DATA,1167058,23-May-24,563.29,0,111277,Placements Under 18,321100              Social Community Care Supplies & Services - Children,R,2024,2
478,"Children, Schools and Family",REDACTED PERSONAL DATA,1169212,31-May-24,514.26,0,111277,Placements Under 18,321100              Social Community Care Supplies & Services - Children,R,2024,2
479,Community and Housing,MEADBANK NURSING CENTRE,1156167,08-May-24,3249.88,0,113139,Older People Placements - East,321017              Nursing & Residential Care Homes,A,2024,2
480,Community and Housing,REDACTED PERSONAL DATA,1163626,21-May-24,8836.6,0,113331,Learning Disabilities Placemnt,DIRECT PAYMENTS,R,2024,2
481,Community and Housing,MIHOMECARE LIMITED,LIVE42-270764,06-May-24,5474,0,114370,Older People Placements - East,321000              Social Community Care Supplies & Services - Adult,A,2024,2
482,Community and Housing,MIHOMECARE LIMITED,LIVE42-270765,06-May-24,5474,0,114370,Learning Disabilities Placemnt,321000              Social Community Care Supplies & Services - Adult,A,2024,2
483,Community and Housing,MIHOMECARE LIMITED,LIVE42-270854,06-May-24,5474,0,114370,Older People Placements - East,321000              Social Community Care Supplies & Services - Adult,A,2024,2
484,Community and Housing,MIHOMECARE LIMITED,LIVE42-270855,06-May-24,5474,0,114370,Learning Disabilities Placemnt,321000              Social Community Care Supplies & Services - Adult,A,2024,2
485,Community and Housing,MIHOMECARE LIMITED,271013,08-May-24,5736.4,0,114370,Older People Placements - East,321000              Social Community Care Supplies & Services - Adult,A,2024,2
486,Community and Housing,MIHOMECARE LIMITED,271014,08-May-24,5736.4,0,114370,Learning Disabilities Placemnt,321000              Social Community Care Supplies & Services - Adult,A,2024,2
487,Community and Housing,REDACTED PERSONAL DATA,1167321,27-May-24,1141.52,0,114970,MH Housing Support Placements,321000              Social Community Care Supplies & Services - Adult,R,2024,2
488,Community and Housing,REDACTED PERSONAL DATA,1167330,27-May-24,847.04,0,114970,MH Housing Support Placements,321000              Social Community Care Supplies & Services - Adult,R,2024,2
489,Community and Housing,REDACTED PERSONAL DATA,1167331,27-May-24,837.48,0,114970,Mental Health Placements,321000              Social Community Care Supplies & Services - Adult,R,2024,2
490,Community and Housing,REDACTED PERSONAL DATA,1167350,27-May-24,1141.52,0,114970,MH Housing Support Placements,321000              Social Community Care Supplies & Services - Adult,R,2024,2
491,Community and Housing,REDACTED PERSONAL DATA,1167360,27-May-24,856.08,0,114970,Mental Health Placements,321000              Social Community Care Supplies & Services - Adult,R,2024,2
492,Community and Housing,GRANGE COTTAGE LIMITED,1155825,08-May-24,3400,0,117931,Older People Placements - East,321017              Nursing & Residential Care Homes,A,2024,2
493,Community and Housing,GRANGE COTTAGE LIMITED,1155988,08-May-24,3852,0,117931,Older People Placements - East,321017              Nursing & Residential Care Homes,A,2024,2
494,Community and Housing,GRANGE COTTAGE LIMITED,1156073,08-May-24,3400,0,117931,Older People Placements - East,321017              Nursing & Residential Care Homes,A,2024,2
495,Community and Housing,REDACTED PERSONAL DATA,1167326,27-May-24,856.12,0,117970,MH Housing Support Placements,321000              Social Community Care Supplies & Services - Adult,R,2024,2
496,Community and Housing,REDACTED PERSONAL DATA,1167335,27-May-24,1141.52,0,117970,Mental Health Placements,321000              Social Community Care Supplies & Services - Adult,R,2024,2
497,Community and Housing,REDACTED PERSONAL DATA,1167348,27-May-24,1141.52,0,117970,Mental Health Placements,321000              Social Community Care Supplies & Services - Adult,R,2024,2
498,Community and Housing,L'ARCHE,1156107,08-May-24,3017.8,0,118483,Learning Disabilities Placemnt,321017              Nursing & Residential Care Homes,A,2024,2
499,Community and Housing,Alexander House c/o Keychange Charity,1155843,08-May-24,3100,0,119109,Older People Placements - East,321017              Nursing & Residential Care Homes,A,2024,2
500,Community and Housing,Alexander House c/o Keychange Charity,1155898,08-May-24,6600,0,119109,Older People Placements - East,321017              Nursing & Residential Care Homes,A,2024,2
501,Community and Housing,Alexander House c/o Keychange Charity,1155917,08-May-24,3220.32,0,119109,Older People Placements - East,321017              Nursing & Residential Care Homes,A,2024,2
502,Community and Housing,Alexander House c/o Keychange Charity,1155937,08-May-24,5600,0,119109,Older People Placements - East,321017              Nursing & Residential Care Homes,A,2024,2
503,Community and Housing,Alexander House c/o Keychange Charity,1156124,08-May-24,4000,0,119109,Older People Placements - East,321017              Nursing & Residential Care Homes,A,2024,2
504,Community and Housing,Alexander House c/o Keychange Charity,1156181,08-May-24,3840,0,119109,Older People Placements - East,321017              Nursing & Residential Care Homes,A,2024,2
505,Environment and Regeneration,Flowbird Smart City UK Ltd,UI00008103,07-May-24,2732.54,455.43,119359,Operational Running Costs,350000              Street & Traffic Management,A,2024,2
506,Corporate Services,REDACTED PERSONAL DATA,134378,02-May-24,1800,300,120878,Learning and Development,260000              Human Resources,R,2024,2
507,Community and Housing,REDACTED PERSONAL DATA,1163562,21-May-24,1542.5,0,124097,Older People Placements - East,DIRECT PAYMENTS,R,2024,2
508,Community and Housing,REDACTED PERSONAL DATA,1163546,21-May-24,1642.2,0,125642,Phys/Sens Placements - East,DIRECT PAYMENTS,R,2024,2
509,Community and Housing,REDACTED PERSONAL DATA,1163749,21-May-24,1039.36,0,126189,Older People Placements - East,DIRECT PAYMENTS,R,2024,2
510,Community and Housing,REDACTED PERSONAL DATA,1163848,21-May-24,821.12,0,127266,Older People Placements - East,DIRECT PAYMENTS,R,2024,2
511,"Children, Schools and Family",REDACTED PERSONAL DATA,1153791,02-May-24,514.26,0,128736,Placements Under 18,321100              Social Community Care Supplies & Services - Children,R,2024,2
512,"Children, Schools and Family",REDACTED PERSONAL DATA,1157871,10-May-24,514.26,0,128736,Placements Under 18,321100              Social Community Care Supplies & Services - Children,R,2024,2
513,"Children, Schools and Family",REDACTED PERSONAL DATA,1161352,17-May-24,514.26,0,128736,Placements Under 18,321100              Social Community Care Supplies & Services - Children,R,2024,2
514,"Children, Schools and Family",REDACTED PERSONAL DATA,1166982,23-May-24,514.26,0,128736,Placements Under 18,321100              Social Community Care Supplies & Services - Children,R,2024,2
515,"Children, Schools and Family",REDACTED PERSONAL DATA,1169183,31-May-24,514.26,0,128736,Placements Under 18,321100              Social Community Care Supplies & Services - Children,R,2024,2
516,"Children, Schools and Family",BLESSED LTD,BR02580,01-May-24,2640,440,130228,Non-Delegated Statements,170000              Education                                                                                 Confirmed,A,2024,2
517,Community and Housing,BUPA CARE HOMES,1155791,08-May-24,6628.08,0,130491,Phys/Sens Placements - East,321017              Nursing & Residential Care Homes,A,2024,2
518,Community and Housing,BUPA CARE HOMES,1155907,08-May-24,6510.6,0,130491,Phys/Sens Placements - East,321017              Nursing & Residential Care Homes,A,2024,2
519,Corporate Services,DOMINO 4 LIMITED,D.44326,14-May-24,585,97.5,132991,Cost of Living Fund,190000              Facilities & Management Services                                                          Confirmed,A,2024,2
520,Community and Housing,DOMINO 4 LIMITED,D.44340,28-May-24,760.5,126.75,132991,PH - Adults Resources,190000              Facilities & Management Services                                                          Confirmed,A,2024,2
521,Corporate Services,DOMINO 4 LIMITED,D.44334,31-May-24,1735.5,289.25,132991,Marketing & Communication,190000              Facilities & Management Services                                                          Confirmed,A,2024,2
522,Community and Housing,VOYAGE CARE LTD,1155871,08-May-24,7192.56,0,133700,Learning Disabilities Placemnt,321017              Nursing & Residential Care Homes,A,2024,2
523,Community and Housing,VOYAGE CARE LTD,1155975,08-May-24,10048,0,133700,Learning Disabilities Placemnt,321017              Nursing & Residential Care Homes,A,2024,2
524,Corporate Services,VOCALINK,2.4999E+14,03-Jun-24,592.8,98.8,134117,Local Taxation Services,270000              Information Communication Technology,A,2024,2
525,Community and Housing,HOMECARE SERVICES LTD,INV-0064,16-May-24,5474,0,134594,Phys/Sens Placements - East,321100              Social Community Care Supplies & Services - Children,A,2024,2
526,Community and Housing,HOMECARE SERVICES LTD,INV-0543,22-May-24,5736.4,0,134594,Phys/Sens Placements - East,321100              Social Community Care Supplies & Services - Children,A,2024,2
527,Community and Housing,HOMECARE SERVICES LTD,INV-0627,22-May-24,5998.8,0,134594,Phys/Sens Placements - East,321100              Social Community Care Supplies & Services - Children,A,2024,2
528,Community and Housing,Sunrise Rehabilitation Centre,1155781,08-May-24,5213.88,0,135093,Learning Disabilities Placemnt,321017              Nursing & Residential Care Homes,A,2024,2
529,Community and Housing,Sunrise Rehabilitation Centre,1155815,08-May-24,5213.88,0,135093,Learning Disabilities Placemnt,321017              Nursing & Residential Care Homes,A,2024,2
530,Community and Housing,Sunrise Rehabilitation Centre,1155973,08-May-24,5161.52,0,135093,Learning Disabilities Placemnt,321017              Nursing & Residential Care Homes,A,2024,2
531,Community and Housing,Sunrise Rehabilitation Centre,1156091,08-May-24,5043.72,0,135093,Learning Disabilities Placemnt,321017              Nursing & Residential Care Homes,A,2024,2
532,Community and Housing,Sunrise Rehabilitation Centre,1156093,08-May-24,5174.6,0,135093,Learning Disabilities Placemnt,321017              Nursing & Residential Care Homes,A,2024,2
533,Community and Housing,Sunrise Rehabilitation Centre,1156118,08-May-24,5213.88,0,135093,Learning Disabilities Placemnt,321017              Nursing & Residential Care Homes,A,2024,2
534,Community and Housing,Sunrise Rehabilitation Centre,1156179,08-May-24,6102,0,135093,Learning Disabilities Placemnt,321017              Nursing & Residential Care Homes,A,2024,2
535,Community and Housing,Sunrise Rehabilitation Centre,1156196,08-May-24,4363.08,0,135093,Learning Disabilities Placemnt,321017              Nursing & Residential Care Homes,A,2024,2
536,Community and Housing,SW LONDON ST GEORGES NHS TRUST,P0069422,20-May-24,16670.4,0,135195,Learning Disabilities Placemnt,310000              Healthcare,A,2024,2
537,Community and Housing,MERTON VISION,DIRECT HELP - CP,16-May-24,40733.61,0,135428,Public Health Main,260000              Human Resources,A,2024,2
538,Community and Housing,REDACTED PERSONAL DATA,1163694,21-May-24,1612.64,0,135784,Phys/Sens Placements - East,DIRECT PAYMENTS,R,2024,2
539,"Children, Schools and Family",CROYDON HEALTH SERV. NHS TRUST,76686519,21-May-24,814,0,136074,Non-Delegated Statements,310000              Healthcare,A,2024,2
540,Corporate Services,ROYAL MAIL GROUP LTD,9070296925,28-May-24,11700.86,1950.14,136104,Non-Local Election Expenses?,300000              Mail Services,A,2024,2
541,Corporate Services,ROYAL MAIL GROUP LTD,9070242891,21-May-24,2340.24,390.04,136104,Non-Local Election Expenses?,300000              Mail Services,A,2024,2
542,Corporate Services,ROYAL MAIL GROUP LTD,9070355660,04-Jun-24,5237.9,872.98,136104,Non-Local Election Expenses?,300000              Mail Services,A,2024,2
543,"Children, Schools and Family",VICTOR FILMS LTD,869,30-May-24,636,106,138351, Duke of Edinburgh Awrds,170000              Education                                                                                 confirmed,A,2024,2
544,Community and Housing,REDACTED PERSONAL DATA,1163515,21-May-24,1320.76,0,139365,Phys/Sens Placements - East,DIRECT PAYMENTS,R,2024,2
545,Community and Housing,REDACTED PERSONAL DATA,1163906,21-May-24,625.6,0,140662,Phys/Sens Placements - East,DIRECT PAYMENTS,R,2024,2
546,Community and Housing,REDACTED PERSONAL DATA,1163539,21-May-24,6224.36,0,140759,Phys/Sens Placements - East,DIRECT PAYMENTS,R,2024,2
547,Community and Housing,SURREY AND BORDERS PARTNERSHIP,1155936,08-May-24,11448.72,0,140911,Learning Disabilities Placemnt,321017              Nursing & Residential Care Homes,A,2024,2
548,Community and Housing,GARWOOD FOUNDATION,1155822,08-May-24,3400,0,142358,Phys/Sens Placements - East,321017              Nursing & Residential Care Homes,A,2024,2
549,Community and Housing,REDACTED PERSONAL DATA,1167336,27-May-24,1141.52,0,143597,MH Housing Support Placements,321000              Social Community Care Supplies & Services - Adult,R,2024,2
550,Community and Housing,REDACTED PERSONAL DATA,1167339,27-May-24,1426.8,0,143597,LD Housing Support Placements,321000              Social Community Care Supplies & Services - Adult,R,2024,2
551,Community and Housing,REDACTED PERSONAL DATA,1167362,27-May-24,1586.6,0,143597,Learning Disabilities Placemnt,321000              Social Community Care Supplies & Services - Adult,R,2024,2
552,Community and Housing,REDACTED PERSONAL DATA,1163839,21-May-24,2678.78,0,144689,Learning Disabilities Placemnt,DIRECT PAYMENTS,R,2024,2
553,Community and Housing,REDACTED PERSONAL DATA,1163625,21-May-24,5474,0,145882,Learning Disabilities Placemnt,DIRECT PAYMENTS,R,2024,2
554,"Children, Schools and Family",SPEECH CENTRE,111335,08-May-24,1165.2,194.2,147920,Contact Team,270000              Information Communication Technology,A,2024,2
555,Corporate Services,SPEECH CENTRE,111369,29-May-24,667.2,111.2,147920,Policy and Strategy,270000              Information Communication Technology,A,2024,2
556,Community and Housing,GENERATE,11774,17-May-24,727.2,0,148332,Learning Disabilities Placemnt,321000              Social Community Care Supplies & Services - Adult,A,2024,2
557,Community and Housing,GENERATE,12348,20-May-24,2781,0,148332,Learning Disabilities Placemnt,321000              Social Community Care Supplies & Services - Adult,A,2024,2
558,Community and Housing,GENERATE,12349,20-May-24,751.5,0,148332,Learning Disabilities Placemnt,321000              Social Community Care Supplies & Services - Adult,A,2024,2
559,Community and Housing,GENERATE,12350,20-May-24,1854,0,148332,Learning Disabilities Placemnt,321000              Social Community Care Supplies & Services - Adult,A,2024,2
560,Community and Housing,GENERATE,12347,20-May-24,909,0,148332,Learning Disabilities Placemnt,321000              Social Community Care Supplies & Services - Adult,A,2024,2
561,Community and Housing,CHICHESTER HALL CARE HOME LTD,1156134,08-May-24,2637.2,0,148358,Older People Placements - East,321017              Nursing & Residential Care Homes,A,2024,2
562,"Children, Schools and Family",DONHEAD SCHOOL,ORTON24-LB,10-May-24,1000,0,149760,Non-Delegated Statements,170000              Education,A,2024,2
563,"Children, Schools and Family",DONHEAD SCHOOL,MCBRIEN24-2,10-May-24,3387,0,149760,Non-Delegated Statements,170000              Education,A,2024,2
564,"Children, Schools and Family",DONHEAD SCHOOL,MENON24-2,10-May-24,3387,0,149760,Non-Delegated Statements,170000              Education,A,2024,2
565,"Children, Schools and Family",DONHEAD SCHOOL,OGIONWO24-2,10-May-24,1935,0,149760,Non-Delegated Statements,170000              Education,A,2024,2
566,"Children, Schools and Family",DONHEAD SCHOOL,OLIVER24-2,10-May-24,2661,0,149760,Non-Delegated Statements,170000              Education,A,2024,2
567,"Children, Schools and Family",DONHEAD SCHOOL,ORTON24-2,10-May-24,2661,0,149760,Non-Delegated Statements,170000              Education,A,2024,2
568,"Children, Schools and Family",DONHEAD SCHOOL,ORTON24-2B,10-May-24,1000,0,149760,Non-Delegated Statements,170000              Education,A,2024,2
569,"Children, Schools and Family",DONHEAD SCHOOL,MARSHALLKESTER2,10-May-24,3387,0,149760,Non-Delegated Statements,170000              Education,A,2024,2
570,Unassigned,Canterbury Campus,SCHOOLS 2425/2 A,07-May-24,256287.47,0,150054,Schools,170000              Education,A,2024,2
571,Unassigned,BARNETT WADDINGHAM LLP,T24/10038,31-May-24,14193,2365.5,150927,Governance & Oversight Cost,PENSIONS,A,2024,2
572,Community and Housing,REDACTED PERSONAL DATA,1163564,21-May-24,3076,0,151002,Older People Placements - East,DIRECT PAYMENTS,R,2024,2
573,Community and Housing,AIMS CARE PARTNERSHIP,1155870,08-May-24,10560,0,151592,Learning Disabilities Placemnt,321017              Nursing & Residential Care Homes,A,2024,2
574,Community and Housing,AIMS CARE PARTNERSHIP,1155909,08-May-24,3114.72,0,151592,Learning Disabilities Placemnt,321017              Nursing & Residential Care Homes,A,2024,2
575,Community and Housing,HOLISTIC COMMUNITY CARE - FC,4038A,17-May-24,5736.36,0,151996,Learning Disabilities Placemnt,321000              Social Community Care Supplies & Services - Adult,A,2024,2
576,Community and Housing,HOLISTIC COMMUNITY CARE - FC,4037A,17-May-24,5736.36,0,151996,Older People Placements - East,321000              Social Community Care Supplies & Services - Adult,A,2024,2
577,Community and Housing,HOLISTIC COMMUNITY CARE - FC,4039,17-May-24,5998.72,0,151996,Older People Placements - East,321000              Social Community Care Supplies & Services - Adult,A,2024,2
578,Community and Housing,HOLISTIC COMMUNITY CARE - FC,4040,17-May-24,5998.72,0,151996,Learning Disabilities Placemnt,321000              Social Community Care Supplies & Services - Adult,A,2024,2
579,Community and Housing,HOLISTIC COMMUNITY CARE - FC,MERP0224/2,17-May-24,819.13,0,151996,Phys/Sens Placements - East,321000              Social Community Care Supplies & Services - Adult,A,2024,2
580,Community and Housing,HOLISTIC COMMUNITY CARE - FC,MERP0224/4,17-May-24,14105.88,0,151996,Older People Placements - East,321000              Social Community Care Supplies & Services - Adult,A,2024,2
581,Community and Housing,HOLISTIC COMMUNITY CARE - FC,MERP0224/1,17-May-24,1930.61,0,151996,Older People Placements - East,321000              Social Community Care Supplies & Services - Adult,A,2024,2
582,Community and Housing,REDACTED PERSONAL DATA,1163775,21-May-24,1173,0,152709,Older People Placements - East,DIRECT PAYMENTS,R,2024,2
583,Community and Housing,REDACTED PERSONAL DATA,1163631,21-May-24,1964.48,0,152990,Learning Disabilities Placemnt,DIRECT PAYMENTS,R,2024,2
584,Community and Housing,LYNTON HALL NURSING HOME,1155765,13-May-24,3430.4,0,153795,Older People Placements - East,321017              Nursing & Residential Care Homes,A,2024,2
585,Community and Housing,LYNTON HALL NURSING HOME,1155772,13-May-24,3307.2,0,153795,Older People Placements - East,321017              Nursing & Residential Care Homes,A,2024,2
586,Community and Housing,LYNTON HALL NURSING HOME,1155943,13-May-24,3590.48,0,153795,Older People Placements - East,321017              Nursing & Residential Care Homes,A,2024,2
587,Community and Housing,C AND P HYGIENE,524023,27-May-24,1830,305,154469,Phys/Sens Placements - East,130000              Cleaning & Janitorial,A,2024,2
588,Corporate Services,SHELTER TRAINING,INV253987,20-May-24,1140,190,155779,Legal Shared Service,260000              Human Resources,A,2024,2
589,"Children, Schools and Family",BEDELSFORD SCHOOL,DI104106251,28-May-24,124272.5,0,156132,Non-Delegated Statements,170000              Education,A,2024,2
590,Community and Housing,REDACTED PERSONAL DATA,1163769,21-May-24,586.52,0,156180,Mental Health Placements,DIRECT PAYMENTS,R,2024,2
591,Environment and Regeneration,LONDON BOROUGH OF CAMDEN,IOSH244002,10-May-24,2100,350,159338,Outdoor Events,OLA,A,2024,2
592,Community and Housing,REDACTED PERSONAL DATA,1163692,21-May-24,1104.44,0,159542,Older People Placements - East,DIRECT PAYMENTS,R,2024,2
593,Corporate Services,TROWERS AND HAMLINS,11-229778,30-May-24,14452.67,2408.78,160116,SLLP - Disbursements,280000              Legal Services                                                                            Confirmed,A,2024,2
594,Corporate Services,TROWERS AND HAMLINS,11-232345,30-May-24,2100,350,160116,SLLP - Disbursements,280000              Legal Services                                                                            Confirmed,A,2024,2
595,"Children, Schools and Family",REDACTED PERSONAL DATA,1162629,20-May-24,6332.32,0,160147,Child Disabilities - Placement,CSF-DIRECT PAYMENTS,R,2024,2
596,Community and Housing,REDACTED PERSONAL DATA,1163657,21-May-24,1422.48,0,160244,Phys/Sens Placements - East,DIRECT PAYMENTS,R,2024,2
597,Community and Housing,REDACTED PERSONAL DATA,1163600,21-May-24,742.92,0,160273,Learning Disabilities Placemnt,DIRECT PAYMENTS,R,2024,2
598,Community and Housing,REDACTED PERSONAL DATA,1163709,21-May-24,1087.44,0,160279,Phys/Sens Placements - East,DIRECT PAYMENTS,R,2024,2
599,"Children, Schools and Family",Fleet Educ.Services Ltd T/A Fleet Tutors,33074,08-May-24,1711.2,285.2,160300,Non-Delegated Statements,260000              Human Resources,A,2024,2
600,"Children, Schools and Family",THE NATIONAL FOSTERING AGENCY,502658,22-May-24,5519.4,0,160464,Placements Under 18,321100              Social Community Care Supplies & Services - Children,A,2024,2
601,"Children, Schools and Family",THE NATIONAL FOSTERING AGENCY,502660,22-May-24,5815.8,0,160464,Placements Under 18,321100              Social Community Care Supplies & Services - Children,A,2024,2
602,"Children, Schools and Family",THE NATIONAL FOSTERING AGENCY,502659,22-May-24,5519.4,0,160464,Placements Under 18,321100              Social Community Care Supplies & Services - Children,A,2024,2
603,"Children, Schools and Family",THE NATIONAL FOSTERING AGENCY,502657,22-May-24,3996,0,160464,UASC LAC Under 18,321100              Social Community Care Supplies & Services - Children,A,2024,2
604,Community and Housing,THE AVENUES TRUST GROUP,1005018,09-May-24,10268.2,0,160730,Learning Disabilities Placemnt,321017              Nursing & Residential Care Homes,A,2024,2
605,Community and Housing,THE AVENUES TRUST GROUP,1005145,03-Jun-24,10268.2,0,160730,Learning Disabilities Placemnt,321017              Nursing & Residential Care Homes,A,2024,2
606,Environment and Regeneration,CITY OF LONDON CORPORATION,4365308,23-May-24,5412.3,902.05,160895,Waste Disposal,180000              Environmental Services,A,2024,2
607,"Children, Schools and Family",REDACTED PERSONAL DATA,1153778,02-May-24,548.09,0,161094,UASC LAC Under 18,321100              Social Community Care Supplies & Services - Children,R,2024,2
608,"Children, Schools and Family",REDACTED PERSONAL DATA,1153790,02-May-24,548.09,0,161094,Placements Under 18,321100              Social Community Care Supplies & Services - Children,R,2024,2
609,"Children, Schools and Family",REDACTED PERSONAL DATA,1153877,02-May-24,616,0,161094,Placements Under 18,321100              Social Community Care Supplies & Services - Children,R,2024,2
610,"Children, Schools and Family",REDACTED PERSONAL DATA,MKSPORTMEMBERS,08-May-24,800,0,161094,PupilPremium- Virtual School,321100              Social Community Care Supplies & Services - Children,R,2024,2
611,"Children, Schools and Family",REDACTED PERSONAL DATA,1157857,10-May-24,548.09,0,161094,UASC LAC Under 18,321100              Social Community Care Supplies & Services - Children,R,2024,2
612,"Children, Schools and Family",REDACTED PERSONAL DATA,1157870,10-May-24,548.09,0,161094,Placements Under 18,321100              Social Community Care Supplies & Services - Children,R,2024,2
613,"Children, Schools and Family",REDACTED PERSONAL DATA,1157960,10-May-24,616,0,161094,Placements Under 18,321100              Social Community Care Supplies & Services - Children,R,2024,2
614,"Children, Schools and Family",REDACTED PERSONAL DATA,1161339,17-May-24,548.09,0,161094,UASC LAC Under 18,321100              Social Community Care Supplies & Services - Children,R,2024,2
615,"Children, Schools and Family",REDACTED PERSONAL DATA,1161442,17-May-24,616,0,161094,Placements Under 18,321100              Social Community Care Supplies & Services - Children,R,2024,2
616,"Children, Schools and Family",REDACTED PERSONAL DATA,1166969,23-May-24,548.09,0,161094,UASC LAC Under 18,321100              Social Community Care Supplies & Services - Children,R,2024,2
617,"Children, Schools and Family",REDACTED PERSONAL DATA,1167072,23-May-24,616,0,161094,Placements Under 18,321100              Social Community Care Supplies & Services - Children,R,2024,2
618,"Children, Schools and Family",REDACTED PERSONAL DATA,1169170,31-May-24,548.09,0,161094,UASC LAC Under 18,321100              Social Community Care Supplies & Services - Children,R,2024,2
619,"Children, Schools and Family",REDACTED PERSONAL DATA,1169268,31-May-24,616,0,161094,Placements Under 18,321100              Social Community Care Supplies & Services - Children,R,2024,2
620,Corporate Services,STARK SOFTWARE INTERNATIONAL,92278,03-Jun-24,18717.24,3119.54,161114,Energy Budgets,190000              Facilities & Management Services,A,2024,2
621,Community and Housing,CENTRAL AND NW LONDON NHS FT,53514471,06-May-24,2668.3,0,162075,PH - Sexual Health,310000              Healthcare,A,2024,2
622,Community and Housing,CENTRAL AND NW LONDON NHS FT,53514702,13-May-24,1760.86,0,162075,PH - Sexual Health,310000              Healthcare,A,2024,2
623,"Children, Schools and Family",ARNFIELD CARE LTD,6298,27-May-24,4481.64,0,162395,Placements Under 18,321100              Social Community Care Supplies & Services - Children,A,2024,2
624,"Children, Schools and Family",ARNFIELD CARE LTD,6299,27-May-24,33612.3,0,162395,Placements Under 18,321100              Social Community Care Supplies & Services - Children,A,2024,2
625,"Children, Schools and Family",ARNFIELD CARE LTD,6300,28-May-24,34732.71,0,162395,Placements Under 18,321100              Social Community Care Supplies & Services - Children,A,2024,2
626,Corporate Services,WALLINGTON CARS AND COURIERS LTD,306869,10-May-24,2308.4,381.57,162637,Post services,300000              Mail Services,A,2024,2
627,Corporate Services,WALLINGTON CARS AND COURIERS LTD,307686,29-May-24,989.69,164.95,162637,Post services,300000              Mail Services,A,2024,2
628,Community and Housing,REDACTED PERSONAL DATA,1163677,21-May-24,1778.4,0,163392,Learning Disabilities Placemnt,DIRECT PAYMENTS,R,2024,2
629,Environment and Regeneration,D N H PROPERTY MAINTENANCE,2537DNH,27-May-24,5144,687,163395,Housing Delivery Programme,"390000              Works - Construction, Repair & Maintenance",C,2024,2
630,Community and Housing,Tunstall Healthcare (UK) Limited,CD970055956,06-May-24,27600,4600,163420,Mascot,190000              Facilities & Management Services,A,2024,2
631,Community and Housing,Tunstall Healthcare (UK) Limited,CD970059110,27-May-24,27600,4600,163420,Mascot,190000              Facilities & Management Services,A,2024,2
632,"Children, Schools and Family",REDACTED PERSONAL DATA,1153751,02-May-24,548.09,0,163471,UASC LAC Under 18,200000              Financial Services,R,2024,2
633,"Children, Schools and Family",REDACTED PERSONAL DATA,1153838,02-May-24,785.52,0,163471,Placements Under 18,200000              Financial Services,R,2024,2
634,"Children, Schools and Family",REDACTED PERSONAL DATA,1153847,02-May-24,692.46,0,163471,Placements Under 18,200000              Financial Services,R,2024,2
635,"Children, Schools and Family",REDACTED PERSONAL DATA,1157831,10-May-24,548.09,0,163471,UASC LAC Under 18,200000              Financial Services,R,2024,2
636,"Children, Schools and Family",REDACTED PERSONAL DATA,1157917,10-May-24,785.52,0,163471,Placements Under 18,200000              Financial Services,R,2024,2
637,"Children, Schools and Family",REDACTED PERSONAL DATA,1157927,10-May-24,792.46,0,163471,Placements Under 18,200000              Financial Services,R,2024,2
638,"Children, Schools and Family",REDACTED PERSONAL DATA,1161312,17-May-24,548.09,0,163471,UASC LAC Under 18,200000              Financial Services,R,2024,2
639,"Children, Schools and Family",REDACTED PERSONAL DATA,1161400,17-May-24,785.52,0,163471,Placements Under 18,200000              Financial Services,R,2024,2
640,"Children, Schools and Family",REDACTED PERSONAL DATA,1161410,17-May-24,692.46,0,163471,Placements Under 18,200000              Financial Services,R,2024,2
641,"Children, Schools and Family",REDACTED PERSONAL DATA,1166942,23-May-24,648.09,0,163471,UASC LAC Under 18,200000              Financial Services,R,2024,2
642,"Children, Schools and Family",REDACTED PERSONAL DATA,1166993,23-May-24,768.45,0,163471,Placements Over 18,200000              Financial Services,R,2024,2
643,"Children, Schools and Family",REDACTED PERSONAL DATA,1167030,23-May-24,785.52,0,163471,Placements Under 18,200000              Financial Services,R,2024,2
644,"Children, Schools and Family",REDACTED PERSONAL DATA,1169140,31-May-24,548.09,0,163471,UASC LAC Under 18,200000              Financial Services,R,2024,2
645,"Children, Schools and Family",REDACTED PERSONAL DATA,1169192,31-May-24,584.9,0,163471,Placements Over 18,200000              Financial Services,R,2024,2
646,"Children, Schools and Family",REDACTED PERSONAL DATA,1169228,31-May-24,785.52,0,163471,Placements Under 18,200000              Financial Services,R,2024,2
647,Corporate Services,AEA (BOOKINGS),36206,30-May-24,5598,933,163833,Non-Local Election Expenses?,260000              Human Resources,A,2024,2
648,Community and Housing,Active Prospects,1155793,08-May-24,6103.76,0,163859,Learning Disabilities Placemnt,321017              Nursing & Residential Care Homes,A,2024,2
649,"Children, Schools and Family",THE SENSORY SMART CHILD LTD,27025,09-May-24,810,0,163927,Non-Delegated Statements,321100              Social Community Care Supplies & Services - Children,A,2024,2
650,"Children, Schools and Family",THE SENSORY SMART CHILD LTD,28713,10-May-24,675,0,163927,Non-Delegated Statements,321100              Social Community Care Supplies & Services - Children,A,2024,2
651,Community and Housing,REDACTED PERSONAL DATA,1163592,21-May-24,1281.72,0,163971,Older People Placements - East,DIRECT PAYMENTS,R,2024,2
652,Environment and Regeneration,LONDON COUNCILS,4364294,13-May-24,1500,0,164343,Operational Running Costs,OLA,A,2024,2
653,Community and Housing,LONDON COUNCILS,4364914,28-May-24,258508,0,164343,Concessionary Fares,OLA,A,2024,2
654,Community and Housing,ENTERPRISE CARE SUPPORT LTD - FC,ECS P01/3,02-May-24,1188.44,0,164431,Older People Placements - East,321000              Social Community Care Supplies & Services - Adult,A,2024,2
655,Community and Housing,ENTERPRISE CARE SUPPORT LTD - FC,ECS P01/24,02-May-24,1384.73,0,164431,Older People Placements - East,321000              Social Community Care Supplies & Services - Adult,A,2024,2
656,Community and Housing,ENTERPRISE CARE SUPPORT LTD - FC,ECS P01/47,02-May-24,2162.26,0,164431,Older People Placements - East,321000              Social Community Care Supplies & Services - Adult,A,2024,2
657,Community and Housing,ENTERPRISE CARE SUPPORT LTD - FC,ECS P01/35,02-May-24,682.18,0,164431,Older People Placements - East,321000              Social Community Care Supplies & Services - Adult,A,2024,2
658,Community and Housing,ENTERPRISE CARE SUPPORT LTD - FC,ECS P01/18,02-May-24,705.61,0,164431,Older People Placements - East,321000              Social Community Care Supplies & Services - Adult,A,2024,2
659,Community and Housing,ENTERPRISE CARE SUPPORT LTD - FC,ECS P01/5,02-May-24,887.98,0,164431,Older People Placements - East,321000              Social Community Care Supplies & Services - Adult,A,2024,2
660,Community and Housing,ENTERPRISE CARE SUPPORT LTD - FC,ECS P01/32,02-May-24,1387.13,0,164431,Phys/Sens Placements - East,321000              Social Community Care Supplies & Services - Adult,A,2024,2
661,Community and Housing,ENTERPRISE CARE SUPPORT LTD - FC,ECS P01/20,02-May-24,871.02,0,164431,Older People Placements - East,321000              Social Community Care Supplies & Services - Adult,A,2024,2
662,Community and Housing,ENTERPRISE CARE SUPPORT LTD - FC,ECS P01/38,02-May-24,1207.76,0,164431,Phys/Sens Placements - East,321000              Social Community Care Supplies & Services - Adult,A,2024,2
663,Community and Housing,ENTERPRISE CARE SUPPORT LTD - FC,ECS P01/11,02-May-24,3103.17,0,164431,Older People Placements - East,321000              Social Community Care Supplies & Services - Adult,A,2024,2
664,Community and Housing,ENTERPRISE CARE SUPPORT LTD - FC,ECS P01/22,02-May-24,1179.24,0,164431,Learning Disabilities Placemnt,321000              Social Community Care Supplies & Services - Adult,A,2024,2
665,Community and Housing,ENTERPRISE CARE SUPPORT LTD - FC,ECS P01/6,02-May-24,625.64,0,164431,Older People Placements - East,321000              Social Community Care Supplies & Services - Adult,A,2024,2
666,Community and Housing,ENTERPRISE CARE SUPPORT LTD - FC,ECS P01/25,02-May-24,862.27,0,164431,Older People Placements - East,321000              Social Community Care Supplies & Services - Adult,A,2024,2
667,Community and Housing,ENTERPRISE CARE SUPPORT LTD - FC,ECS P01/33,02-May-24,1226.79,0,164431,Older People Placements - East,321000              Social Community Care Supplies & Services - Adult,A,2024,2
668,Community and Housing,ENTERPRISE CARE SUPPORT LTD - FC,ECS P01/27,02-May-24,1021.25,0,164431,Older People Placements - East,321000              Social Community Care Supplies & Services - Adult,A,2024,2
669,Community and Housing,ENTERPRISE CARE SUPPORT LTD - FC,ECS P01/43,02-May-24,1234.18,0,164431,Older People Placements - East,321000              Social Community Care Supplies & Services - Adult,A,2024,2
670,Community and Housing,ENTERPRISE CARE SUPPORT LTD - FC,ECS P01/14,02-May-24,877.88,0,164431,Older People Placements - East,321000              Social Community Care Supplies & Services - Adult,A,2024,2
671,Community and Housing,ENTERPRISE CARE SUPPORT LTD - FC,ECS P01/9,02-May-24,1073.22,0,164431,Older People Placements - East,321000              Social Community Care Supplies & Services - Adult,A,2024,2
672,Community and Housing,ENTERPRISE CARE SUPPORT LTD - FC,ECS P01/30,02-May-24,1234.73,0,164431,Older People Placements - East,321000              Social Community Care Supplies & Services - Adult,A,2024,2
673,Community and Housing,ENTERPRISE CARE SUPPORT LTD - FC,ECS P01/4,02-May-24,1981.94,0,164431,Older People Placements - East,321000              Social Community Care Supplies & Services - Adult,A,2024,2
674,Community and Housing,ENTERPRISE CARE SUPPORT LTD - FC,ECS P01/16,02-May-24,599.79,0,164431,Older People Placements - East,321000              Social Community Care Supplies & Services - Adult,A,2024,2
675,Community and Housing,ENTERPRISE CARE SUPPORT LTD - FC,ECS P01/17,02-May-24,901.9,0,164431,Older People Placements - East,321000              Social Community Care Supplies & Services - Adult,A,2024,2
676,Community and Housing,ENTERPRISE CARE SUPPORT LTD - FC,ECS P01/15,02-May-24,4420.42,0,164431,Older People Placements - East,321000              Social Community Care Supplies & Services - Adult,A,2024,2
677,Community and Housing,ENTERPRISE CARE SUPPORT LTD - FC,ECS P01/36,02-May-24,886.11,0,164431,Older People Placements - East,321000              Social Community Care Supplies & Services - Adult,A,2024,2
678,Community and Housing,ENTERPRISE CARE SUPPORT LTD - FC,ECS P01/42,02-May-24,522.39,0,164431,Older People Placements - East,321000              Social Community Care Supplies & Services - Adult,A,2024,2
679,Community and Housing,ENTERPRISE CARE SUPPORT LTD - FC,ECS P01/46,02-May-24,1202.41,0,164431,Older People Placements - East,321000              Social Community Care Supplies & Services - Adult,A,2024,2
680,Community and Housing,ENTERPRISE CARE SUPPORT LTD - FC,ECS P01/48,02-May-24,869.57,0,164431,Older People Placements - East,321000              Social Community Care Supplies & Services - Adult,A,2024,2
681,Community and Housing,ENTERPRISE CARE SUPPORT LTD - FC,ECS P01/26,02-May-24,3125.92,0,164431,Older People Placements - East,321000              Social Community Care Supplies & Services - Adult,A,2024,2
682,Community and Housing,ENTERPRISE CARE SUPPORT LTD - FC,ECS P01/23,02-May-24,1417.24,0,164431,Older People Placements - East,321000              Social Community Care Supplies & Services - Adult,A,2024,2
683,Community and Housing,ENTERPRISE CARE SUPPORT LTD - FC,ECS P01/1,02-May-24,3045.42,0,164431,Older People Placements - East,321000              Social Community Care Supplies & Services - Adult,A,2024,2
684,Community and Housing,ENTERPRISE CARE SUPPORT LTD - FC,ECS P02/3,23-May-24,1243.41,0,164431,Older People Placements - East,321000              Social Community Care Supplies & Services - Adult,A,2024,2
685,Community and Housing,ENTERPRISE CARE SUPPORT LTD - FC,ECS P02/21,23-May-24,1438.95,0,164431,Older People Placements - East,321000              Social Community Care Supplies & Services - Adult,A,2024,2
686,Community and Housing,ENTERPRISE CARE SUPPORT LTD - FC,ECS P02/41,23-May-24,2258.96,0,164431,Older People Placements - East,321000              Social Community Care Supplies & Services - Adult,A,2024,2
687,Community and Housing,ENTERPRISE CARE SUPPORT LTD - FC,ECS P02/30,23-May-24,681.49,0,164431,Older People Placements - East,321000              Social Community Care Supplies & Services - Adult,A,2024,2
688,Community and Housing,ENTERPRISE CARE SUPPORT LTD - FC,ECS P02/15,23-May-24,533.35,0,164431,Older People Placements - East,321000              Social Community Care Supplies & Services - Adult,A,2024,2
689,Community and Housing,ENTERPRISE CARE SUPPORT LTD - FC,ECS P02/1,23-May-24,3375.26,0,164431,Older People Placements - East,321000              Social Community Care Supplies & Services - Adult,A,2024,2
690,Community and Housing,ENTERPRISE CARE SUPPORT LTD - FC,ECS P02/5,23-May-24,918.92,0,164431,Older People Placements - East,321000              Social Community Care Supplies & Services - Adult,A,2024,2
691,Community and Housing,ENTERPRISE CARE SUPPORT LTD - FC,ECS P02/27,23-May-24,1436.8,0,164431,Phys/Sens Placements - East,321000              Social Community Care Supplies & Services - Adult,A,2024,2
692,Community and Housing,ENTERPRISE CARE SUPPORT LTD - FC,ECS P02/17,23-May-24,919.73,0,164431,Older People Placements - East,321000              Social Community Care Supplies & Services - Adult,A,2024,2
693,Community and Housing,ENTERPRISE CARE SUPPORT LTD - FC,ECS P02/33,23-May-24,1295.17,0,164431,Phys/Sens Placements - East,321000              Social Community Care Supplies & Services - Adult,A,2024,2
694,Community and Housing,ENTERPRISE CARE SUPPORT LTD - FC,ECS P02/34,23-May-24,748.55,0,164431,Phys/Sens Placements - East,321000              Social Community Care Supplies & Services - Adult,A,2024,2
695,Community and Housing,ENTERPRISE CARE SUPPORT LTD - FC,ECS P02/9,23-May-24,3227.27,0,164431,Older People Placements - East,321000              Social Community Care Supplies & Services - Adult,A,2024,2
696,Community and Housing,ENTERPRISE CARE SUPPORT LTD - FC,ECS P02/19,23-May-24,1246.36,0,164431,Learning Disabilities Placemnt,321000              Social Community Care Supplies & Services - Adult,A,2024,2
697,Community and Housing,ENTERPRISE CARE SUPPORT LTD - FC,ECS P02/6,23-May-24,650.04,0,164431,Older People Placements - East,321000              Social Community Care Supplies & Services - Adult,A,2024,2
698,Community and Housing,ENTERPRISE CARE SUPPORT LTD - FC,ECS P02/22,23-May-24,924.79,0,164431,Older People Placements - East,321000              Social Community Care Supplies & Services - Adult,A,2024,2
699,Community and Housing,ENTERPRISE CARE SUPPORT LTD - FC,ECS P02/28,23-May-24,1280.56,0,164431,Older People Placements - East,321000              Social Community Care Supplies & Services - Adult,A,2024,2
700,Community and Housing,ENTERPRISE CARE SUPPORT LTD - FC,ECS P02/24,23-May-24,1076.84,0,164431,Older People Placements - East,321000              Social Community Care Supplies & Services - Adult,A,2024,2
701,Community and Housing,ENTERPRISE CARE SUPPORT LTD - FC,ECS P02/38,23-May-24,1272.44,0,164431,Older People Placements - East,321000              Social Community Care Supplies & Services - Adult,A,2024,2
702,Community and Housing,ENTERPRISE CARE SUPPORT LTD - FC,ECS P02/10,23-May-24,920.62,0,164431,Older People Placements - East,321000              Social Community Care Supplies & Services - Adult,A,2024,2
703,Community and Housing,ENTERPRISE CARE SUPPORT LTD - FC,ECS P02/8,23-May-24,1233.93,0,164431,Older People Placements - East,321000              Social Community Care Supplies & Services - Adult,A,2024,2
704,Community and Housing,ENTERPRISE CARE SUPPORT LTD - FC,ECS P02/25,23-May-24,1277.13,0,164431,Older People Placements - East,321000              Social Community Care Supplies & Services - Adult,A,2024,2
705,Community and Housing,ENTERPRISE CARE SUPPORT LTD - FC,ECS P02/4,23-May-24,2591.49,0,164431,Older People Placements - East,321000              Social Community Care Supplies & Services - Adult,A,2024,2
706,Community and Housing,ENTERPRISE CARE SUPPORT LTD - FC,ECS P02/12,23-May-24,3199.38,0,164431,Older People Placements - East,321000              Social Community Care Supplies & Services - Adult,A,2024,2
707,Community and Housing,ENTERPRISE CARE SUPPORT LTD - FC,ECS P02/13,23-May-24,2132.4,0,164431,Older People Placements - East,321000              Social Community Care Supplies & Services - Adult,A,2024,2
708,Community and Housing,ENTERPRISE CARE SUPPORT LTD - FC,ECS P02/14,23-May-24,935.94,0,164431,Older People Placements - East,321000              Social Community Care Supplies & Services - Adult,A,2024,2
709,Community and Housing,ENTERPRISE CARE SUPPORT LTD - FC,ECS P02/11,23-May-24,4698.63,0,164431,Older People Placements - East,321000              Social Community Care Supplies & Services - Adult,A,2024,2
710,Community and Housing,ENTERPRISE CARE SUPPORT LTD - FC,ECS P02/31,23-May-24,924.45,0,164431,Older People Placements - East,321000              Social Community Care Supplies & Services - Adult,A,2024,2
711,Community and Housing,ENTERPRISE CARE SUPPORT LTD - FC,ECS P02/37,23-May-24,547.88,0,164431,Older People Placements - East,321000              Social Community Care Supplies & Services - Adult,A,2024,2
712,Community and Housing,ENTERPRISE CARE SUPPORT LTD - FC,ECS P02/40,23-May-24,1269,0,164431,Older People Placements - East,321000              Social Community Care Supplies & Services - Adult,A,2024,2
713,Community and Housing,ENTERPRISE CARE SUPPORT LTD - FC,ECS P02/42,23-May-24,913.76,0,164431,Older People Placements - East,321000              Social Community Care Supplies & Services - Adult,A,2024,2
714,Community and Housing,ENTERPRISE CARE SUPPORT LTD - FC,ECS P02/23,23-May-24,3267.85,0,164431,Older People Placements - East,321000              Social Community Care Supplies & Services - Adult,A,2024,2
715,Community and Housing,BUPA CARE SERVICES BACS RECEIP,1155677,22-May-24,878.84,0,164629,Phys/Sens Placements - East,321017              Nursing & Residential Care Homes,A,2024,2
716,Community and Housing,BUPA CARE SERVICES BACS RECEIP,1157000,22-May-24,15404,0,164629,Older People Placements - East,321017              Nursing & Residential Care Homes,A,2024,2
717,Community and Housing,REDACTED PERSONAL DATA,1163810,21-May-24,2405.52,0,164694,Older People Placements - East,DIRECT PAYMENTS,R,2024,2
718,Corporate Services,REDACTED PERSONAL DATA,INV1402GC92,30-May-24,900,150,164950,SLLP - Disbursements,280000              Legal Services                                                                            Confirmed,R,2024,2
719,Unassigned,777 DEMOLITION AND HAULAGE CO,72347,21-May-24,522,87,165107,Mitcham Common Conservators,180000              Environmental Services,A,2024,2
720,Environment and Regeneration,777 DEMOLITION AND HAULAGE CO,72404,04-Jun-24,6252.96,1042.16,165107,Waste Disposal,180000              Environmental Services,A,2024,2
721,Unassigned,MARSTON GROUP,63212,22-May-24,1095.39,0,165202,Corporate Accountancy,200000              Financial Services,A,2024,2
722,Unassigned,MARSTON GROUP,63160,20-May-24,706.87,0,165202,Corporate Accountancy,200000              Financial Services,A,2024,2
723,Corporate Services,DX NETWORK SERVICES LTD,84100575,17-May-24,7910.44,1318.41,165316,Legal Shared Service,300000              Mail Services,A,2024,2
724,Community and Housing,LONDON BOROUGH OF HARINGEY,1802117691,28-May-24,7046.74,0,165347,Public Health Main,OLA,A,2024,2
725,Community and Housing,REDACTED PERSONAL DATA,1163834,21-May-24,2267.8,0,165602,Learning Disabilities Placemnt,DIRECT PAYMENTS,R,2024,2
726,Community and Housing,REDACTED PERSONAL DATA,1163783,21-May-24,7111.44,0,165619,Phys/Sens Placements - East,DIRECT PAYMENTS,R,2024,2
727,Community and Housing,BUPA CARE HOMES (ANS) LTD,1156154,08-May-24,5124.04,0,165704,Older People Placements - East,321017              Nursing & Residential Care Homes,A,2024,2
728,Community and Housing,REDACTED PERSONAL DATA,1163879,21-May-24,1262.96,0,165786,Older People Placements - East,DIRECT PAYMENTS,R,2024,2
729,Community and Housing,REDACTED PERSONAL DATA,1163894,21-May-24,700.8,0,166085,Learning Disabilities Placemnt,DIRECT PAYMENTS,R,2024,2
730,Community and Housing,REDACTED PERSONAL DATA,1163547,21-May-24,1951.32,0,166158,Phys/Sens Placements - East,DIRECT PAYMENTS,R,2024,2
731,Community and Housing,REDACTED PERSONAL DATA,1163577,21-May-24,1485.8,0,166547,Learning Disabilities Placemnt,DIRECT PAYMENTS,R,2024,2
732,"Children, Schools and Family",REDACTED PERSONAL DATA,1153757,02-May-24,1354.2,0,166742,Placements Under 18,321100              Social Community Care Supplies & Services - Children,R,2024,2
733,"Children, Schools and Family",REDACTED PERSONAL DATA,1157837,10-May-24,1354.2,0,166742,Placements Under 18,321100              Social Community Care Supplies & Services - Children,R,2024,2
734,"Children, Schools and Family",REDACTED PERSONAL DATA,1161318,17-May-24,1354.2,0,166742,Placements Under 18,321100              Social Community Care Supplies & Services - Children,R,2024,2
735,"Children, Schools and Family",REDACTED PERSONAL DATA,1166949,23-May-24,1354.2,0,166742,Placements Under 18,321100              Social Community Care Supplies & Services - Children,R,2024,2
736,"Children, Schools and Family",REDACTED PERSONAL DATA,1169147,31-May-24,1354.2,0,166742,Placements Under 18,321100              Social Community Care Supplies & Services - Children,R,2024,2
737,"Children, Schools and Family",UNIQUE OFFICE SOLUTIONS LTD,113564,17-May-24,693.6,115.6,166889,IROs,210000              Furniture & Soft Furnishings,A,2024,2
738,"Children, Schools and Family",WIMBLEDON DAY NURSERY,7,02-May-24,2500.64,0,167298,Non-Delegated Statements,170000              Education,A,2024,2
739,"Children, Schools and Family",WIMBLEDON DAY NURSERY,8,21-May-24,3056.33,0,167298,Non-Delegated Statements,170000              Education,A,2024,2
740,"Children, Schools and Family",RAINBOW FOSTERING SERVICES LTD,RF4887,27-May-24,3621.42,0,167793,Placements Under 18,321100              Social Community Care Supplies & Services - Children,A,2024,2
741,Corporate Services,REDACTED PERSONAL DATA,10275801,10-May-24,972,162,168092,Legal Shared Service,280000              Legal Services,R,2024,2
742,Corporate Services,REDACTED PERSONAL DATA,10270135,29-May-24,36340.8,0,168092,SLLP - Disbursements,280000              Legal Services,R,2024,2
743,Corporate Services,REDACTED PERSONAL DATA,10275245,29-May-24,35099.4,0,168092,SLLP - Disbursements,280000              Legal Services,R,2024,2
744,Capital,CBS Adaptation Design,1920,10-May-24,2136.54,0,168147,Disabled Facilities Grant,200000              Financial Services,A,2024,2
745,Capital,CBS Adaptation Design,1917,10-May-24,742.82,0,168147,Disabled Facilities Grant,200000              Financial Services,A,2024,2
746,Capital,CBS Adaptation Design,1848,10-May-24,2902.08,0,168147,Disabled Facilities Grant,200000              Financial Services,A,2024,2
747,Capital,CBS Adaptation Design,1919,22-May-24,1378.12,0,168147,Disabled Facilities Grant,200000              Financial Services,A,2024,2
748,Capital,CBS Adaptation Design,1922,22-May-24,931.95,0,168147,Disabled Facilities Grant,200000              Financial Services,A,2024,2
749,Capital,CBS Adaptation Design,1924,22-May-24,549.4,0,168147,Disabled Facilities Grant,200000              Financial Services,A,2024,2
750,Capital,CBS Adaptation Design,1923,27-May-24,735.18,0,168147,Disabled Facilities Grant,200000              Financial Services,A,2024,2
751,Corporate Services,LANGUAGE BANK,MTS-135969,08-May-24,840,140,168229,Translation Service,TRANSLATIONS,A,2024,2
752,Corporate Services,LANGUAGE BANK,MTS-136080,08-May-24,1044,174,168229,Translation Service,TRANSLATIONS,A,2024,2
753,Corporate Services,LANGUAGE BANK,MTS-136145,20-May-24,960,160,168229,Translation Service,TRANSLATIONS,A,2024,2
754,Corporate Services,LANGUAGE BANK,MTS-136216,27-May-24,1332,222,168229,Translation Service,TRANSLATIONS,A,2024,2
755,Corporate Services,LANGUAGE BANK,MTS-136227,27-May-24,1260,210,168229,Translation Service,TRANSLATIONS,A,2024,2
756,Corporate Services,LANGUAGE BANK,MTS-136249,29-May-24,850.5,141.75,168229,Translation Service,TRANSLATIONS,A,2024,2
757,Corporate Services,LANGUAGE BANK,MTS-136238,28-May-24,753,125.5,168229,Translation Service,TRANSLATIONS,A,2024,2
758,Community and Housing,REDACTED PERSONAL DATA,1163583,21-May-24,1023.8,0,168403,Learning Disabilities Placemnt,DIRECT PAYMENTS,R,2024,2
759,Community and Housing,HOME CONNECTIONS LETTINGS LTD,INV-1759,13-May-24,34800,5800,168983,Housing Needs & Enablg-central,270000              Information Communication Technology,A,2024,2
760,Community and Housing,FITZROY SUPPORT,1155829,08-May-24,6979.52,0,169400,Learning Disabilities Placemnt,321017              Nursing & Residential Care Homes,A,2024,2
761,Corporate Services,KC Services Group,64758,27-May-24,2880,480,169420,Buildings Maintenance,"390000              Works - Construction, Repair & Maintenance",A,2024,2
762,Environment and Regeneration,TAMESIDE MBC,69924033,14-May-24,2000,0,169964,Trading Standards - RSP,260000              Human Resources,A,2024,2
763,"Children, Schools and Family",JULIUS RUTHERFOORD AND CO LTD,INVS154219,22-May-24,947.23,157.87,170092,Lower Morden CC Building Mgt,130000              Cleaning & Janitorial,A,2024,2
764,"Children, Schools and Family",JULIUS RUTHERFOORD AND CO LTD,INV5154515,22-May-24,947.2,157.87,170092,Avenue CC Building Management,130000              Cleaning & Janitorial,A,2024,2
765,"Children, Schools and Family",JULIUS RUTHERFOORD AND CO LTD,INVS154251,22-May-24,1350.91,225.15,170092,Bond Road Building,130000              Cleaning & Janitorial,A,2024,2
766,"Children, Schools and Family",JULIUS RUTHERFOORD AND CO LTD,INV5154275,22-May-24,947.23,157.87,170092,Church Road Building,130000              Cleaning & Janitorial,A,2024,2
767,"Children, Schools and Family",JULIUS RUTHERFOORD AND CO LTD,INVS154361,22-May-24,947.23,157.87,170092,Ivy Garden CC Building,130000              Cleaning & Janitorial,A,2024,2
768,"Children, Schools and Family",JULIUS RUTHERFOORD AND CO LTD,INVS154417,22-May-24,1427.92,237.99,170092,Newminster CC Building Mgt,130000              Cleaning & Janitorial,A,2024,2
769,"Children, Schools and Family",JULIUS RUTHERFOORD AND CO LTD,INVS154467,22-May-24,32196.71,5366.13,170092, PFI Unitary Charges,130000              Cleaning & Janitorial,A,2024,2
770,"Children, Schools and Family",JULIUS RUTHERFOORD AND CO LTD,INVS154465,22-May-24,27547.61,4591.27,170092, PFI Unitary Charges,130000              Cleaning & Janitorial,A,2024,2
771,"Children, Schools and Family",JULIUS RUTHERFOORD AND CO LTD,INVS154466,22-May-24,2885.8,480.97,170092, PFI Unitary Charges,130000              Cleaning & Janitorial,A,2024,2
772,"Children, Schools and Family",JULIUS RUTHERFOORD AND CO LTD,INVS154463,22-May-24,29320.6,4886.76,170092, PFI Unitary Charges,130000              Cleaning & Janitorial,A,2024,2
773,"Children, Schools and Family",JULIUS RUTHERFOORD AND CO LTD,INVS154464,22-May-24,1263.96,210.66,170092, PFI Unitary Charges,130000              Cleaning & Janitorial,A,2024,2
774,"Children, Schools and Family",JULIUS RUTHERFOORD AND CO LTD,INVS154469,22-May-24,2182.14,363.69,170092, PFI Unitary Charges,130000              Cleaning & Janitorial,A,2024,2
775,Community and Housing,REDACTED PERSONAL DATA,1163527,21-May-24,547.4,0,170275,Phys/Sens Placements - East,DIRECT PAYMENTS,R,2024,2
776,Community and Housing,INDEPENDENCE HOMES LTD,1156085,08-May-24,8610.44,0,170527,Learning Disabilities Placemnt,321017              Nursing & Residential Care Homes,A,2024,2
777,Community and Housing,INDEPENDENCE HOMES LTD,GRH00024,31-May-24,6144.04,0,170527,Learning Disabilities Placemnt,321017              Nursing & Residential Care Homes,A,2024,2
778,"Children, Schools and Family",GREATER LONDON FOSTERING LTD,GLF-2629,22-May-24,3578.4,0,170596,Placements Under 18,321100              Social Community Care Supplies & Services - Children,A,2024,2
779,"Children, Schools and Family",GREATER LONDON FOSTERING LTD,GLF-2621,22-May-24,3664.2,0,170596,Placements Under 18,321100              Social Community Care Supplies & Services - Children,A,2024,2
780,"Children, Schools and Family",GREATER LONDON FOSTERING LTD,GLF-2603,22-May-24,3664.2,0,170596,Placements Under 18,321100              Social Community Care Supplies & Services - Children,A,2024,2
781,"Children, Schools and Family",GREATER LONDON FOSTERING LTD,GLF-2616,22-May-24,3664.2,0,170596,Placements Under 18,321100              Social Community Care Supplies & Services - Children,A,2024,2
782,"Children, Schools and Family",GREATER LONDON FOSTERING LTD,GLF-2628,22-May-24,3403.5,0,170596,Placements Under 18,321100              Social Community Care Supplies & Services - Children,A,2024,2
783,"Children, Schools and Family",GREATER LONDON FOSTERING LTD,GLF-2622,22-May-24,3664.2,0,170596,Placements Under 18,321100              Social Community Care Supplies & Services - Children,A,2024,2
784,"Children, Schools and Family",ADCS,SI-37322,27-May-24,584.4,97.4,170603, Central Administration,200000              Financial Services,A,2024,2
785,"Children, Schools and Family",ADCS,SI-37321,27-May-24,584.4,97.4,170603, Central Administration,200000              Financial Services,A,2024,2
786,"Children, Schools and Family",CENMAC,CP5I2570,08-May-24,970,0,170767,Non-Delegated Statements,321100              Social Community Care Supplies & Services - Children,A,2024,2
787,Community and Housing,REDACTED PERSONAL DATA,1163804,21-May-24,2019.32,0,170878,Learning Disabilities Placemnt,DIRECT PAYMENTS,R,2024,2
788,Community and Housing,REDACTED PERSONAL DATA,1163895,21-May-24,1603.12,0,171056,Phys/Sens Placements - East,DIRECT PAYMENTS,R,2024,2
789,Community and Housing,ST GEORGES RES. CARE HOME,1156140,08-May-24,5285.48,0,171491,Learning Disabilities Placemnt,321017              Nursing & Residential Care Homes,A,2024,2
790,Community and Housing,ST GEORGES RES. CARE HOME,1156172,08-May-24,4366.24,0,171491,Learning Disabilities Placemnt,321017              Nursing & Residential Care Homes,A,2024,2
791,Corporate Services,SSD LIMITED,SI708,03-Jun-24,14670,2445,171736,Buildings Maintenance,190000              Facilities & Management Services,A,2024,2
792,Community and Housing,REDACTED PERSONAL DATA,1163745,21-May-24,571.31,0,172070,Learning Disabilities Placemnt,DIRECT PAYMENTS,R,2024,2
793,Community and Housing,NORBURY PROPERTY SERV LDN LTD,SI-10355,23-May-24,28680,0,172104,Bed & Breakfast - accomm,321000              Social Community Care Supplies & Services - Adult,A,2024,2
794,Environment and Regeneration,COSTAR UK LTD,120623424,17-May-24,9893.52,1648.8,172108,Property Mgt & Review,270000              Information Communication Technology,A,2024,2
795,Community and Housing,EALING COUNCIL,1155782,08-May-24,2985.92,0,172129,Mental Health Placements,OLA,A,2024,2
796,Community and Housing,CARRICKS BROOK,1155801,08-May-24,9036,0,172297,Learning Disabilities Placemnt,321017              Nursing & Residential Care Homes,A,2024,2
797,Community and Housing,BROADHAM CARE LTD,1155859,08-May-24,8014.84,0,172298,Learning Disabilities Placemnt,321017              Nursing & Residential Care Homes,A,2024,2
798,Community and Housing,BROADHAM CARE LTD,1156125,08-May-24,8287.36,0,172298,Learning Disabilities Placemnt,321017              Nursing & Residential Care Homes,A,2024,2
799,Unassigned,KENNEDYS,012400287241M890,10-May-24,3653.4,0,172486,Corporate Accountancy,280000              Legal Services,A,2024,2
800,Unassigned,KENNEDYS,2400267021MER194,10-May-24,3445,0,172486,Corporate Accountancy,280000              Legal Services,A,2024,2
801,Community and Housing,REDACTED PERSONAL DATA,1163534,21-May-24,1132.2,0,172912,Learning Disabilities Placemnt,DIRECT PAYMENTS,R,2024,2
802,Community and Housing,REDACTED PERSONAL DATA,1163563,21-May-24,1094.8,0,172914,Learning Disabilities Placemnt,DIRECT PAYMENTS,R,2024,2
803,Community and Housing,REDACTED PERSONAL DATA,1163767,21-May-24,899.32,0,172936,Phys/Sens Placements - East,DIRECT PAYMENTS,R,2024,2
804,Community and Housing,HAVERING COURT NURSING HOME,1155770,08-May-24,5368.76,0,173297,Older People Placements - East,321017              Nursing & Residential Care Homes,A,2024,2
805,Community and Housing,REDACTED PERSONAL DATA,1163765,21-May-24,977.52,0,173308,Phys/Sens Placements - East,DIRECT PAYMENTS,R,2024,2
806,Community and Housing,SOUTH THAMES COLLEGE,5006548,22-May-24,242227.69,0,173357,AE Main Adult Learning,190000              Facilities & Management Services,A,2024,2
807,Community and Housing,HARBOUR CARE (UK) LTD,1156060,08-May-24,6996.8,0,173947,Learning Disabilities Placemnt,321017              Nursing & Residential Care Homes,A,2024,2
808,Community and Housing,REDACTED PERSONAL DATA,1163576,21-May-24,957.96,0,174449,Phys/Sens Placements - East,DIRECT PAYMENTS,R,2024,2
809,"Children, Schools and Family",REDACTED PERSONAL DATA,1153803,02-May-24,582.17,0,174483,Placements Under 18,321100              Social Community Care Supplies & Services - Children,R,2024,2
810,"Children, Schools and Family",REDACTED PERSONAL DATA,1157883,10-May-24,582.17,0,174483,Placements Under 18,321100              Social Community Care Supplies & Services - Children,R,2024,2
811,"Children, Schools and Family",REDACTED PERSONAL DATA,1161366,17-May-24,582.17,0,174483,Placements Under 18,321100              Social Community Care Supplies & Services - Children,R,2024,2
812,"Children, Schools and Family",REDACTED PERSONAL DATA,1166996,23-May-24,582.17,0,174483,Placements Under 18,321100              Social Community Care Supplies & Services - Children,R,2024,2
813,"Children, Schools and Family",REDACTED PERSONAL DATA,1169195,31-May-24,582.17,0,174483,Placements Under 18,321100              Social Community Care Supplies & Services - Children,R,2024,2
814,Community and Housing,SUTTON COURT CARE CENTRE,1155888,08-May-24,3787.92,0,174833,Older People Placements - East,321017              Nursing & Residential Care Homes,A,2024,2
815,Community and Housing,SUTTON COURT CARE CENTRE,1155959,08-May-24,3228.04,0,174833,Older People Placements - East,321017              Nursing & Residential Care Homes,A,2024,2
816,Community and Housing,SUTTON COURT CARE CENTRE,1155987,08-May-24,4114.28,0,174833,Phys/Sens Placements - East,321017              Nursing & Residential Care Homes,A,2024,2
817,Community and Housing,SUTTON COURT CARE CENTRE,1156147,08-May-24,4139.36,0,174833,Phys/Sens Placements - East,321017              Nursing & Residential Care Homes,A,2024,2
818,Community and Housing,REDACTED PERSONAL DATA,1163506,21-May-24,782,0,174975,Learning Disabilities Placemnt,DIRECT PAYMENTS,R,2024,2
819,"Children, Schools and Family",GLOBAL MEDIATION LTD,INV-95286,22-May-24,2640,440,175270,Non-Delegated Statements,260000              Human Resources                                                                           Confirmed,A,2024,2
820,Capital,ARCADIS CONSULTING (UK) LTD,680041477,02-May-24,2169.6,361.6,175537,Highways & Footways,230000              Highway Equipment & Materials,A,2024,2
821,Capital,ARCADIS CONSULTING (UK) LTD,680041482,02-May-24,12285.31,2047.55,175537,Highways & Footways,230000              Highway Equipment & Materials,A,2024,2
822,Community and Housing,KISIMUL SCHOOL,1155789,08-May-24,14008.68,0,175545,Learning Disabilities Placemnt,321017              Nursing & Residential Care Homes,A,2024,2
823,Community and Housing,KISIMUL SCHOOL,1156027,08-May-24,17689.84,0,175545,Learning Disabilities Placemnt,321017              Nursing & Residential Care Homes,A,2024,2
824,Community and Housing,REDACTED PERSONAL DATA,1163876,21-May-24,2189.6,0,175782,Phys/Sens Placements - East,DIRECT PAYMENTS,R,2024,2
825,Corporate Services,LAVAT CONSULTING LIMITED,INV-112535,29-May-24,4020,670,175816,Corporate Accountancy,260000              Human Resources,A,2024,2
826,Community and Housing,REDACTED PERSONAL DATA,1163693,21-May-24,1600.6,0,175960,Learning Disabilities Placemnt,DIRECT PAYMENTS,R,2024,2
827,Unassigned,A.J.OAKES AND PARTNERS,2024/065,16-May-24,6000,1000,176052,Corporate Services,"390000              Works - Construction, Repair & Maintenance",A,2024,2
828,Unassigned,A.J.OAKES AND PARTNERS,2024/069,29-May-24,60000,10000,176052,Corporate Services,"390000              Works - Construction, Repair & Maintenance",A,2024,2
829,"Children, Schools and Family",ST JOHN FISHER SCHOOL,JFS000401,27-May-24,4174.98,0,176388,Non-Delegated Statements,170000              Education,A,2024,2
830,"Children, Schools and Family",ST JOHN FISHER SCHOOL,JFS000400,27-May-24,3488.23,0,176388,Non-Delegated Statements,170000              Education,A,2024,2
831,Community and Housing,REDACTED PERSONAL DATA,1163705,21-May-24,552.44,0,176619,Phys/Sens Placements - East,DIRECT PAYMENTS,R,2024,2
832,Community and Housing,REDACTED PERSONAL DATA,1163811,21-May-24,1800.4,0,176868,Phys/Sens Placements - East,DIRECT PAYMENTS,R,2024,2
833,"Children, Schools and Family",MEDI AID(UK) LTD,39978,27-May-24,522,87,176977,Fostering Support,260000              Human Resources,A,2024,2
834,Community and Housing,SPRING LAKE CARE HOME LTD,1156138,05-Jun-24,9093.8,0,177067,Learning Disabilities Placemnt,321017              Nursing & Residential Care Homes,A,2024,2
835,"Children, Schools and Family",REDACTED PERSONAL DATA,1163043,20-May-24,548.09,0,177211,Fostering Recruit/Assessment,321100              Social Community Care Supplies & Services - Children,R,2024,2
836,"Children, Schools and Family",REDACTED PERSONAL DATA,1167470,27-May-24,548.09,0,177211,Fostering Recruit/Assessment,321100              Social Community Care Supplies & Services - Children,R,2024,2
837,"Children, Schools and Family",HA TUTORS LTD,INV-14745,06-May-24,3346.3,557.72,177219,Non-Delegated Statements,170000              Education,A,2024,2
838,"Children, Schools and Family",HA TUTORS LTD,INV-14760,07-May-24,950.4,158.4,177219,PupilPremium- Virtual School,170000              Education,A,2024,2
839,"Children, Schools and Family",HA TUTORS LTD,INV-14765,07-May-24,614.4,102.4,177219,PupilPremium- Virtual School,170000              Education,A,2024,2
840,"Children, Schools and Family",HA TUTORS LTD,INV-14746,08-May-24,3468,578,177219,Non-Delegated Statements,170000              Education,A,2024,2
841,"Children, Schools and Family",HA TUTORS LTD,INV-14750,08-May-24,2442,407,177219,Non-Delegated Statements,170000              Education,A,2024,2
842,"Children, Schools and Family",HA TUTORS LTD,INV-14744,08-May-24,6977.4,1162.9,177219,Non-Delegated Statements,170000              Education,A,2024,2
843,"Children, Schools and Family",HA TUTORS LTD,INV-14753,08-May-24,559.8,93.3,177219,Non-Delegated Statements,170000              Education,A,2024,2
844,"Children, Schools and Family",HA TUTORS LTD,INV-4751,08-May-24,1110,185,177219,Non-Delegated Statements,170000              Education,A,2024,2
845,"Children, Schools and Family",HA TUTORS LTD,INV-14755,08-May-24,3616.8,602.8,177219,Non-Delegated Statements,170000              Education,A,2024,2
846,"Children, Schools and Family",HA TUTORS LTD,INV-14748,08-May-24,2265.6,377.6,177219,Non-Delegated Statements,170000              Education,A,2024,2
847,"Children, Schools and Family",HA TUTORS LTD,INV-14756,08-May-24,756,126,177219,Non-Delegated Statements,170000              Education,A,2024,2
848,"Children, Schools and Family",HA TUTORS LTD,INV-14752,08-May-24,4369.2,728.2,177219,Non-Delegated Statements,170000              Education,A,2024,2
849,"Children, Schools and Family",HA TUTORS LTD,INV-14743,09-May-24,2786.4,464.4,177219,Non-Delegated Statements,170000              Education,A,2024,2
850,"Children, Schools and Family",HA TUTORS LTD,INV-14749,27-May-24,3454.8,575.8,177219,Non-Delegated Statements,170000              Education,A,2024,2
851,Environment and Regeneration,UK POWER NETWORKS (OPERATIONS),92201264,21-May-24,6659.44,1109.9,177333,Street Lighting,180000              Environmental Services,A,2024,2
852,Corporate Services,EXPERT IN MIND,44992,16-May-24,1697.95,282.99,177342,SLLP - Disbursements,280000              Legal Services                                                                            Confirmed,A,2024,2
853,Community and Housing,HYTYME B AND B,27530,13-May-24,15596.4,2599.4,177425,Bed & Breakfast - accomm,321000              Social Community Care Supplies & Services - Adult,A,2024,2
854,"Children, Schools and Family",HYTYME B AND B,27549,08-May-24,2196,366,177425,Family Assessmt & Intervention,321000              Social Community Care Supplies & Services - Adult,A,2024,2
855,"Children, Schools and Family",HYTYME B AND B,27345,28-May-24,1432.2,238.7,177425,Family Assessmt & Intervention,321000              Social Community Care Supplies & Services - Adult,A,2024,2
856,Community and Housing,REDACTED PERSONAL DATA,1163581,21-May-24,873,0,177453,Phys/Sens Placements - East,DIRECT PAYMENTS,R,2024,2
857,Community and Housing,REDACTED PERSONAL DATA,1163570,21-May-24,724.72,0,177476,Learning Disabilities Placemnt,DIRECT PAYMENTS,R,2024,2
858,Community and Housing,REDACTED PERSONAL DATA,1163508,21-May-24,1444.8,0,177502,Phys/Sens Placements - East,DIRECT PAYMENTS,R,2024,2
859,Corporate Services,HPI LIMITED,6160-002097417,20-May-24,590.04,98.34,177649,Local Taxation Bailiffs,200000              Financial Services,A,2024,2
860,Community and Housing,REDACTED PERSONAL DATA,1163588,21-May-24,703.8,0,177739,Phys/Sens Placements - East,DIRECT PAYMENTS,R,2024,2
861,Community and Housing,REDACTED PERSONAL DATA,1163602,21-May-24,821.12,0,177785,Phys/Sens Placements - East,DIRECT PAYMENTS,R,2024,2
862,Capital,WORKSHOP 305,NEIGHBOURHOOD FD,13-May-24,2964.55,0,177941,Wimbledon Area Regeneration,321000              Social Community Care Supplies & Services - Adult,A,2024,2
863,Community and Housing,WORKSHOP 305,IALA178,20-May-24,570.72,0,177941,Learning Disabilities Placemnt,321000              Social Community Care Supplies & Services - Adult,A,2024,2
864,Community and Housing,WORKSHOP 305,SLAP178,20-May-24,570.6,0,177941,Learning Disabilities Placemnt,321000              Social Community Care Supplies & Services - Adult,A,2024,2
865,Community and Housing,WORKSHOP 305,WJON178,20-May-24,856.08,0,177941,Learning Disabilities Placemnt,321000              Social Community Care Supplies & Services - Adult,A,2024,2
866,Community and Housing,WORKSHOP 305,AGAR178,20-May-24,570.72,0,177941,Learning Disabilities Placemnt,321000              Social Community Care Supplies & Services - Adult,A,2024,2
867,Community and Housing,WORKSHOP 305,ASCO178,20-May-24,856.08,0,177941,Learning Disabilities Placemnt,321000              Social Community Care Supplies & Services - Adult,A,2024,2
868,Community and Housing,WORKSHOP 305,REDM178,20-May-24,570.72,0,177941,Learning Disabilities Placemnt,321000              Social Community Care Supplies & Services - Adult,A,2024,2
869,Community and Housing,WORKSHOP 305,REDM177,20-May-24,570.72,0,177941,Learning Disabilities Placemnt,321000              Social Community Care Supplies & Services - Adult,A,2024,2
870,Community and Housing,WORKSHOP 305,AGAR177,21-May-24,570.72,0,177941,Learning Disabilities Placemnt,321000              Social Community Care Supplies & Services - Adult,A,2024,2
871,Community and Housing,REDACTED PERSONAL DATA,1163880,21-May-24,901.6,0,177967,Learning Disabilities Placemnt,DIRECT PAYMENTS,R,2024,2
872,Community and Housing,REDACTED PERSONAL DATA,1163773,21-May-24,1094.8,0,177999,Learning Disabilities Placemnt,DIRECT PAYMENTS,R,2024,2
873,Community and Housing,REDACTED PERSONAL DATA,1163573,21-May-24,1212.28,0,178412,Learning Disabilities Placemnt,DIRECT PAYMENTS,R,2024,2
874,Community and Housing,REDACTED PERSONAL DATA,1163771,21-May-24,5439,0,178412,Learning Disabilities Placemnt,DIRECT PAYMENTS,R,2024,2
875,Community and Housing,BRAMBLEDOWN CARE HOME,1155944,08-May-24,8081.96,0,178465,Phys/Sens Placements - East,321017              Nursing & Residential Care Homes,A,2024,2
876,Corporate Services,THOMSON REUTERS,6159797652,20-May-24,621.6,103.6,178554,SLLP - Disbursements,260000              Human Resources,A,2024,2
877,Corporate Services,THOMSON REUTERS,6160238455,20-May-24,612,102,178554,SLLP - Disbursements,260000              Human Resources,A,2024,2
878,Corporate Services,THOMSON REUTERS,849981979,30-May-24,999,0,178554,Legal Shared Service,260000              Human Resources,A,2024,2
879,Community and Housing,KEW HOUSE,1156025,08-May-24,5800,0,178621,Older People Placements - East,321017              Nursing & Residential Care Homes,A,2024,2
880,Community and Housing,KEW HOUSE,1156101,08-May-24,8385.84,0,178621,Older People Placements - East,321017              Nursing & Residential Care Homes,A,2024,2
881,Community and Housing,REDACTED PERSONAL DATA,1163784,21-May-24,5303,0,178802,Learning Disabilities Placemnt,DIRECT PAYMENTS,R,2024,2
882,"Children, Schools and Family",CHILDTALK SOLUTION LTD,372,27-May-24,640,0,178806,Non-Delegated Statements,321100              Social Community Care Supplies & Services - Children                                      Confirmed,A,2024,2
883,Community and Housing,REDACTED PERSONAL DATA,1163712,21-May-24,2306.92,0,178874,Learning Disabilities Placemnt,DIRECT PAYMENTS,R,2024,2
884,Community and Housing,REDACTED PERSONAL DATA,1163913,21-May-24,1488.4,0,179049,Learning Disabilities Placemnt,DIRECT PAYMENTS,R,2024,2
885,Community and Housing,REDACTED PERSONAL DATA,1163477,21-May-24,751,0,179142,Learning Disabilities Placemnt,DIRECT PAYMENTS,R,2024,2
886,Corporate Services,HAYS SPECIALIST RECRUITM'T LTD,1013568161,05-Jun-24,2100,350,179169,Chief Executive,260000              Human Resources,A,2024,2
887,Community and Housing,REDACTED PERSONAL DATA,1163741,21-May-24,2126.36,0,179332,Phys/Sens Placements - East,DIRECT PAYMENTS,R,2024,2
888,Community and Housing,REDACTED PERSONAL DATA,1163807,21-May-24,4941.4,0,179383,Learning Disabilities Placemnt,DIRECT PAYMENTS,R,2024,2
889,"Children, Schools and Family",REDACTED PERSONAL DATA,12YE,21-May-24,536.21,0,179598,Placements Over 18,321000              Social Community Care Supplies & Services - Adult,R,2024,2
890,Community and Housing,ELYSIUM CARE PARTNERSHIPS LTD,1155976,08-May-24,9818.32,0,179734,Learning Disabilities Placemnt,321017              Nursing & Residential Care Homes,A,2024,2
891,Community and Housing,ELYSIUM CARE PARTNERSHIPS LTD,1155995,08-May-24,3756.48,0,179734,Learning Disabilities Placemnt,321017              Nursing & Residential Care Homes,A,2024,2
892,Community and Housing,ELYSIUM CARE PARTNERSHIPS LTD,1156108,08-May-24,10655.8,0,179734,Learning Disabilities Placemnt,321017              Nursing & Residential Care Homes,A,2024,2
893,Community and Housing,WESTHOPE LTD,1155948,08-May-24,6350.78,1058.46,179748,Learning Disabilities Placemnt,321017              Nursing & Residential Care Homes,A,2024,2
894,Environment and Regeneration,BARKLANDS TREE SPECIALISTS,395,30-May-24,49890,8315,179780,Highways GM Contract,240000              Horticultural,A,2024,2
895,Environment and Regeneration,BARKLANDS TREE SPECIALISTS,391,30-May-24,8932.5,1488.75,179780,Pks Rec Grds (Unloc),240000              Horticultural,A,2024,2
896,Environment and Regeneration,BARKLANDS TREE SPECIALISTS,396,30-May-24,7830,1305,179780,Pks Rec Grds (Unloc),240000              Horticultural,A,2024,2
897,Capital,BARKLANDS TREE SPECIALISTS,392,30-May-24,9965,1660.83,179780,Street Trees,240000              Horticultural,A,2024,2
898,Environment and Regeneration,BARKLANDS TREE SPECIALISTS,393,30-May-24,6075,1012.5,179780,Pks Rec Grds (Unloc),240000              Horticultural,A,2024,2
899,Community and Housing,SUNNINGDALE HOUSE CARE HOME,1156098,08-May-24,2575,0,179794,Learning Disabilities Placemnt,321017              Nursing & Residential Care Homes,A,2024,2
900,Community and Housing,SUNLIGHT HOUSE,1155889,08-May-24,7667.6,0,179813,Learning Disabilities Placemnt,321017              Nursing & Residential Care Homes,A,2024,2
901,Community and Housing,SUNLIGHT HOUSE,1156001,08-May-24,5140,0,179813,Learning Disabilities Placemnt,321017              Nursing & Residential Care Homes,A,2024,2
902,Community and Housing,SUNLIGHT HOUSE,1156158,08-May-24,8740,0,179813,Learning Disabilities Placemnt,321017              Nursing & Residential Care Homes,A,2024,2
903,Community and Housing,BHAKTI SHYAMA CARE CENTRE,1155924,08-May-24,3622.6,0,179993,Older People Placements - East,321017              Nursing & Residential Care Homes,A,2024,2
904,Community and Housing,BHAKTI SHYAMA CARE CENTRE,1156183,08-May-24,3050.28,0,179993,Older People Placements - East,321017              Nursing & Residential Care Homes,A,2024,2
905,Community and Housing,BHAKTI SHYAMA CARE CENTRE,1156188,08-May-24,3864.68,0,179993,Older People Placements - East,321017              Nursing & Residential Care Homes,A,2024,2
906,"Children, Schools and Family",REAMCARE LTD,LHRPAM052401,17-May-24,20721.86,0,180045,Placements Under 18,321100              Social Community Care Supplies & Services - Children Residential,A,2024,2
907,Community and Housing,REDACTED PERSONAL DATA,1154670,06-May-24,1915.9,0,180174,Older People Placements - East,DIRECT PAYMENTS,R,2024,2
908,Community and Housing,REDACTED PERSONAL DATA,1163890,21-May-24,1373.23,0,180174,Older People Placements - East,DIRECT PAYMENTS,R,2024,2
909,Community and Housing,SUNRISE DAY CARE,4747,06-May-24,553.56,0,180196,Older People Placements - East,321000              Social Community Care Supplies & Services - Adult,A,2024,2
910,Community and Housing,SUNRISE DAY CARE,4775,06-May-24,553.56,0,180196,Older People Placements - East,321000              Social Community Care Supplies & Services - Adult,A,2024,2
911,Community and Housing,SUNRISE DAY CARE,4774,06-May-24,922.6,0,180196,Older People Placements - East,321000              Social Community Care Supplies & Services - Adult,A,2024,2
912,Community and Housing,SUNRISE DAY CARE,4769,08-May-24,738.08,0,180196,Learning Disabilities Placemnt,321000              Social Community Care Supplies & Services - Adult,A,2024,2
913,Community and Housing,SUNRISE DAY CARE,4765,08-May-24,553.56,0,180196,Older People Placements - East,321000              Social Community Care Supplies & Services - Adult,A,2024,2
914,Community and Housing,SUNRISE DAY CARE,4768,08-May-24,553.56,0,180196,Older People Placements - East,321000              Social Community Care Supplies & Services - Adult,A,2024,2
915,Community and Housing,SUNRISE DAY CARE,4776,08-May-24,553.56,0,180196,Older People Placements - East,321000              Social Community Care Supplies & Services - Adult,A,2024,2
916,Community and Housing,SUNRISE DAY CARE,4784,28-May-24,553.56,0,180196,Older People Placements - East,321000              Social Community Care Supplies & Services - Adult,A,2024,2
917,Community and Housing,SUNRISE DAY CARE,4787,28-May-24,553.56,0,180196,Older People Placements - East,321000              Social Community Care Supplies & Services - Adult,A,2024,2
918,Community and Housing,SUNRISE DAY CARE,4788,28-May-24,738.08,0,180196,Learning Disabilities Placemnt,321000              Social Community Care Supplies & Services - Adult,A,2024,2
919,Community and Housing,SUNRISE DAY CARE,4795,29-May-24,553.56,0,180196,Older People Placements - East,321000              Social Community Care Supplies & Services - Adult,A,2024,2
920,Community and Housing,SUNRISE DAY CARE,4794,29-May-24,553.56,0,180196,Older People Placements - East,321000              Social Community Care Supplies & Services - Adult,A,2024,2
921,Community and Housing,SUNRISE DAY CARE,4792,29-May-24,830.34,0,180196,Older People Placements - East,321000              Social Community Care Supplies & Services - Adult,A,2024,2
922,Community and Housing,REDACTED PERSONAL DATA,1163633,21-May-24,625.6,0,180242,Phys/Sens Placements - East,DIRECT PAYMENTS,R,2024,2
923,Community and Housing,REDACTED PERSONAL DATA,1163812,21-May-24,1446.72,0,180282,Phys/Sens Placements - East,DIRECT PAYMENTS,R,2024,2
924,Community and Housing,REDACTED PERSONAL DATA,1163511,21-May-24,3209.28,0,180285,Older People Placements - East,DIRECT PAYMENTS,R,2024,2
925,Community and Housing,REDACTED PERSONAL DATA,1163789,21-May-24,1231.47,0,180286,Older People Placements - East,DIRECT PAYMENTS,R,2024,2
926,Community and Housing,SEVACARE,90611,08-May-24,2500.2,0,180307,Phys/Sens Placements - East,321000              Social Community Care Supplies & Services - Adult,A,2024,2
927,Community and Housing,SEVACARE,90611A,08-May-24,550.04,0,180307,Older People Placements - East,321000              Social Community Care Supplies & Services - Adult,A,2024,2
928,Community and Housing,SEVACARE,92069,21-May-24,697.71,0,180307,Older People Placements - East,321000              Social Community Care Supplies & Services - Adult,A,2024,2
929,Community and Housing,SEVACARE,92055,21-May-24,541.17,0,180307,Phys/Sens Placements - East,321000              Social Community Care Supplies & Services - Adult,A,2024,2
930,Community and Housing,SEVACARE,92051,21-May-24,500.92,0,180307,Older People Placements - East,321000              Social Community Care Supplies & Services - Adult,A,2024,2
931,Community and Housing,SEVACARE,92057,21-May-24,1690.61,0,180307,Learning Disabilities Placemnt,321000              Social Community Care Supplies & Services - Adult,A,2024,2
932,Community and Housing,SEVACARE,92059,21-May-24,644.04,0,180307,Older People Placements - East,321000              Social Community Care Supplies & Services - Adult,A,2024,2
933,Community and Housing,SEVACARE,92062,21-May-24,536.7,0,180307,Older People Placements - East,321000              Social Community Care Supplies & Services - Adult,A,2024,2
934,Community and Housing,SEVACARE,92061,21-May-24,626.15,0,180307,Older People Placements - East,321000              Social Community Care Supplies & Services - Adult,A,2024,2
935,Community and Housing,SEVACARE,92066,21-May-24,572.48,0,180307,Older People Placements - East,321000              Social Community Care Supplies & Services - Adult,A,2024,2
936,Community and Housing,SEVACARE,92082,22-May-24,5724.8,0,180307,Older People Placements - East,321000              Social Community Care Supplies & Services - Adult,A,2024,2
937,Community and Housing,SEVACARE,92075,22-May-24,652.99,0,180307,Learning Disabilities Placemnt,321000              Social Community Care Supplies & Services - Adult,A,2024,2
938,Community and Housing,SEVACARE,92078,22-May-24,1127.07,0,180307,Older People Placements - East,321000              Social Community Care Supplies & Services - Adult,A,2024,2
939,Community and Housing,SEVACARE,92065,22-May-24,697.71,0,180307,Older People Placements - East,321000              Social Community Care Supplies & Services - Adult,A,2024,2
940,Community and Housing,SEVACARE,92077,22-May-24,787.16,0,180307,Learning Disabilities Placemnt,321000              Social Community Care Supplies & Services - Adult,A,2024,2
941,Community and Housing,SEVACARE,92073,22-May-24,1413.31,0,180307,Older People Placements - East,321000              Social Community Care Supplies & Services - Adult,A,2024,2
942,Community and Housing,SEVACARE,92053,29-May-24,1717.41,0,180307,Older People Placements - East,321000              Social Community Care Supplies & Services - Adult,A,2024,2
943,Community and Housing,REDACTED PERSONAL DATA,1163706,21-May-24,519.68,0,180395,Older People Placements - East,DIRECT PAYMENTS,R,2024,2
944,Corporate Services,RESTORE PLC,1475343,20-May-24,909.58,151.6,180441,Legal Shared Service,190000              Facilities & Management Services,A,2024,2
945,"Children, Schools and Family",RESTORE PLC,1471580,20-May-24,912.58,152.1,180441,Head of CSC & Youth Inclusion,190000              Facilities & Management Services,A,2024,2
946,"Children, Schools and Family",RESTORE PLC,1475341,20-May-24,633.79,105.63,180441,Fostering Recruit/Assessment,190000              Facilities & Management Services,A,2024,2
947,Community and Housing,REDACTED PERSONAL DATA,1163664,21-May-24,616.32,0,180478,Phys/Sens Placements - East,DIRECT PAYMENTS,R,2024,2
948,"Children, Schools and Family",REDACTED PERSONAL DATA,1153844,02-May-24,548.09,0,180579,UASC LAC Under 18,321100              Social Community Care Supplies & Services - Children,R,2024,2
949,"Children, Schools and Family",REDACTED PERSONAL DATA,1157924,10-May-24,548.09,0,180579,UASC LAC Under 18,321100              Social Community Care Supplies & Services - Children,R,2024,2
950,"Children, Schools and Family",REDACTED PERSONAL DATA,1161407,17-May-24,548.09,0,180579,UASC LAC Under 18,321100              Social Community Care Supplies & Services - Children,R,2024,2
951,"Children, Schools and Family",REDACTED PERSONAL DATA,1167036,23-May-24,548.09,0,180579,UASC LAC Under 18,321100              Social Community Care Supplies & Services - Children,R,2024,2
952,"Children, Schools and Family",REDACTED PERSONAL DATA,1169234,31-May-24,548.09,0,180579,UASC LAC Under 18,321100              Social Community Care Supplies & Services - Children,R,2024,2
953,"Children, Schools and Family",NCER CIC,61838400,06-May-24,9818.04,1636.34,180585, Central Administration,270000              Information Communication Technology,A,2024,2
954,Environment and Regeneration,HMCTS,TECBATCHESMAY24,10-May-24,25000,0,180649,Operational Running Costs,350000              Street & Traffic Management,A,2024,2
955,Unassigned,LOVE WIMBLEDON LTD BUS.IMP.DIS,5437,13-May-24,196164.18,32694.03,180802,Corporate Services,200000              Financial Services,A,2024,2
956,Community and Housing,REDACTED PERSONAL DATA,1163503,21-May-24,938.4,0,180804,Learning Disabilities Placemnt,DIRECT PAYMENTS,R,2024,2
957,"Children, Schools and Family",FIVE RIVERS CHILD CARE,112501,22-May-24,6214.29,0,180823,Placements Under 18,360000              Passenger Transport                                                                       Confirmed,A,2024,2
958,"Children, Schools and Family",FIVE RIVERS CHILD CARE,112507,22-May-24,3833.14,0,180823,UASC LAC Under 18,360000              Passenger Transport                                                                       Confirmed,A,2024,2
959,Community and Housing,REDACTED PERSONAL DATA,1163607,21-May-24,2258.16,0,180866,Phys/Sens Placements - East,DIRECT PAYMENTS,R,2024,2
960,Community and Housing,REDACTED PERSONAL DATA,1163717,21-May-24,2187.44,0,180889,Older People Placements - East,DIRECT PAYMENTS,R,2024,2
961,Community and Housing,SENAD ECCLESBOURNE LODGE,1155779,08-May-24,10644.8,0,180904,Learning Disabilities Placemnt,321017              Nursing & Residential Care Homes,A,2024,2
962,Community and Housing,REDACTED PERSONAL DATA,1163840,21-May-24,1170.96,0,180999,Older People Placements - East,DIRECT PAYMENTS,R,2024,2
963,Corporate Services,COLLECTOR SET PRINTERS LTD,101255715,03-Jun-24,828.58,138.1,181021,Printing,190000              Facilities & Management Services,A,2024,2
964,Corporate Services,COLLECTOR SET PRINTERS LTD,101256392,03-Jun-24,955.48,159.25,181021,Printing,190000              Facilities & Management Services,A,2024,2
965,Environment and Regeneration,PREMIER MINICAB SER. UK LTD,1348,28-May-24,3528,588,181053,Passenger Transport,360000              Passenger Transport,A,2024,2
966,Environment and Regeneration,PREMIER MINICAB SER. UK LTD,1237,21-May-24,1980,330,181053,Passenger Transport,360000              Passenger Transport,A,2024,2
967,"Children, Schools and Family",PREMIER MINICAB SER. UK LTD,805A,21-May-24,714,119,181053,Family Supp SafeGuard - Place,360000              Passenger Transport,A,2024,2
968,Community and Housing,REDACTED PERSONAL DATA,1163553,21-May-24,2914.24,0,181129,Older People Placements - East,DIRECT PAYMENTS,R,2024,2
969,Community and Housing,REDACTED PERSONAL DATA,1163482,21-May-24,1720.4,0,181418,Older People Placements - East,DIRECT PAYMENTS,R,2024,2
970,Community and Housing,MERTON CIL,ADVICE SUPPORT,16-May-24,24708,0,181464,Grants to Voluntary Orgs,200000              Financial Services,A,2024,2
971,"Children, Schools and Family",REDACTED PERSONAL DATA,19/2024,28-May-24,1154.92,0,181587,Placements Over 18,321000              Social Community Care Supplies & Services - Adult,R,2024,2
972,"Children, Schools and Family",KIKI'S CHILDREN'S CLINIC,16856,23-May-24,532.5,0,181849,Non-Delegated Statements,310000              Healthcare                                                                                Confirmed,A,2024,2
973,"Children, Schools and Family",KIKI'S CHILDREN'S CLINIC,16855,23-May-24,540,0,181849,Non-Delegated Statements,310000              Healthcare                                                                                Confirmed,A,2024,2
974,"Children, Schools and Family",KIKI'S CHILDREN'S CLINIC,16877,27-May-24,700,0,181849,Non-Delegated Statements,310000              Healthcare                                                                                Confirmed,A,2024,2
975,"Children, Schools and Family",KIKI'S CHILDREN'S CLINIC,16878,27-May-24,700,0,181849,Non-Delegated Statements,310000              Healthcare                                                                                Confirmed,A,2024,2
976,Environment and Regeneration,METIS CONSULTANTS LIMITED,5876,30-May-24,5100,850,181960,TRAF & HWYS CAPITAL PROJECTS,150000              Consultancy,A,2024,2
977,Community and Housing,REDACTED PERSONAL DATA,1163868,21-May-24,532.72,0,182083,Learning Disabilities Placemnt,DIRECT PAYMENTS,R,2024,2
978,Corporate Services,SHARPE PRITCHARD SOLICITORS,100007501,09-May-24,11120.29,1853.38,182165,SLLP - Disbursements,280000              Legal Services                                                                            Confirmed,A,2024,2
979,Corporate Services,SHARPE PRITCHARD SOLICITORS,100004610,31-May-24,2955.6,492.6,182165,SLLP - Disbursements,280000              Legal Services                                                                            Confirmed,A,2024,2
980,Corporate Services,BIRKIN CLEANING SERVICES LTD,34925,06-May-24,1448.78,241.46,182414,Corporate Contracts - FM,130000              Cleaning & Janitorial,A,2024,2
981,Community and Housing,BIRKIN CLEANING SERVICES LTD,34923,06-May-24,1798.67,299.78,182414,Morden Library,130000              Cleaning & Janitorial,A,2024,2
982,Community and Housing,BIRKIN CLEANING SERVICES LTD,34932,06-May-24,2120.48,353.41,182414,Pollards Hill Library,130000              Cleaning & Janitorial,A,2024,2
983,Corporate Services,BIRKIN CLEANING SERVICES LTD,34924,06-May-24,2444.05,407.34,182414,Corporate Contracts - FM,130000              Cleaning & Janitorial,A,2024,2
984,Corporate Services,BIRKIN CLEANING SERVICES LTD,34928,08-May-24,8688.29,1448.05,182414,Corporate Contracts - FM,130000              Cleaning & Janitorial,A,2024,2
985,Corporate Services,BIRKIN CLEANING SERVICES LTD,34922,06-May-24,27305.2,4550.87,182414,Corporate Contracts - FM,130000              Cleaning & Janitorial,A,2024,2
986,Environment and Regeneration,BIRKIN CLEANING SERVICES LTD,34927,02-May-24,698.4,116.4,182414,Durnsford industrial estate,130000              Cleaning & Janitorial,A,2024,2
987,"Children, Schools and Family",BIRKIN CLEANING SERVICES LTD,34943,06-May-24,2465.74,410.96,182414,Steers Mead BuildingManagement,130000              Cleaning & Janitorial,A,2024,2
988,Community and Housing,BIRKIN CLEANING SERVICES LTD,34940,06-May-24,2167.12,361.19,182414,JMC  Day Centre,130000              Cleaning & Janitorial,A,2024,2
989,Community and Housing,BIRKIN CLEANING SERVICES LTD,34937,06-May-24,2143.6,357.27,182414,All Saints Day Centre,130000              Cleaning & Janitorial,A,2024,2
990,Community and Housing,BIRKIN CLEANING SERVICES LTD,34939,06-May-24,1842.22,307.04,182414,Highpath (DayCentre) Leyton Rd,130000              Cleaning & Janitorial,A,2024,2
991,Community and Housing,BIRKIN CLEANING SERVICES LTD,34931,06-May-24,1750.62,291.77,182414,Mitcham Library,130000              Cleaning & Janitorial,A,2024,2
992,Community and Housing,BIRKIN CLEANING SERVICES LTD,34934,02-May-24,617.09,102.85,182414,West Barnes Lib,130000              Cleaning & Janitorial,A,2024,2
993,"Children, Schools and Family",BIRKIN CLEANING SERVICES LTD,34942,02-May-24,754.75,125.79,182414,Adventure Playground Project,130000              Cleaning & Janitorial,A,2024,2
994,Community and Housing,BIRKIN CLEANING SERVICES LTD,34938,02-May-24,770.33,128.39,182414,Eastway Day Centre,130000              Cleaning & Janitorial,A,2024,2
995,"Children, Schools and Family",BIRKIN CLEANING SERVICES LTD,34936,02-May-24,750.68,125.11,182414,Merton Youth Centres.,130000              Cleaning & Janitorial,A,2024,2
996,Community and Housing,BIRKIN CLEANING SERVICES LTD,34933,02-May-24,1049.77,174.96,182414,Raynes Park Library,130000              Cleaning & Janitorial,A,2024,2
997,Community and Housing,BIRKIN CLEANING SERVICES LTD,34930,02-May-24,1066.75,177.79,182414,Wimbledon Library,130000              Cleaning & Janitorial,A,2024,2
998,"Children, Schools and Family",BIRKIN CLEANING SERVICES LTD,34941,06-May-24,1473.44,245.57,182414,Acacia IGC Building Management,130000              Cleaning & Janitorial,A,2024,2
999,Community and Housing,BIRKIN CLEANING SERVICES LTD,34945,06-May-24,1451.57,241.93,182414,Donald Hope Library,130000              Cleaning & Janitorial,A,2024,2
1000,"Children, Schools and Family",BIRKIN CLEANING SERVICES LTD,34944,06-May-24,1438.18,239.7,182414,Brightwell,130000              Cleaning & Janitorial,A,2024,2
1001,Environment and Regeneration,BIRKIN CLEANING SERVICES LTD,34947,06-May-24,902.47,150.41,182414,Transport-Contract Hire,130000              Cleaning & Janitorial,A,2024,2
1002,"Children, Schools and Family",BIRKIN CLEANING SERVICES LTD,34935,06-May-24,754.63,125.77,182414,Merton Youth Centres.,130000              Cleaning & Janitorial,A,2024,2
1003,Community and Housing,BIRKIN CLEANING SERVICES LTD,34929,06-May-24,3525.84,587.64,182414,Wimbledon Library,130000              Cleaning & Janitorial,A,2024,2
1004,Environment and Regeneration,BIRKIN CLEANING SERVICES LTD,34926,16-May-24,3196.02,532.67,182414,Vestry Hall,130000              Cleaning & Janitorial,A,2024,2
1005,Environment and Regeneration,BIRKIN CLEANING SERVICES LTD,32326,16-May-24,3196.02,532.67,182414,Vestry Hall,130000              Cleaning & Janitorial,A,2024,2
1006,Environment and Regeneration,British Standards Institution,96522771,14-May-24,2263.2,377.2,182454,Building Control,170000              Education,A,2024,2
1007,"Children, Schools and Family",REDACTED PERSONAL DATA,1153851,02-May-24,514.26,0,182558,UASC LAC Under 18,321100              Social Community Care Supplies & Services - Children,R,2024,2
1008,"Children, Schools and Family",REDACTED PERSONAL DATA,1157931,10-May-24,514.26,0,182558,UASC LAC Under 18,321100              Social Community Care Supplies & Services - Children,R,2024,2
1009,"Children, Schools and Family",REDACTED PERSONAL DATA,1161414,17-May-24,514.26,0,182558,UASC LAC Under 18,321100              Social Community Care Supplies & Services - Children,R,2024,2
1010,"Children, Schools and Family",REDACTED PERSONAL DATA,1167043,23-May-24,514.26,0,182558,UASC LAC Under 18,321100              Social Community Care Supplies & Services - Children,R,2024,2
1011,"Children, Schools and Family",REDACTED PERSONAL DATA,1169240,31-May-24,514.26,0,182558,UASC LAC Under 18,321100              Social Community Care Supplies & Services - Children,R,2024,2
1012,"Children, Schools and Family",REDACTED PERSONAL DATA,1153827,02-May-24,548.09,0,182648,UASC LAC Under 18,321100              Social Community Care Supplies & Services - Children,R,2024,2
1013,"Children, Schools and Family",REDACTED PERSONAL DATA,1157907,10-May-24,648.09,0,182648,UASC LAC Under 18,321100              Social Community Care Supplies & Services - Children,R,2024,2
1014,"Children, Schools and Family",REDACTED PERSONAL DATA,1161390,17-May-24,507.12,0,182648,UASC LAC Under 18,321100              Social Community Care Supplies & Services - Children,R,2024,2
1015,Community and Housing,REDACTED PERSONAL DATA,1163901,21-May-24,6347.8,0,182894,Learning Disabilities Placemnt,DIRECT PAYMENTS,R,2024,2
1016,Corporate Services,PELLINGS LLP,SI9039022,17-May-24,1200,200,182945,SLLP - Disbursements,280000              Legal Services                                                                            Confirmed,A,2024,2
1017,Corporate Services,PELLINGS LLP,SI9O37845,28-May-24,600,100,182945,SLLP - Disbursements,280000              Legal Services                                                                            Confirmed,A,2024,2
1018,Corporate Services,PELLINGS LLP,SI9O38438,28-May-24,1200,200,182945,SLLP - Disbursements,280000              Legal Services                                                                            Confirmed,A,2024,2
1019,Corporate Services,PELLINGS LLP,SI9039165,03-Jun-24,1200,200,182945,SLLP - Disbursements,280000              Legal Services                                                                            Confirmed,A,2024,2
1020,Corporate Services,PELLINGS LLP,SI9039163,03-Jun-24,1200,200,182945,SLLP - Disbursements,280000              Legal Services                                                                            Confirmed,A,2024,2
1021,Community and Housing,REDACTED PERSONAL DATA,1163612,21-May-24,6145.6,0,183167,Older People Placements - East,DIRECT PAYMENTS,R,2024,2
1022,Community and Housing,ST ANTONYS CARE HOME,1155914,08-May-24,3840,0,183206,Older People Placements - East,321017              Nursing & Residential Care Homes,A,2024,2
1023,Community and Housing,ST ANTONYS CARE HOME,1155950,08-May-24,4200,0,183206,Mental Health Placements,321017              Nursing & Residential Care Homes,A,2024,2
1024,Community and Housing,ST ANTONYS CARE HOME,1156035,08-May-24,4400,0,183206,Older People Placements - East,321017              Nursing & Residential Care Homes,A,2024,2
1025,Community and Housing,ST ANTONYS CARE HOME,1156116,08-May-24,4200,0,183206,Older People Placements - East,321017              Nursing & Residential Care Homes,A,2024,2
1026,Community and Housing,ST ANTONYS CARE HOME,1156143,08-May-24,4200,0,183206,Older People Placements - East,321017              Nursing & Residential Care Homes,A,2024,2
1027,Community and Housing,ST ANTONYS CARE HOME,1156163,08-May-24,4000,0,183206,Older People Placements - East,321017              Nursing & Residential Care Homes,A,2024,2
1028,Community and Housing,ST ANTONYS CARE HOME,1166494,22-May-24,1100,0,183206,Older People Placements - East,321017              Nursing & Residential Care Homes,A,2024,2
1029,Community and Housing,PARKSIDE NURSING HOME,1156189,08-May-24,4080,0,183209,Older People Placements - East,321017              Nursing & Residential Care Homes,A,2024,2
1030,"Children, Schools and Family",REDACTED PERSONAL DATA,1162684,20-May-24,625.6,0,183239, Childrens Short Breaks,CSF-DIRECT PAYMENTS,R,2024,2
1031,"Children, Schools and Family",REDACTED PERSONAL DATA,1162644,20-May-24,625.6,0,183241, Childrens Short Breaks,CSF-DIRECT PAYMENTS,R,2024,2
1032,Unassigned,HARRIS ACADEMY MORDEN,SCHOOLS 2425/2 A,07-May-24,5655,0,183257,Schools,170000              Education,A,2024,2
1033,Community and Housing,Wimbledon Medical Practice,LARC-Q4-23/24WMP,06-May-24,897,0,183348,PH - Sexual Health,310000              Healthcare,A,2024,2
1034,Community and Housing,CENTRAL MEDICAL CENTRE,Q423/24(JAN-MAR2,06-May-24,1013.1,0,183386,PH - Sexual Health,310000              Healthcare,A,2024,2
1035,Community and Housing,REDACTED PERSONAL DATA,1163619,21-May-24,1371.72,0,183460,Learning Disabilities Placemnt,DIRECT PAYMENTS,R,2024,2
1036,Community and Housing,REDACTED PERSONAL DATA,1163667,21-May-24,1622.64,0,183464,Older People Placements - East,DIRECT PAYMENTS,R,2024,2
1037,Corporate Services,Mr Jonathan Moffett KC,INVJM658,13-May-24,1878,313,183507,SLLP - Disbursements,280000              Legal Services                                                                            Confirmed,A,2024,2
1038,Community and Housing,CREST MANOR LTD,CM0856,13-May-24,2145,0,183548,Bed & Breakfast - accomm,250000              Housing Management,A,2024,2
1039,Community and Housing,RENTOKIL INITIAL UK LTD,35081812,13-May-24,740.99,123.5,183672,Eastway Day Centre,130000              Cleaning & Janitorial,A,2024,2
1040,Corporate Services,RENTOKIL INITIAL UK LTD,60447303,31-May-24,1911.25,318.54,183672,Corporate Contracts - FM,130000              Cleaning & Janitorial,A,2024,2
1041,Community and Housing,REDACTED PERSONAL DATA,1163578,21-May-24,614.56,0,183690,Older People Placements - East,DIRECT PAYMENTS,R,2024,2
1042,"Children, Schools and Family",GREENSHAW HIGH SCHOOL,GHSI834,27-May-24,13751.92,0,183994,Non-Delegated Statements,170000              Education,A,2024,2
1043,"Children, Schools and Family",LEXTOX,320905,08-May-24,844.8,140.8,184053,Family Supp SafeGuard - Place,280000              Legal Services,A,2024,2
1044,"Children, Schools and Family",LEXTOX,320102,15-May-24,508.8,84.8,184053,Children in Care Under18-Team1,280000              Legal Services,A,2024,2
1045,"Children, Schools and Family",LEXTOX,316065,27-May-24,2110.2,351.7,184053,Family Supp SafeGuard - Place,280000              Legal Services,A,2024,2
1046,Community and Housing,REDACTED PERSONAL DATA,1163719,21-May-24,3093.44,0,184175,Older People Placements - East,DIRECT PAYMENTS,R,2024,2
1047,"Children, Schools and Family",SUNNYHILL PRIMARY SCHOOL,SUN000356,08-May-24,2701.32,0,184196,Non-Delegated Statements,170000              Education,A,2024,2
1048,Community and Housing,REDACTED PERSONAL DATA,1163696,21-May-24,508.32,0,184315,Older People Placements - East,DIRECT PAYMENTS,R,2024,2
1049,Community and Housing,CROWNWISE LTD,MP/167/123,02-May-24,1229.6,0,184360,Mental Health Placements,321000              Social Community Care Supplies & Services - Adult,A,2024,2
1050,Community and Housing,CROWNWISE LTD,BG/167/006,08-May-24,2520.4,0,184360,Mental Health Placements,321000              Social Community Care Supplies & Services - Adult,A,2024,2
1051,Community and Housing,CROWNWISE LTD,JM/167/005,08-May-24,2542.4,0,184360,Mental Health Placements,321000              Social Community Care Supplies & Services - Adult,A,2024,2
1052,Community and Housing,CROWNWISE LTD,1155839,08-May-24,5907,0,184360,Mental Health Placements,321000              Social Community Care Supplies & Services - Adult,A,2024,2
1053,Community and Housing,CROWNWISE LTD,MP/167/124,10-May-24,1229.6,0,184360,Mental Health Placements,321000              Social Community Care Supplies & Services - Adult,A,2024,2
1054,Community and Housing,CROWNWISE LTD,BG/167/007,16-May-24,2520.4,0,184360,Mental Health Placements,321000              Social Community Care Supplies & Services - Adult,A,2024,2
1055,Community and Housing,CROWNWISE LTD,JM/167/006,16-May-24,2542.4,0,184360,Mental Health Placements,321000              Social Community Care Supplies & Services - Adult,A,2024,2
1056,"Children, Schools and Family",REDACTED PERSONAL DATA,1153879,02-May-24,582.17,0,184386,Placements Under 18,321100              Social Community Care Supplies & Services - Children,R,2024,2
1057,"Children, Schools and Family",REDACTED PERSONAL DATA,1161444,17-May-24,582.17,0,184386,Placements Under 18,321100              Social Community Care Supplies & Services - Children,R,2024,2
1058,"Children, Schools and Family",REDACTED PERSONAL DATA,1167074,23-May-24,582.17,0,184386,Placements Under 18,321100              Social Community Care Supplies & Services - Children,R,2024,2
1059,"Children, Schools and Family",REDACTED PERSONAL DATA,1169270,31-May-24,582.17,0,184386,Placements Under 18,321100              Social Community Care Supplies & Services - Children,R,2024,2
1060,Corporate Services,REDACTED PERSONAL DATA,INVMR397,04-Jun-24,5040,840,184437,SLLP - Disbursements,280000              Legal Services                                                                            Confirmed,R,2024,2
1061,Community and Housing,REDACTED PERSONAL DATA,1163746,21-May-24,4812,0,184580,Older People Placements - East,DIRECT PAYMENTS,R,2024,2
1062,Unassigned,PENSION TOP-UP FUND (LBM),CAP COST73,09-May-24,67249.19,0,184583,Super Fund - New Pension Regs,PENSIONS,A,2024,2
1063,Unassigned,PENSION TOP-UP FUND (LBM),CAP COST233,14-May-24,166529.81,0,184583,Super Fund - New Pension Regs,PENSIONS,A,2024,2
1064,Unassigned,PENSION TOP-UP FUND (LBM),CAP COST232,17-May-24,58500.26,0,184583,Super Fund - New Pension Regs,PENSIONS,A,2024,2
1065,Community and Housing,REDACTED PERSONAL DATA,1163714,21-May-24,867.48,0,184608,Older People Placements - East,DIRECT PAYMENTS,R,2024,2
1066,Community and Housing,SK HOUSING LTD,7615,10-May-24,53106,8851,184774,Bed & Breakfast - accomm,321000              Social Community Care Supplies & Services - Adult,A,2024,2
1067,Community and Housing,REDACTED PERSONAL DATA,1163878,21-May-24,977.04,0,184819,Older People Placements - East,DIRECT PAYMENTS,R,2024,2
1068,"Children, Schools and Family",HIGHER LEVEL CARE (HLC) LTD,15731,10-May-24,2435.67,0,184822,Placements Over 18,321100              Social Community Care Supplies & Services - Children Residential,A,2024,2
1069,"Children, Schools and Family",HIGHER LEVEL CARE (HLC) LTD,15733,10-May-24,3764.02,0,184822,UASC Care Leavers Over 18,321100              Social Community Care Supplies & Services - Children Residential,A,2024,2
1070,"Children, Schools and Family",HIGHER LEVEL CARE (HLC) LTD,15735,10-May-24,1992.99,0,184822,UASC Care Leavers Over 18,321100              Social Community Care Supplies & Services - Children Residential,A,2024,2
1071,"Children, Schools and Family",HIGHER LEVEL CARE (HLC) LTD,15737,10-May-24,3764.33,0,184822,UASC Care Leavers Over 18,321100              Social Community Care Supplies & Services - Children Residential,A,2024,2
1072,"Children, Schools and Family",HIGHER LEVEL CARE (HLC) LTD,15807,17-May-24,1928.7,0,184822,UASC Care Leavers Over 18,321100              Social Community Care Supplies & Services - Children Residential,A,2024,2
1073,"Children, Schools and Family",HIGHER LEVEL CARE (HLC) LTD,15805,17-May-24,3642.6,0,184822,UASC Care Leavers Over 18,321100              Social Community Care Supplies & Services - Children Residential,A,2024,2
1074,"Children, Schools and Family",HIGHER LEVEL CARE (HLC) LTD,15809,17-May-24,3642.9,0,184822,UASC Care Leavers Over 18,321100              Social Community Care Supplies & Services - Children Residential,A,2024,2
1075,"Children, Schools and Family",HIGHER LEVEL CARE (HLC) LTD,15803,17-May-24,2357.1,0,184822,Placements Over 18,321100              Social Community Care Supplies & Services - Children Residential,A,2024,2
1076,"Children, Schools and Family",COLLINGHAM COLLEGE,18957,08-May-24,9655,0,184869,Non-Delegated Statements,170000              Education                                                                                 Confirmed,A,2024,2
1077,"Children, Schools and Family",QUARTZ PROPERTIES,LBMSS51C,06-May-24,3100,0,184919,Family Supp SafeGuard - Place,321000              Social Community Care Supplies & Services - Adult,A,2024,2
1078,"Children, Schools and Family",QUARTZ PROPERTIES,LBMSS45B,08-May-24,1650,0,184919,Family Assessmt & Intervention,321000              Social Community Care Supplies & Services - Adult,A,2024,2
1079,"Children, Schools and Family",QUARTZ PROPERTIES,LBMSS46B,08-May-24,1705,0,184919,Family Assessmt & Intervention,321000              Social Community Care Supplies & Services - Adult,A,2024,2
1080,"Children, Schools and Family",QUARTZ PROPERTIES,LBMSS46A,08-May-24,1035,0,184919,Family Assessmt & Intervention,321000              Social Community Care Supplies & Services - Adult,A,2024,2
1081,"Children, Schools and Family",QUARTZ PROPERTIES,LBMSS49B,08-May-24,550,0,184919,Family Assessmt & Intervention,321000              Social Community Care Supplies & Services - Adult,A,2024,2
1082,"Children, Schools and Family",QUARTZ PROPERTIES,LBMSS44C,08-May-24,1890,0,184919,Family Assessmt & Intervention,321000              Social Community Care Supplies & Services - Adult,A,2024,2
1083,"Children, Schools and Family",QUARTZ PROPERTIES,LBMSS45C,08-May-24,3150,0,184919,Family Assessmt & Intervention,321000              Social Community Care Supplies & Services - Adult,A,2024,2
1084,"Children, Schools and Family",QUARTZ PROPERTIES,LBMSS49A,08-May-24,1395,0,184919,Family Assessmt & Intervention,321000              Social Community Care Supplies & Services - Adult,A,2024,2
1085,"Children, Schools and Family",QUARTZ PROPERTIES,LBMSS43A,10-May-24,1240,0,184919,Family Assessmt & Intervention,321000              Social Community Care Supplies & Services - Adult,A,2024,2
1086,"Children, Schools and Family",QUARTZ PROPERTIES,LBMSS42A,10-May-24,1200,0,184919,Family Assessmt & Intervention,321000              Social Community Care Supplies & Services - Adult,A,2024,2
1087,"Children, Schools and Family",QUARTZ PROPERTIES,LBMSS41C,10-May-24,1240,0,184919,Family Assessmt & Intervention,321000              Social Community Care Supplies & Services - Adult,A,2024,2
1088,Community and Housing,QUARTZ PROPERTIES,LBM127,14-May-24,57540.7,0,184919,Bed & Breakfast - accomm,321000              Social Community Care Supplies & Services - Adult,A,2024,2
1089,"Children, Schools and Family",QUARTZ PROPERTIES,LBMSS47C,13-May-24,2500,0,184919,Family Assessmt & Intervention,321000              Social Community Care Supplies & Services - Adult,A,2024,2
1090,"Children, Schools and Family",QUARTZ PROPERTIES,LBMSS49C,13-May-24,2900,0,184919,Family Assessmt & Intervention,321000              Social Community Care Supplies & Services - Adult,A,2024,2
1091,"Children, Schools and Family",QUARTZ PROPERTIES,LBMSS52A,27-May-24,1350,0,184919,Family Assessmt & Intervention,321000              Social Community Care Supplies & Services - Adult,A,2024,2
1092,"Children, Schools and Family",QUARTZ PROPERTIES,LBMSS52B,27-May-24,3900,0,184919,Family Assessmt & Intervention,321000              Social Community Care Supplies & Services - Adult,A,2024,2
1093,Community and Housing,REDACTED PERSONAL DATA,1163762,21-May-24,703.8,0,184950,Phys/Sens Placements - East,DIRECT PAYMENTS,R,2024,2
1094,Community and Housing,JASPERS CATERING SERVICES,23555,29-May-24,1234.8,205.8,185004,Transformation Project,110000              Catering,A,2024,2
1095,Community and Housing,JASPERS CATERING SERVICES,23563,29-May-24,1762.26,293.71,185004,Transformation Project,110000              Catering,A,2024,2
1096,"Children, Schools and Family",Treloar Trust,0000009595P/PAY,27-May-24,26399,0,185020,SEN Residential (DSG),170000              Education,A,2024,2
1097,"Children, Schools and Family",Treloar Trust,0000009596P/PAY,27-May-24,26399,0,185020,SEN Residential (DSG),170000              Education,A,2024,2
1098,Community and Housing,LONDON CARE LTD,016-5250682A,08-May-24,5217.64,0,185026,Older People Placements - East,321000              Social Community Care Supplies & Services - Adult,A,2024,2
1099,Community and Housing,LONDON CARE LTD,016-5240957A,08-May-24,2018.95,0,185026,Older People Placements - East,321000              Social Community Care Supplies & Services - Adult,A,2024,2
1100,Community and Housing,LONDON CARE LTD,016-5244838A,08-May-24,5192.4,0,185026,Older People Placements - East,321000              Social Community Care Supplies & Services - Adult,A,2024,2
1101,Community and Housing,LONDON CARE LTD,016-5254036/31,16-May-24,1479.84,0,185026,Older People Placements - East,321000              Social Community Care Supplies & Services - Adult,A,2024,2
1102,Community and Housing,LONDON CARE LTD,016-5254036/38,16-May-24,547.94,0,185026,Older People Placements - East,321000              Social Community Care Supplies & Services - Adult,A,2024,2
1103,Community and Housing,LONDON CARE LTD,016-5254036/35,16-May-24,665.25,0,185026,Older People Placements - East,321000              Social Community Care Supplies & Services - Adult,A,2024,2
1104,Community and Housing,LONDON CARE LTD,016-5254036/47,16-May-24,660.98,0,185026,Older People Placements - East,321000              Social Community Care Supplies & Services - Adult,A,2024,2
1105,Community and Housing,LONDON CARE LTD,016-5254036/54,16-May-24,1049.91,0,185026,Older People Placements - East,321000              Social Community Care Supplies & Services - Adult,A,2024,2
1106,Community and Housing,LONDON CARE LTD,016-5254036/66,16-May-24,890.25,0,185026,Older People Placements - East,321000              Social Community Care Supplies & Services - Adult,A,2024,2
1107,Community and Housing,LONDON CARE LTD,016-5254036/29,16-May-24,820.55,0,185026,Learning Disabilities Placemnt,321000              Social Community Care Supplies & Services - Adult,A,2024,2
1108,Community and Housing,LONDON CARE LTD,016-5254036/92,16-May-24,568.95,0,185026,Older People Placements - East,321000              Social Community Care Supplies & Services - Adult,A,2024,2
1109,Community and Housing,LONDON CARE LTD,016-5254036/20,16-May-24,512.05,0,185026,Older People Placements - East,321000              Social Community Care Supplies & Services - Adult,A,2024,2
1110,Community and Housing,LONDON CARE LTD,016-5254036/64,16-May-24,1152.39,0,185026,Older People Placements - East,321000              Social Community Care Supplies & Services - Adult,A,2024,2
1111,Community and Housing,LONDON CARE LTD,016-5254036/111,16-May-24,3102.05,0,185026,Older People Placements - East,321000              Social Community Care Supplies & Services - Adult,A,2024,2
1112,Community and Housing,LONDON CARE LTD,016-5254036/39,16-May-24,529.78,0,185026,Learning Disabilities Placemnt,321000              Social Community Care Supplies & Services - Adult,A,2024,2
1113,Community and Housing,LONDON CARE LTD,016-5254036/88,16-May-24,2520,0,185026,Older People Placements - East,321000              Social Community Care Supplies & Services - Adult,A,2024,2
1114,Community and Housing,LONDON CARE LTD,016-5254036/106,16-May-24,822.3,0,185026,Older People Placements - East,321000              Social Community Care Supplies & Services - Adult,A,2024,2
1115,Community and Housing,LONDON CARE LTD,016-5254036/112,16-May-24,2270.47,0,185026,Older People Placements - East,321000              Social Community Care Supplies & Services - Adult,A,2024,2
1116,Community and Housing,LONDON CARE LTD,016-5254036/36,16-May-24,1198.24,0,185026,Older People Placements - East,321000              Social Community Care Supplies & Services - Adult,A,2024,2
1117,Community and Housing,LONDON CARE LTD,016-5254036/17,16-May-24,812.18,0,185026,Older People Placements - East,321000              Social Community Care Supplies & Services - Adult,A,2024,2
1118,Community and Housing,LONDON CARE LTD,016-5254036/16,16-May-24,2915.11,0,185026,Phys/Sens Placements - East,321000              Social Community Care Supplies & Services - Adult,A,2024,2
1119,Community and Housing,LONDON CARE LTD,016-5254036/44,16-May-24,1047.17,0,185026,Older People Placements - East,321000              Social Community Care Supplies & Services - Adult,A,2024,2
1120,Community and Housing,LONDON CARE LTD,016-5254036/9,16-May-24,2331.88,0,185026,Older People Placements - East,321000              Social Community Care Supplies & Services - Adult,A,2024,2
1121,Community and Housing,LONDON CARE LTD,016-5254036/90,16-May-24,1584.46,0,185026,Older People Placements - East,321000              Social Community Care Supplies & Services - Adult,A,2024,2
1122,Community and Housing,LONDON CARE LTD,016-5254036/81,16-May-24,715.33,0,185026,Older People Placements - East,321000              Social Community Care Supplies & Services - Adult,A,2024,2
1123,Community and Housing,LONDON CARE LTD,016-5254036/100,16-May-24,1119,0,185026,Older People Placements - East,321000              Social Community Care Supplies & Services - Adult,A,2024,2
1124,Community and Housing,LONDON CARE LTD,016-5254036/43,16-May-24,1294.95,0,185026,Older People Placements - East,321000              Social Community Care Supplies & Services - Adult,A,2024,2
1125,Community and Housing,LONDON CARE LTD,016-5254036/56,16-May-24,3473.26,0,185026,Older People Placements - East,321000              Social Community Care Supplies & Services - Adult,A,2024,2
1126,Community and Housing,LONDON CARE LTD,016-5254036/6,16-May-24,2261.57,0,185026,Older People Placements - East,321000              Social Community Care Supplies & Services - Adult,A,2024,2
1127,Community and Housing,LONDON CARE LTD,016-5254036/59,16-May-24,612.45,0,185026,Phys/Sens Placements - East,321000              Social Community Care Supplies & Services - Adult,A,2024,2
1128,Community and Housing,LONDON CARE LTD,016-5254036/94,16-May-24,2920.39,0,185026,Older People Placements - East,321000              Social Community Care Supplies & Services - Adult,A,2024,2
1129,Community and Housing,LONDON CARE LTD,016-5254036/65,16-May-24,1396.25,0,185026,Older People Placements - East,321000              Social Community Care Supplies & Services - Adult,A,2024,2
1130,Community and Housing,LONDON CARE LTD,016-5254036/51,16-May-24,1140.3,0,185026,Older People Placements - East,321000              Social Community Care Supplies & Services - Adult,A,2024,2
1131,Community and Housing,LONDON CARE LTD,016-5254036/96,16-May-24,606.98,0,185026,Older People Placements - East,321000              Social Community Care Supplies & Services - Adult,A,2024,2
1132,Community and Housing,LONDON CARE LTD,016-5254036/48,16-May-24,560.49,0,185026,Older People Placements - East,321000              Social Community Care Supplies & Services - Adult,A,2024,2
1133,Community and Housing,LONDON CARE LTD,016-5254036/70,16-May-24,823.07,0,185026,Older People Placements - East,321000              Social Community Care Supplies & Services - Adult,A,2024,2
1134,Community and Housing,LONDON CARE LTD,016-5254036/15,16-May-24,647.01,0,185026,Older People Placements - East,321000              Social Community Care Supplies & Services - Adult,A,2024,2
1135,Community and Housing,LONDON CARE LTD,016-5254036/116,16-May-24,1129.44,0,185026,Older People Placements - East,321000              Social Community Care Supplies & Services - Adult,A,2024,2
1136,Community and Housing,LONDON CARE LTD,016-5254036/19,16-May-24,2634.05,0,185026,Older People Placements - East,321000              Social Community Care Supplies & Services - Adult,A,2024,2
1137,Community and Housing,LONDON CARE LTD,016-5254036/41,16-May-24,3160.9,0,185026,Older People Placements - East,321000              Social Community Care Supplies & Services - Adult,A,2024,2
1138,Community and Housing,LONDON CARE LTD,016-5254036/104,16-May-24,1063.44,0,185026,Older People Placements - East,321000              Social Community Care Supplies & Services - Adult,A,2024,2
1139,Community and Housing,LONDON CARE LTD,016-5254036/91,16-May-24,783.81,0,185026,Older People Placements - East,321000              Social Community Care Supplies & Services - Adult,A,2024,2
1140,Community and Housing,LONDON CARE LTD,016-5254036/37,16-May-24,841.34,0,185026,Older People Placements - East,321000              Social Community Care Supplies & Services - Adult,A,2024,2
1141,Community and Housing,LONDON CARE LTD,016-5254036/1,16-May-24,1127.56,0,185026,Older People Placements - East,321000              Social Community Care Supplies & Services - Adult,A,2024,2
